Body Name,Body,Organisational unit,Service division,Expenditure category,Date,Transacton number,Net amount,Supplier,Narrative
Tendring DC,http://statistics.data.gov.uk/id/local-authority-district/22UN,Corporate Services,1950 - Transport,3062 - Running Costs - Petrol,19/11/2013,2112318-1,175.01,2101825 - Allstar Business Solutions Ltd,Courier Fuel
Tendring DC,http://statistics.data.gov.uk/id/local-authority-district/22UN,Corporate Services,1330 - Human Resources Service Unit,1000 - Salaries,19/11/2013,1056130-1,1526.52,REDACTED PERSONAL DATA,REDACTED PERSONAL DATA
Tendring DC,http://statistics.data.gov.uk/id/local-authority-district/22UN,Corporate Services,9900 - General Fund Balance Sheet,B146 - Car Loans - Principal - Essential Users,12/11/2013,1056123-1,4600,REDACTED PERSONAL DATA,REDACTED PERSONAL DATA
Tendring DC,http://statistics.data.gov.uk/id/local-authority-district/22UN,Corporate Services,1320 - Print Unit Service Unit,4302 - External Print Unit Expenses,26/11/2013,1056408-1,98,2100069 - Autoprint,JOB 444
Tendring DC,http://statistics.data.gov.uk/id/local-authority-district/22UN,Corporate Services,1320 - Print Unit Service Unit,4302 - External Print Unit Expenses,26/11/2013,1056409-1,55,2100069 - Autoprint,JOB 462
Tendring DC,http://statistics.data.gov.uk/id/local-authority-district/22UN,Corporate Services,7240 - Electoral Registration Expenses,4300 - Printing & Stationery,12/11/2013,1056056-1,15.89,2100111 - Banner Business Supplies Ltd,
Tendring DC,http://statistics.data.gov.uk/id/local-authority-district/22UN,Corporate Services,1320 - Print Unit Service Unit,4080 - Materials & Consumables,26/11/2013,1056404-1,35.16,2100111 - Banner Business Supplies Ltd,ENVELOPES
Tendring DC,http://statistics.data.gov.uk/id/local-authority-district/22UN,Corporate Services,7240 - Electoral Registration Expenses,4300 - Printing & Stationery,19/11/2013,2112307-1,71.54,2100111 - Banner Business Supplies Ltd,Stationery
Tendring DC,http://statistics.data.gov.uk/id/local-authority-district/22UN,Corporate Services,1100 - Corporate Director (Corporate Services) and Admin Service Unit,4300 - Printing & Stationery,26/11/2013,2112377-1,234.71,2100111 - Banner Business Supplies Ltd,Banner
Tendring DC,http://statistics.data.gov.uk/id/local-authority-district/22UN,Corporate Services,1100 - Corporate Director (Corporate Services) and Admin Service Unit,1710 - Training - Central Department Budget,05/11/2013,2112058-1,60,REDACTED PERSONAL DATA,REDACTED PERSONAL DATA
Tendring DC,http://statistics.data.gov.uk/id/local-authority-district/22UN,Corporate Services,1180 - Benefit Fraud Investigation Service Unit,4880 - Subscriptions Paid,05/11/2013,1055890-1,63,2102227 - Brighton & Hove City Council,
Tendring DC,http://statistics.data.gov.uk/id/local-authority-district/22UN,Corporate Services,1180 - Benefit Fraud Investigation Service Unit,4880 - Subscriptions Paid,05/11/2013,1055890-2,731.13,2102227 - Brighton & Hove City Council,
Tendring DC,http://statistics.data.gov.uk/id/local-authority-district/22UN,Corporate Services,1760 - IT Direct Service Costs,4715 - Data Communication Charge,12/11/2013,2112127-1,45.36,2100168 - British Telecommunications plc,8270 Sept 13
Tendring DC,http://statistics.data.gov.uk/id/local-authority-district/22UN,Corporate Services,1760 - IT Direct Service Costs,4715 - Data Communication Charge,12/11/2013,2112127-2,13.5,2100168 - British Telecommunications plc,8270 Sept 13
Tendring DC,http://statistics.data.gov.uk/id/local-authority-district/22UN,Corporate Services,1320 - Print Unit Service Unit,4080 - Materials & Consumables,05/11/2013,7700711-1,234.4,2100291 - Canon (UK) Ltd,PAPER
Tendring DC,http://statistics.data.gov.uk/id/local-authority-district/22UN,Corporate Services,9900 - General Fund Balance Sheet,B879 - Charges made by Merchant Acquirer,06/11/2013,1056437-1,46.8,2100202 - Capita Business Services Ltd,CAPITA OCT 13
Tendring DC,http://statistics.data.gov.uk/id/local-authority-district/22UN,Corporate Services,9900 - General Fund Balance Sheet,B879 - Charges made by Merchant Acquirer,06/11/2013,1056437-2,109.84,2100202 - Capita Business Services Ltd,CAPITA OCT 13
Tendring DC,http://statistics.data.gov.uk/id/local-authority-district/22UN,Corporate Services,9900 - General Fund Balance Sheet,B879 - Charges made by Merchant Acquirer,06/11/2013,1056437-3,234,2100202 - Capita Business Services Ltd,CAPITA OCT 13
Tendring DC,http://statistics.data.gov.uk/id/local-authority-district/22UN,Corporate Services,9900 - General Fund Balance Sheet,B879 - Charges made by Merchant Acquirer,06/11/2013,1056437-4,463.12,2100202 - Capita Business Services Ltd,CAPITA OCT 13
Tendring DC,http://statistics.data.gov.uk/id/local-authority-district/22UN,Corporate Services,9900 - General Fund Balance Sheet,B879 - Charges made by Merchant Acquirer,06/11/2013,1056437-5,428.94,2100202 - Capita Business Services Ltd,CAPITA OCT 13
Tendring DC,http://statistics.data.gov.uk/id/local-authority-district/22UN,Corporate Services,9900 - General Fund Balance Sheet,B879 - Charges made by Merchant Acquirer,06/11/2013,1056437-6,280.49,2100202 - Capita Business Services Ltd,CAPITA OCT 13
Tendring DC,http://statistics.data.gov.uk/id/local-authority-district/22UN,Corporate Services,9900 - General Fund Balance Sheet,B879 - Charges made by Merchant Acquirer,06/11/2013,1056437-7,392.04,2100202 - Capita Business Services Ltd,CAPITA OCT 13
Tendring DC,http://statistics.data.gov.uk/id/local-authority-district/22UN,Corporate Services,9900 - General Fund Balance Sheet,B879 - Charges made by Merchant Acquirer,06/11/2013,1056437-8,288.95,2100202 - Capita Business Services Ltd,CAPITA OCT 13
Tendring DC,http://statistics.data.gov.uk/id/local-authority-district/22UN,Corporate Services,9900 - General Fund Balance Sheet,B879 - Charges made by Merchant Acquirer,06/11/2013,1056437-9,0.36,2100202 - Capita Business Services Ltd,CAPITA OCT 13
Tendring DC,http://statistics.data.gov.uk/id/local-authority-district/22UN,Corporate Services,1500 - Planning Development Manager,3300 - Public Transport - Officers,05/11/2013,2112081-1,23.1,REDACTED PERSONAL DATA,REDACTED PERSONAL DATA
Tendring DC,http://statistics.data.gov.uk/id/local-authority-district/22UN,Corporate Services,1800 - Qualification and Other Training,1700 - Training - Courses,19/11/2013,1056319-1,2080,2113570 - Clyde Education Ltd,cipdd level 7
Tendring DC,http://statistics.data.gov.uk/id/local-authority-district/22UN,Corporate Services,1300 - Legal Services Service Unit,4460 - Legal & Professional Expenses,03/11/2013,1056353-1,220,2100269 - Co operative Bank plc,R BARRETT VISA
Tendring DC,http://statistics.data.gov.uk/id/local-authority-district/22UN,Corporate Services,7300 - Licencing,4300 - Printing & Stationery,03/11/2013,1056353-2,33.86,2100269 - Co operative Bank plc,R BARRETT VISA
Tendring DC,http://statistics.data.gov.uk/id/local-authority-district/22UN,Corporate Services,1100 - Corporate Director (Corporate Services) and Admin Service Unit,5500 - Miscellaneous Expenses,12/11/2013,1056121-1,66.67,REDACTED PERSONAL DATA,REDACTED PERSONAL DATA
Tendring DC,http://statistics.data.gov.uk/id/local-authority-district/22UN,Corporate Services,1760 - IT Direct Service Costs,4751 - Hardware & Service Maintenance,12/11/2013,2112171-1,1354.4,REDACTED PERSONAL DATA,REDACTED PERSONAL DATA
Tendring DC,http://statistics.data.gov.uk/id/local-authority-district/22UN,Corporate Services,1090 - Chief Executive and Support Service Unit,4400 - Maintenance Under Service Agreements,19/11/2013,1056327-1,16.22,2102826 - Eden Springs UK Ltd,
Tendring DC,http://statistics.data.gov.uk/id/local-authority-district/22UN,Corporate Services,1815 - Personnel and Human Resources Issues,4459 - External Legal Advice,19/11/2013,1056225-1,250,2109294 - Ellisons Solicitors,compromise agreement
Tendring DC,http://statistics.data.gov.uk/id/local-authority-district/22UN,Corporate Services,6620 - Corporate Management - General,5180 - External Audit Fees,12/11/2013,2112172-1,24119,REDACTED PERSONAL DATA,REDACTED PERSONAL DATA
Tendring DC,http://statistics.data.gov.uk/id/local-authority-district/22UN,Corporate Services,1760 - IT Direct Service Costs,4715 - Data Communication Charge,05/11/2013,1055859-1,6500,2100498 - Essex County Council,gcsx recharge (eolp 13/14
Tendring DC,http://statistics.data.gov.uk/id/local-authority-district/22UN,Corporate Services,9880 - Collection Fund - Council Tax,R100 - Precept - ECC,15/11/2013,1056448-1,4616471,2100409 - Essex County Council,PRECEPT 151113
Tendring DC,http://statistics.data.gov.uk/id/local-authority-district/22UN,Corporate Services,9880 - Collection Fund - Council Tax,R110 - Council Tax Balance - ECC,15/11/2013,1056448-2,92582,2100409 - Essex County Council,PRECEPT 151113
Tendring DC,http://statistics.data.gov.uk/id/local-authority-district/22UN,Corporate Services,9890 - Collection Fund - NNDR,R127 - NNDR - Essex County Retention,15/11/2013,1056448-3,217766,2100409 - Essex County Council,PRECEPT 151113
Tendring DC,http://statistics.data.gov.uk/id/local-authority-district/22UN,Corporate Services,6683 - Technical Discount Scheme,8109 - Technical  Discount Scheme - ECC Contribution,15/11/2013,1056448-4,-37770,2100409 - Essex County Council,PRECEPT 151113
Tendring DC,http://statistics.data.gov.uk/id/local-authority-district/22UN,Corporate Services,8971 - MIRS - Contributions Payable to the Pension Scheme,1816 - Superannuation Deficiency Contribution,12/11/2013,7009707-3,137750,2100419 - Essex County Council,Pension 00013
Tendring DC,http://statistics.data.gov.uk/id/local-authority-district/22UN,Corporate Services,8971 - MIRS - Contributions Payable to the Pension Scheme,1810 - Superannuation - Financial Strain/Added Years,12/11/2013,7009707-4,17115.99,2100419 - Essex County Council,Pension 00013
Tendring DC,http://statistics.data.gov.uk/id/local-authority-district/22UN,Corporate Services,8971 - MIRS - Contributions Payable to the Pension Scheme,1822 - Superannuation - Port Health Pensions etc.,12/11/2013,7009708-2,800.05,2100419 - Essex County Council,Port Health Authority
Tendring DC,http://statistics.data.gov.uk/id/local-authority-district/22UN,Corporate Services,7025 - CDRP Support,4900 - Grants,26/11/2013,2112397-1,4000,2108768 - Essex County Fire & Rescue Service,Fire Cadet 2013
Tendring DC,http://statistics.data.gov.uk/id/local-authority-district/22UN,Corporate Services,9880 - Collection Fund - Council Tax,R101 - Precept - Essex Fire,15/11/2013,1056446-1,282150,2100469 - Essex Fire Authority,PRECEPT 151113 FIRE
Tendring DC,http://statistics.data.gov.uk/id/local-authority-district/22UN,Corporate Services,9880 - Collection Fund - Council Tax,R111 - Council Tax Balance - Essex Fire,15/11/2013,1056446-2,5658,2100469 - Essex Fire Authority,PRECEPT 151113 FIRE
Tendring DC,http://statistics.data.gov.uk/id/local-authority-district/22UN,Corporate Services,9890 - Collection Fund - NNDR,R128 - NNDR - Fire Retention,15/11/2013,1056446-3,24196,2100469 - Essex Fire Authority,PRECEPT 151113 FIRE
Tendring DC,http://statistics.data.gov.uk/id/local-authority-district/22UN,Corporate Services,6683 - Technical Discount Scheme,8109 - Technical  Discount Scheme - ECC Contribution,15/11/2013,1056446-4,-2106,2100469 - Essex Fire Authority,PRECEPT 151113 FIRE
Tendring DC,http://statistics.data.gov.uk/id/local-authority-district/22UN,Corporate Services,9880 - Collection Fund - Council Tax,R102 - Precept - Essex Police,15/11/2013,1056447-1,601001,2100500 - Essex Police Authority,PRECEPT 151113 POL
Tendring DC,http://statistics.data.gov.uk/id/local-authority-district/22UN,Corporate Services,9880 - Collection Fund - Council Tax,R112 - Council Tax Balance - Essex Police,15/11/2013,1056447-2,11647,2100500 - Essex Police Authority,PRECEPT 151113 POL
Tendring DC,http://statistics.data.gov.uk/id/local-authority-district/22UN,Corporate Services,1660 - Other Apportionable Overheads,4609 - Child Care Vouchers Management Fee,05/11/2013,2112057-2,52.38,REDACTED PERSONAL DATA,REDACTED PERSONAL DATA
Tendring DC,http://statistics.data.gov.uk/id/local-authority-district/22UN,Corporate Services,1300 - Legal Services Service Unit,4355 - Books & Periodicals,19/11/2013,2112317-1,59.95,2111590 - Hammicks Legal Information Services,Licensing Handbook
Tendring DC,http://statistics.data.gov.uk/id/local-authority-district/22UN,Corporate Services,7025 - CDRP Support,4900 - Grants,19/11/2013,1056176-1,112.14,2100633 - Harwich Connexions Transport Co-operative Ltd,borderline transports - chelmsford HMP
Tendring DC,http://statistics.data.gov.uk/id/local-authority-district/22UN,Corporate Services,1800 - Qualification and Other Training,1700 - Training - Courses,19/11/2013,1056317-1,1506,2100740 - ICCM,iccm education training
Tendring DC,http://statistics.data.gov.uk/id/local-authority-district/22UN,Corporate Services,1800 - Qualification and Other Training,1700 - Training - Courses,19/11/2013,1056317-2,279,2100740 - ICCM,iccm education training
Tendring DC,http://statistics.data.gov.uk/id/local-authority-district/22UN,Corporate Services,1100 - Corporate Director (Corporate Services) and Admin Service Unit,1710 - Training - Central Department Budget,12/11/2013,2112126-1,210,2101441 - Improvement and Development Agency for Local Government,LGPS Training 30/8/12 CC
Tendring DC,http://statistics.data.gov.uk/id/local-authority-district/22UN,Corporate Services,1100 - Corporate Director (Corporate Services) and Admin Service Unit,4300 - Printing & Stationery,12/11/2013,2112173-1,11.86,REDACTED PERSONAL DATA,REDACTED PERSONAL DATA
Tendring DC,http://statistics.data.gov.uk/id/local-authority-district/22UN,Corporate Services,1330 - Human Resources Service Unit,3311 - Travelling Career Track,12/11/2013,2112236-1,4.32,REDACTED PERSONAL DATA,REDACTED PERSONAL DATA
Tendring DC,http://statistics.data.gov.uk/id/local-authority-district/22UN,Corporate Services,1320 - Print Unit Service Unit,4080 - Materials & Consumables,19/11/2013,7700735-1,272.43,2100864 - Leston Stationery Ltd,PAPER
Tendring DC,http://statistics.data.gov.uk/id/local-authority-district/22UN,Corporate Services,1220 - Finance and Procurement Manager Service Unit,4355 - Books & Periodicals,26/11/2013,1056384-1,249,2113562 - LGC,LGC4000211146
Tendring DC,http://statistics.data.gov.uk/id/local-authority-district/22UN,Corporate Services,1760 - IT Direct Service Costs,6320 - IT Services Agreements Payment,05/11/2013,2112051-1,51622.01,2108077 - Liberata Financial Services Ltd,Nov 13 Maint
Tendring DC,http://statistics.data.gov.uk/id/local-authority-district/22UN,Corporate Services,7025 - CDRP Support,4900 - Grants,26/11/2013,7009890-1,200,2111739 - Love To Eat,CLASSIC BUFFET - CRUCIAL CREW
Tendring DC,http://statistics.data.gov.uk/id/local-authority-district/22UN,Corporate Services,7025 - CDRP Support,4900 - Grants,26/11/2013,7009892-1,108,2111739 - Love To Eat,CRUCIAL CREW - BUFFET - LOVE TO EAT
Tendring DC,http://statistics.data.gov.uk/id/local-authority-district/22UN,Corporate Services,1300 - Legal Services Service Unit,4503 - Counsels Fees,12/11/2013,2112119-1,3260,2110726 - Mrs Harriet Townsend,TDC v Kinsley
Tendring DC,http://statistics.data.gov.uk/id/local-authority-district/22UN,Corporate Services,1320 - Print Unit Service Unit,4080 - Materials & Consumables,26/11/2013,1056405-1,90,2111479 - Neil Goss Litho Printing,CARD
Tendring DC,http://statistics.data.gov.uk/id/local-authority-district/22UN,Corporate Services,1320 - Print Unit Service Unit,4302 - External Print Unit Expenses,26/11/2013,1056406-1,50,2111479 - Neil Goss Litho Printing,JOB 435/443
Tendring DC,http://statistics.data.gov.uk/id/local-authority-district/22UN,Corporate Services,1320 - Print Unit Service Unit,4302 - External Print Unit Expenses,26/11/2013,1056407-1,10,2111479 - Neil Goss Litho Printing,JOB 670
Tendring DC,http://statistics.data.gov.uk/id/local-authority-district/22UN,Corporate Services,1800 - Qualification and Other Training,1700 - Training - Courses,19/11/2013,1056320-1,3000,2113590 - NESCOT,tuition fees
Tendring DC,http://statistics.data.gov.uk/id/local-authority-district/22UN,Corporate Services,6620 - Corporate Management - General,5160 - Advertising,26/11/2013,2112414-1,152.08,2100989 - Newsquest (London) Ltd,End of Audit Advert
Tendring DC,http://statistics.data.gov.uk/id/local-authority-district/22UN,Corporate Services,6460 - Career Track,4688 - Career Track Exam Fees,05/11/2013,1055863-1,75,REDACTED PERSONAL DATA,REDACTED PERSONAL DATA
Tendring DC,http://statistics.data.gov.uk/id/local-authority-district/22UN,Corporate Services,6460 - Career Track,4688 - Career Track Exam Fees,05/11/2013,1055864-1,150.2,REDACTED PERSONAL DATA,REDACTED PERSONAL DATA
Tendring DC,http://statistics.data.gov.uk/id/local-authority-district/22UN,Corporate Services,6460 - Career Track,4688 - Career Track Exam Fees,12/11/2013,2112162-1,80.9,REDACTED PERSONAL DATA,REDACTED PERSONAL DATA
Tendring DC,http://statistics.data.gov.uk/id/local-authority-district/22UN,Corporate Services,6460 - Career Track,4688 - Career Track Exam Fees,12/11/2013,2112163-1,68.8,REDACTED PERSONAL DATA,REDACTED PERSONAL DATA
Tendring DC,http://statistics.data.gov.uk/id/local-authority-district/22UN,Corporate Services,1320 - Print Unit Service Unit,4302 - External Print Unit Expenses,12/11/2013,1056065-1,10,2111844 - Optimumprint,job 428
Tendring DC,http://statistics.data.gov.uk/id/local-authority-district/22UN,Corporate Services,7040 - Civic Ceremonial Expenses,4080 - Materials & Consumables,26/11/2013,7009883-1,53,2107094 - P Patrick,SOUND SYSTEM FOR REMEMBRANCE SUNDAY
Tendring DC,http://statistics.data.gov.uk/id/local-authority-district/22UN,Corporate Services,7100 - Community Health/Safety,4670 - Hire of Premises,05/11/2013,1055858-1,1280,REDACTED PERSONAL DATA,REDACTED PERSONAL DATA
Tendring DC,http://statistics.data.gov.uk/id/local-authority-district/22UN,Corporate Services,7100 - Community Health/Safety,4674 - Hired Facilities,05/11/2013,1055858-2,130,REDACTED PERSONAL DATA,REDACTED PERSONAL DATA
Tendring DC,http://statistics.data.gov.uk/id/local-authority-district/22UN,Corporate Services,7025 - CDRP Support,4900 - Grants,05/11/2013,1055858-3,256.67,REDACTED PERSONAL DATA,REDACTED PERSONAL DATA
Tendring DC,http://statistics.data.gov.uk/id/local-authority-district/22UN,Corporate Services,6460 - Career Track,4688 - Career Track Exam Fees,05/11/2013,1055861-1,54,2100425 - Pearson,edi l3 management
Tendring DC,http://statistics.data.gov.uk/id/local-authority-district/22UN,Corporate Services,6460 - Career Track,4688 - Career Track Exam Fees,05/11/2013,1055862-1,114.5,REDACTED PERSONAL DATA,REDACTED PERSONAL DATA
Tendring DC,http://statistics.data.gov.uk/id/local-authority-district/22UN,Corporate Services,6460 - Career Track,4688 - Career Track Exam Fees,12/11/2013,2112164-1,84.5,REDACTED PERSONAL DATA,REDACTED PERSONAL DATA
Tendring DC,http://statistics.data.gov.uk/id/local-authority-district/22UN,Corporate Services,6460 - Career Track,4688 - Career Track Exam Fees,12/11/2013,2112165-1,50.5,REDACTED PERSONAL DATA,REDACTED PERSONAL DATA
Tendring DC,http://statistics.data.gov.uk/id/local-authority-district/22UN,Corporate Services,6460 - Career Track,4688 - Career Track Exam Fees,12/11/2013,2112166-1,48.5,REDACTED PERSONAL DATA,REDACTED PERSONAL DATA
Tendring DC,http://statistics.data.gov.uk/id/local-authority-district/22UN,Corporate Services,6460 - Career Track,4688 - Career Track Exam Fees,12/11/2013,2112167-1,14.5,REDACTED PERSONAL DATA,REDACTED PERSONAL DATA
Tendring DC,http://statistics.data.gov.uk/id/local-authority-district/22UN,Corporate Services,6460 - Career Track,4688 - Career Track Exam Fees,12/11/2013,2112168-1,14.5,REDACTED PERSONAL DATA,REDACTED PERSONAL DATA
Tendring DC,http://statistics.data.gov.uk/id/local-authority-district/22UN,Corporate Services,6460 - Career Track,4688 - Career Track Exam Fees,12/11/2013,2112169-1,58,REDACTED PERSONAL DATA,REDACTED PERSONAL DATA
Tendring DC,http://statistics.data.gov.uk/id/local-authority-district/22UN,Corporate Services,1661 - Other Apportionable Overheads - Corporate Support,4700 - Postage,05/11/2013,1055990-1,5000,2104077 - Pitney Bowes Ltd,Re-credit franking machine - Clacton - PBP A/c 10113561
Tendring DC,http://statistics.data.gov.uk/id/local-authority-district/22UN,Corporate Services,1661 - Other Apportionable Overheads - Corporate Support,4700 - Postage,26/11/2013,7009869-1,569.55,2104077 - Pitney Bowes Ltd,FRANKING CONSUMABLES
Tendring DC,http://statistics.data.gov.uk/id/local-authority-district/22UN,Corporate Services,1930 - Asset Management Service Unit,4460 - Legal & Professional Expenses,19/11/2013,1056212-1,1524,2105829 - Prettys Solicitors,prettys recycling depot
Tendring DC,http://statistics.data.gov.uk/id/local-authority-district/22UN,Corporate Services,1930 - Asset Management Service Unit,4459 - External Legal Advice,19/11/2013,2112331-1,350,2105829 - Prettys Solicitors,Prettys - Market WOTN
Tendring DC,http://statistics.data.gov.uk/id/local-authority-district/22UN,Corporate Services,1930 - Asset Management Service Unit,4459 - External Legal Advice,19/11/2013,2112331-2,5,2105829 - Prettys Solicitors,Prettys - Market WOTN
Tendring DC,http://statistics.data.gov.uk/id/local-authority-district/22UN,Corporate Services,7240 - Electoral Registration Expenses,4300 - Printing & Stationery,26/11/2013,7009868-1,2867.84,2103246 - Print.uk.com,CANVASSING FORMS
Tendring DC,http://statistics.data.gov.uk/id/local-authority-district/22UN,Corporate Services,9900 - General Fund Balance Sheet,B886 - Rail Warrants Allocation Holding Account,08/11/2013,1056359-1,1486.4,2101174 - R S P Ltd,RAIL WARRANTS
Tendring DC,http://statistics.data.gov.uk/id/local-authority-district/22UN,Corporate Services,6580 - Member Support Cost,4350 - Photocopier Hire,19/11/2013,1056199-1,108.52,2101090 - Ricoh UK Ltd,members photocopier
Tendring DC,http://statistics.data.gov.uk/id/local-authority-district/22UN,Corporate Services,1100 - Corporate Director (Corporate Services) and Admin Service Unit,4300 - Printing & Stationery,26/11/2013,7009900-1,313.96,2101090 - Ricoh UK Ltd,PHOTOCOPIER CHARGES
Tendring DC,http://statistics.data.gov.uk/id/local-authority-district/22UN,Corporate Services,1520 - Head of Planning and Customer Services,4400 - Maintenance Under Service Agreements,19/11/2013,1056211-1,55.48,2113449 - RNIB,large print keyboard
Tendring DC,http://statistics.data.gov.uk/id/local-authority-district/22UN,Corporate Services,7240 - Electoral Registration Expenses,4700 - Postage,19/11/2013,1056299-1,1986.22,2101139 - Royal Mail,pre paid envelopes
Tendring DC,http://statistics.data.gov.uk/id/local-authority-district/22UN,Corporate Services,7240 - Electoral Registration Expenses,4700 - Postage,12/11/2013,2112264-1,3362.14,2101139 - Royal Mail,Pre-paid Envelopes
Tendring DC,http://statistics.data.gov.uk/id/local-authority-district/22UN,Corporate Services,7240 - Electoral Registration Expenses,4700 - Postage,26/11/2013,2112436-1,11.78,2101139 - Royal Mail,Prepaid Envelope
Tendring DC,http://statistics.data.gov.uk/id/local-authority-district/22UN,Corporate Services,7240 - Electoral Registration Expenses,4700 - Postage,26/11/2013,2112437-1,1419.98,2101139 - Royal Mail,Pre Paid Envelope
Tendring DC,http://statistics.data.gov.uk/id/local-authority-district/22UN,Corporate Services,7025 - CDRP Support,4900 - Grants,26/11/2013,7009889-1,426.5,2113513 - SEAMS LTD,SEAMS MEDIATION
Tendring DC,http://statistics.data.gov.uk/id/local-authority-district/22UN,Corporate Services,C421 - Oracle Upgrades,C276 - Licences for Software,26/11/2013,2112432-1,4700,2103677 - SecureData Europe Ltd,PSN
Tendring DC,http://statistics.data.gov.uk/id/local-authority-district/22UN,Corporate Services,C421 - Oracle Upgrades,C276 - Licences for Software,26/11/2013,2112433-1,4000,2103677 - SecureData Europe Ltd,PSN
Tendring DC,http://statistics.data.gov.uk/id/local-authority-district/22UN,Corporate Services,C421 - Oracle Upgrades,C276 - Licences for Software,26/11/2013,2112434-1,450,2103677 - SecureData Europe Ltd,PSN Consult
Tendring DC,http://statistics.data.gov.uk/id/local-authority-district/22UN,Corporate Services,1760 - IT Direct Service Costs,4880 - Subscriptions Paid,12/11/2013,2112170-1,890,REDACTED PERSONAL DATA,REDACTED PERSONAL DATA
Tendring DC,http://statistics.data.gov.uk/id/local-authority-district/22UN,Corporate Services,1800 - Qualification and Other Training,1700 - Training - Courses,12/11/2013,2112122-1,2600,2109910 - Solace Enterprises,Leadership Management
Tendring DC,http://statistics.data.gov.uk/id/local-authority-district/22UN,Corporate Services,1815 - Personnel and Human Resources Issues,1707 - Training - Workforce Development Courses,19/11/2013,1056318-1,125,2101898 - Southend-On-Sea Borough Council,solution focused thinking
Tendring DC,http://statistics.data.gov.uk/id/local-authority-district/22UN,Corporate Services,1930 - Asset Management Service Unit,4460 - Legal & Professional Expenses,19/11/2013,1056322-1,700,2101898 - Southend-On-Sea Borough Council,epam year 2 costs
Tendring DC,http://statistics.data.gov.uk/id/local-authority-district/22UN,Corporate Services,9900 - General Fund Balance Sheet,B658 - Cash Floats,19/11/2013,1056336-1,1150,REDACTED COMMERCIAL CONFIDENTIALITY,REDACTED COMMERCIAL CONFIDENTIALITY
Tendring DC,http://statistics.data.gov.uk/id/local-authority-district/22UN,Corporate Services,1815 - Personnel and Human Resources Issues,1500 - Advertising - Recruitment,26/11/2013,1056433-1,7.53,2106628 - Tendring District Council,PETTY CASH CORPORATE SERVICES
Tendring DC,http://statistics.data.gov.uk/id/local-authority-district/22UN,Corporate Services,6980 - Essex Family Needs Project,5500 - Miscellaneous Expenses,26/11/2013,1056433-10,6.4,2106628 - Tendring District Council,PETTY CASH CORPORATE SERVICES
Tendring DC,http://statistics.data.gov.uk/id/local-authority-district/22UN,Corporate Services,6980 - Essex Family Needs Project,5500 - Miscellaneous Expenses,26/11/2013,1056433-11,16.67,2106628 - Tendring District Council,PETTY CASH CORPORATE SERVICES
Tendring DC,http://statistics.data.gov.uk/id/local-authority-district/22UN,Corporate Services,6980 - Essex Family Needs Project,5500 - Miscellaneous Expenses,26/11/2013,1056433-12,0.83,2106628 - Tendring District Council,PETTY CASH CORPORATE SERVICES
Tendring DC,http://statistics.data.gov.uk/id/local-authority-district/22UN,Corporate Services,1760 - IT Direct Service Costs,6325 - Additional Services,26/11/2013,1056433-13,2.92,2106628 - Tendring District Council,PETTY CASH CORPORATE SERVICES
Tendring DC,http://statistics.data.gov.uk/id/local-authority-district/22UN,Corporate Services,1760 - IT Direct Service Costs,6325 - Additional Services,26/11/2013,1056433-14,1.7,2106628 - Tendring District Council,PETTY CASH CORPORATE SERVICES
Tendring DC,http://statistics.data.gov.uk/id/local-authority-district/22UN,Corporate Services,1815 - Personnel and Human Resources Issues,1500 - Advertising - Recruitment,26/11/2013,1056433-15,4.51,2106628 - Tendring District Council,PETTY CASH CORPORATE SERVICES
Tendring DC,http://statistics.data.gov.uk/id/local-authority-district/22UN,Corporate Services,7025 - CDRP Support,4900 - Grants,26/11/2013,1056433-16,4.6,2106628 - Tendring District Council,PETTY CASH CORPORATE SERVICES
Tendring DC,http://statistics.data.gov.uk/id/local-authority-district/22UN,Corporate Services,1100 - Corporate Director (Corporate Services) and Admin Service Unit,4300 - Printing & Stationery,26/11/2013,1056433-2,10.83,2106628 - Tendring District Council,PETTY CASH CORPORATE SERVICES
Tendring DC,http://statistics.data.gov.uk/id/local-authority-district/22UN,Corporate Services,1100 - Corporate Director (Corporate Services) and Admin Service Unit,4300 - Printing & Stationery,26/11/2013,1056433-3,11.31,2106628 - Tendring District Council,PETTY CASH CORPORATE SERVICES
Tendring DC,http://statistics.data.gov.uk/id/local-authority-district/22UN,Corporate Services,1180 - Benefit Fraud Investigation Service Unit,5500 - Miscellaneous Expenses,26/11/2013,1056433-4,8.01,2106628 - Tendring District Council,PETTY CASH CORPORATE SERVICES
Tendring DC,http://statistics.data.gov.uk/id/local-authority-district/22UN,Corporate Services,1100 - Corporate Director (Corporate Services) and Admin Service Unit,4800 - Hospitality,26/11/2013,1056433-5,2.08,2106628 - Tendring District Council,PETTY CASH CORPORATE SERVICES
Tendring DC,http://statistics.data.gov.uk/id/local-authority-district/22UN,Corporate Services,6460 - Career Track,1704 - Training - Travelling,26/11/2013,1056433-6,20.4,2106628 - Tendring District Council,PETTY CASH CORPORATE SERVICES
Tendring DC,http://statistics.data.gov.uk/id/local-authority-district/22UN,Corporate Services,6980 - Essex Family Needs Project,5500 - Miscellaneous Expenses,26/11/2013,1056433-7,5,2106628 - Tendring District Council,PETTY CASH CORPORATE SERVICES
Tendring DC,http://statistics.data.gov.uk/id/local-authority-district/22UN,Corporate Services,6980 - Essex Family Needs Project,5500 - Miscellaneous Expenses,26/11/2013,1056433-8,0.83,2106628 - Tendring District Council,PETTY CASH CORPORATE SERVICES
Tendring DC,http://statistics.data.gov.uk/id/local-authority-district/22UN,Corporate Services,6980 - Essex Family Needs Project,5500 - Miscellaneous Expenses,26/11/2013,1056433-9,6.78,2106628 - Tendring District Council,PETTY CASH CORPORATE SERVICES
Tendring DC,http://statistics.data.gov.uk/id/local-authority-district/22UN,Corporate Services,1100 - Corporate Director (Corporate Services) and Admin Service Unit,1700 - Training - Courses,12/11/2013,2112185-1,60,2111821 - The Association of Democratic Services Officers,Training Courses
Tendring DC,http://statistics.data.gov.uk/id/local-authority-district/22UN,Corporate Services,1100 - Corporate Director (Corporate Services) and Admin Service Unit,4880 - Subscriptions Paid,19/11/2013,1056298-1,325.5,2104780 - The Association of Electoral Administrators,membership renewals
Tendring DC,http://statistics.data.gov.uk/id/local-authority-district/22UN,Corporate Services,7025 - CDRP Support,4900 - Grants,26/11/2013,7009891-1,313.5,REDACTED PERSONAL DATA,REDACTED PERSONAL DATA
Tendring DC,http://statistics.data.gov.uk/id/local-authority-district/22UN,Corporate Services,6480 - Emergency Planning,4688 - Career Track Exam Fees,05/11/2013,1055977-1,120,REDACTED PERSONAL DATA,REDACTED PERSONAL DATA
Tendring DC,http://statistics.data.gov.uk/id/local-authority-district/22UN,Corporate Services,6460 - Career Track,4688 - Career Track Exam Fees,26/11/2013,1056385-1,220,REDACTED PERSONAL DATA,REDACTED PERSONAL DATA
Tendring DC,http://statistics.data.gov.uk/id/local-authority-district/22UN,Corporate Services,1815 - Personnel and Human Resources Issues,1708 - Training - New Programme Development Courses,26/11/2013,7009846-1,325,REDACTED PERSONAL DATA,REDACTED PERSONAL DATA
Tendring DC,http://statistics.data.gov.uk/id/local-authority-district/22UN,Corporate Services,1300 - Legal Services Service Unit,4880 - Subscriptions Paid,05/11/2013,1055832-1,1320,2104124 - The Law Society,practising certificates
Tendring DC,http://statistics.data.gov.uk/id/local-authority-district/22UN,Corporate Services,6620 - Corporate Management - General,4504 - Consultants Fees - Financial Services,05/11/2013,1055831-1,850,2104641 - The VAT Consultancy,vat helpline
Tendring DC,http://statistics.data.gov.uk/id/local-authority-district/22UN,Corporate Services,1300 - Legal Services Service Unit,4355 - Books & Periodicals,12/11/2013,2112131-1,239,2111580 - Thomson Reuters,Cross on Local Gov
Tendring DC,http://statistics.data.gov.uk/id/local-authority-district/22UN,Corporate Services,5480 - HRA - Repair & Maintenance,6625 - Tenants Compensation Scheme,05/11/2013,1055971-1,1000,2108436 - Travelers Insurance Co Ltd,PL10-15 Piekielniak Excess
Tendring DC,http://statistics.data.gov.uk/id/local-authority-district/22UN,Corporate Services,2000 - Coast Protection - General,2114 - Special Maintenance,05/11/2013,2112056-1,5000,2108436 - Travelers Insurance Co Ltd,PL10-16 Hale Excess
Tendring DC,http://statistics.data.gov.uk/id/local-authority-district/22UN,Corporate Services,1100 - Corporate Director (Corporate Services) and Admin Service Unit,4716 - Mobile Telephone Costs,26/11/2013,7009905-1,270.53,2101522 - Vodafone Corporate,OCT 13 VODAFONE
Tendring DC,http://statistics.data.gov.uk/id/local-authority-district/22UN,Corporate Services,1180 - Benefit Fraud Investigation Service Unit,4716 - Mobile Telephone Costs,26/11/2013,7009905-2,25,2101522 - Vodafone Corporate,OCT 13 VODAFONE
Tendring DC,http://statistics.data.gov.uk/id/local-authority-district/22UN,Corporate Services,1620 - Corporate Performance - IT Section Service Unit,4716 - Mobile Telephone Costs,26/11/2013,7009905-3,315.46,2101522 - Vodafone Corporate,OCT 13 VODAFONE
Tendring DC,http://statistics.data.gov.uk/id/local-authority-district/22UN,Corporate Services,1300 - Legal Services Service Unit,4716 - Mobile Telephone Costs,26/11/2013,7009905-4,74.52,2101522 - Vodafone Corporate,OCT 13 VODAFONE
Tendring DC,http://statistics.data.gov.uk/id/local-authority-district/22UN,Corporate Services,6540 - Members Allowance,4716 - Mobile Telephone Costs,26/11/2013,7009905-5,137.8,2101522 - Vodafone Corporate,OCT 13 VODAFONE
Tendring DC,http://statistics.data.gov.uk/id/local-authority-district/22UN,Corporate Services,1330 - Human Resources Service Unit,4716 - Mobile Telephone Costs,26/11/2013,7009905-6,208.02,2101522 - Vodafone Corporate,OCT 13 VODAFONE
Tendring DC,http://statistics.data.gov.uk/id/local-authority-district/22UN,Corporate Services,6460 - Career Track,4716 - Mobile Telephone Costs,26/11/2013,7009905-7,279.08,2101522 - Vodafone Corporate,OCT 13 VODAFONE
Tendring DC,http://statistics.data.gov.uk/id/local-authority-district/22UN,Corporate Services,7040 - Civic Ceremonial Expenses,4080 - Materials & Consumables,26/11/2013,7009905-8,63,2101522 - Vodafone Corporate,OCT 13 VODAFONE
Tendring DC,http://statistics.data.gov.uk/id/local-authority-district/22UN,Corporate Services,1320 - Print Unit Service Unit,4350 - Photocopier Hire,26/11/2013,1056402-1,1869.9,2101527 - Xerox Finance Ltd,4127 RENTAL
Tendring DC,http://statistics.data.gov.uk/id/local-authority-district/22UN,Corporate Services,1320 - Print Unit Service Unit,4350 - Photocopier Hire,19/11/2013,7700736-1,1964.1,2101527 - Xerox Finance Ltd,252 RENTAL
Tendring DC,http://statistics.data.gov.uk/id/local-authority-district/22UN,Corporate Services,1100 - Corporate Director (Corporate Services) and Admin Service Unit,4300 - Printing & Stationery,12/11/2013,1056064-1,67.92,2107546 - XMA Limited,xma
Tendring DC,http://statistics.data.gov.uk/id/local-authority-district/22UN,Corporate Services,1100 - Corporate Director (Corporate Services) and Admin Service Unit,4300 - Printing & Stationery,26/11/2013,2112435-1,310.95,2107546 - XMA Limited,Maintenance Kit for Printer
Tendring DC,http://statistics.data.gov.uk/id/local-authority-district/22UN,Corporate Services,1100 - Corporate Director (Corporate Services) and Admin Service Unit,4300 - Printing & Stationery,26/11/2013,7009893-1,136.32,2107546 - XMA Limited,XMA
Tendring DC,http://statistics.data.gov.uk/id/local-authority-district/22UN,Life Opportunities,6160 - Princes Theatre,4040 - Equipment & Tools,26/11/2013,7700775-1,50,2100091 - A Warrender,PIANO TUNING
Tendring DC,http://statistics.data.gov.uk/id/local-authority-district/22UN,Life Opportunities,8520 - Frinton & Walton Swimming Pool,2100 - Building Repairs,05/11/2013,1055895-1,1450,2108452 - Access Automation Ltd,fwsp - access Automation
Tendring DC,http://statistics.data.gov.uk/id/local-authority-district/22UN,Life Opportunities,8510 - Dovercourt Swimming Pool & All Weather Facilities,2100 - Building Repairs,12/11/2013,2112276-1,150,2108452 - Access Automation Ltd,Dovercourt Pool - Repair
Tendring DC,http://statistics.data.gov.uk/id/local-authority-district/22UN,Life Opportunities,1880 - Office Accommodation Expenses,2100 - Building Repairs,12/11/2013,2112114-1,274,2101609 - Adcock Refrigeration & Air Conditioning Ltd,Deep Clean Air Con
Tendring DC,http://statistics.data.gov.uk/id/local-authority-district/22UN,Life Opportunities,H710 - Selected Improvements,C200 - Main Contractor,05/11/2013,1055876-1,1574,2112518 - Affinity Water Ltd (East Region),new connection spendells house
Tendring DC,http://statistics.data.gov.uk/id/local-authority-district/22UN,Life Opportunities,H710 - Selected Improvements,C200 - Main Contractor,05/11/2013,1055877-1,2021,2112518 - Affinity Water Ltd (East Region),new connection kate daniels house
Tendring DC,http://statistics.data.gov.uk/id/local-authority-district/22UN,Life Opportunities,8540 - Leisure Centre Clacton,2510 - Water Services - Unmetered,19/11/2013,1056189-1,1115.53,2112518 - Affinity Water Ltd (East Region),october
Tendring DC,http://statistics.data.gov.uk/id/local-authority-district/22UN,Life Opportunities,8510 - Dovercourt Swimming Pool & All Weather Facilities,2510 - Water Services - Unmetered,19/11/2013,1056316-1,581.82,2112518 - Affinity Water Ltd (East Region),water oct dsp
Tendring DC,http://statistics.data.gov.uk/id/local-authority-district/22UN,Life Opportunities,1860 - Depots General,2500 - Water Services - Metered,12/11/2013,2112147-1,99.99,2112518 - Affinity Water Ltd (East Region),Affinity Water - NB Workshop
Tendring DC,http://statistics.data.gov.uk/id/local-authority-district/22UN,Life Opportunities,1860 - Depots General,2520 - Sewerage & Environmental Charges,12/11/2013,2112147-2,144.25,2112518 - Affinity Water Ltd (East Region),Affinity Water - NB Workshop
Tendring DC,http://statistics.data.gov.uk/id/local-authority-district/22UN,Life Opportunities,1880 - Office Accommodation Expenses,2500 - Water Services - Metered,12/11/2013,2112263-1,624.62,2112518 - Affinity Water Ltd (East Region),Affinity Water - Westleigh
Tendring DC,http://statistics.data.gov.uk/id/local-authority-district/22UN,Life Opportunities,1880 - Office Accommodation Expenses,2520 - Sewerage & Environmental Charges,12/11/2013,2112263-2,584.95,2112518 - Affinity Water Ltd (East Region),Affinity Water - Westleigh
Tendring DC,http://statistics.data.gov.uk/id/local-authority-district/22UN,Life Opportunities,8520 - Frinton & Walton Swimming Pool,2510 - Water Services - Unmetered,26/11/2013,7009857-1,776.42,2112518 - Affinity Water Ltd (East Region),FWSP - AFFINITY WATER
Tendring DC,http://statistics.data.gov.uk/id/local-authority-district/22UN,Life Opportunities,1860 - Depots General,2500 - Water Services - Metered,26/11/2013,7009872-1,288.19,2112518 - Affinity Water Ltd (East Region),AFFINITY WATER - MILL LANE
Tendring DC,http://statistics.data.gov.uk/id/local-authority-district/22UN,Life Opportunities,1860 - Depots General,2520 - Sewerage & Environmental Charges,26/11/2013,7009872-2,302.34,2112518 - Affinity Water Ltd (East Region),AFFINITY WATER - MILL LANE
Tendring DC,http://statistics.data.gov.uk/id/local-authority-district/22UN,Life Opportunities,1880 - Office Accommodation Expenses,2500 - Water Services - Metered,26/11/2013,7009873-1,26.7,2112518 - Affinity Water Ltd (East Region),AFFINITY WATER - FRINTON C/O
Tendring DC,http://statistics.data.gov.uk/id/local-authority-district/22UN,Life Opportunities,1880 - Office Accommodation Expenses,2520 - Sewerage & Environmental Charges,26/11/2013,7009873-2,82.69,2112518 - Affinity Water Ltd (East Region),AFFINITY WATER - FRINTON C/O
Tendring DC,http://statistics.data.gov.uk/id/local-authority-district/22UN,Life Opportunities,5360 - HRA - Sheltered Units,2500 - Water Services - Metered,05/11/2013,7700732-1,261.63,2112518 - Affinity Water Ltd (East Region),B CT 1ST HALF YEAR
Tendring DC,http://statistics.data.gov.uk/id/local-authority-district/22UN,Life Opportunities,5360 - HRA - Sheltered Units,2520 - Sewerage & Environmental Charges,05/11/2013,7700732-2,260.93,2112518 - Affinity Water Ltd (East Region),B CT 1ST HALF YEAR
Tendring DC,http://statistics.data.gov.uk/id/local-authority-district/22UN,Life Opportunities,5480 - HRA - Repair & Maintenance,2017 - Mechanical Equipment /Extract Fans,26/11/2013,7009752-1,295.5,REDACTED PERSONAL DATA,REDACTED PERSONAL DATA
Tendring DC,http://statistics.data.gov.uk/id/local-authority-district/22UN,Life Opportunities,5480 - HRA - Repair & Maintenance,2017 - Mechanical Equipment /Extract Fans,26/11/2013,7009753-1,453.4,REDACTED PERSONAL DATA,REDACTED PERSONAL DATA
Tendring DC,http://statistics.data.gov.uk/id/local-authority-district/22UN,Life Opportunities,H715 - Measures To Combat Condensation,C200 - Main Contractor,26/11/2013,7009796-1,733.8,REDACTED PERSONAL DATA,REDACTED PERSONAL DATA
Tendring DC,http://statistics.data.gov.uk/id/local-authority-district/22UN,Life Opportunities,5480 - HRA - Repair & Maintenance,2017 - Mechanical Equipment /Extract Fans,26/11/2013,7009887-1,307.4,REDACTED PERSONAL DATA,REDACTED PERSONAL DATA
Tendring DC,http://statistics.data.gov.uk/id/local-authority-district/22UN,Life Opportunities,5480 - HRA - Repair & Maintenance,2016 - PVCu Window And Door Repairs,26/11/2013,7009888-1,643.02,REDACTED PERSONAL DATA,REDACTED PERSONAL DATA
Tendring DC,http://statistics.data.gov.uk/id/local-authority-district/22UN,Life Opportunities,5480 - HRA - Repair & Maintenance,2017 - Mechanical Equipment /Extract Fans,26/11/2013,7009907-1,-31.9,2110902 - Airtech Environmental Systems,A038863
Tendring DC,http://statistics.data.gov.uk/id/local-authority-district/22UN,Life Opportunities,5480 - HRA - Repair & Maintenance,2016 - PVCu Window And Door Repairs,26/11/2013,7009908-1,-92.02,2110902 - Airtech Environmental Systems,A038852
Tendring DC,http://statistics.data.gov.uk/id/local-authority-district/22UN,Life Opportunities,5480 - HRA - Repair & Maintenance,2017 - Mechanical Equipment /Extract Fans,26/11/2013,7009748-1,149,2100014 - Airvents Systems (Services) Ltd,1-11 DARCY HOUSE
Tendring DC,http://statistics.data.gov.uk/id/local-authority-district/22UN,Life Opportunities,5480 - HRA - Repair & Maintenance,2017 - Mechanical Equipment /Extract Fans,26/11/2013,7009749-1,149,2100014 - Airvents Systems (Services) Ltd,23-24 ROCHFORD HOUSE
Tendring DC,http://statistics.data.gov.uk/id/local-authority-district/22UN,Life Opportunities,5480 - HRA - Repair & Maintenance,2017 - Mechanical Equipment /Extract Fans,26/11/2013,7009750-1,149,2100014 - Airvents Systems (Services) Ltd,12-23 RIVERS HOUSE
Tendring DC,http://statistics.data.gov.uk/id/local-authority-district/22UN,Life Opportunities,5480 - HRA - Repair & Maintenance,2017 - Mechanical Equipment /Extract Fans,26/11/2013,7009751-1,149,2100014 - Airvents Systems (Services) Ltd,1-9 WHITE HART COURT
Tendring DC,http://statistics.data.gov.uk/id/local-authority-district/22UN,Life Opportunities,C021 - Mercury Abatement Equipment and Cremators replacement,C200 - Main Contractor,12/11/2013,2112146-1,3100,2113215 - Allman Woodcock Limited,Weeley Crem Interim Fee Account No 5
Tendring DC,http://statistics.data.gov.uk/id/local-authority-district/22UN,Life Opportunities,6740 - Careline,3060 - Running Costs - Diesel,26/11/2013,2112392-1,434.28,2101825 - Allstar Business Solutions Ltd,
Tendring DC,http://statistics.data.gov.uk/id/local-authority-district/22UN,Life Opportunities,"1580 - Benefits, Revenues and Customer Contact SU",4469 - Other Non - Legal Professional Services,26/11/2013,7009844-1,23.6,2111631 - Anglia Courier Express (East Anglia) Ltd,COURIER TO ST BOTOLPHS
Tendring DC,http://statistics.data.gov.uk/id/local-authority-district/22UN,Life Opportunities,5860 - Manningtree Sports Centre,4597 - Hired Services - Payments to Contractors,19/11/2013,1056304-1,240,2113500 - Anglia Sports Management Limited,football coaching
Tendring DC,http://statistics.data.gov.uk/id/local-authority-district/22UN,Life Opportunities,5240 - HRA - Managing Tenancies,5242 - Tenant Relations,12/11/2013,2112242-1,10,REDACTED PERSONAL DATA,REDACTED PERSONAL DATA
Tendring DC,http://statistics.data.gov.uk/id/local-authority-district/22UN,Life Opportunities,5240 - HRA - Managing Tenancies,5242 - Tenant Relations,12/11/2013,2112251-1,10,REDACTED PERSONAL DATA,REDACTED PERSONAL DATA
Tendring DC,http://statistics.data.gov.uk/id/local-authority-district/22UN,Life Opportunities,5480 - HRA - Repair & Maintenance,2064 - Domestic Appliance Repairs,19/11/2013,1056154-1,1608.33,2113419 - Appliance Force,belmans court
Tendring DC,http://statistics.data.gov.uk/id/local-authority-district/22UN,Life Opportunities,5480 - HRA - Repair & Maintenance,2064 - Domestic Appliance Repairs,19/11/2013,1056155-1,2440.75,2113419 - Appliance Force,crooked elms
Tendring DC,http://statistics.data.gov.uk/id/local-authority-district/22UN,Life Opportunities,5480 - HRA - Repair & Maintenance,2064 - Domestic Appliance Repairs,19/11/2013,1056156-1,1735.42,2113419 - Appliance Force,crooked elms
Tendring DC,http://statistics.data.gov.uk/id/local-authority-district/22UN,Life Opportunities,6160 - Princes Theatre,5160 - Advertising,19/11/2013,1056234-1,72,2102337 - Archant Regional Ltd,theatre east anglia daily times
Tendring DC,http://statistics.data.gov.uk/id/local-authority-district/22UN,Life Opportunities,6740 - Careline,5160 - Advertising,19/11/2013,2112367-1,50,REDACTED PERSONAL DATA,REDACTED PERSONAL DATA
Tendring DC,http://statistics.data.gov.uk/id/local-authority-district/22UN,Life Opportunities,5220 - HRA - Policy & Management,5253 - HRA Health & Safety Expenses,12/11/2013,1056070-1,49.55,2100097 - Arco Ltd,jacket and safety shop
Tendring DC,http://statistics.data.gov.uk/id/local-authority-district/22UN,Life Opportunities,1880 - Office Accommodation Expenses,2100 - Building Repairs,26/11/2013,7009880-1,2706.91,2109788 - Ardencrest Ltd,ARDENCREST - FRINTON
Tendring DC,http://statistics.data.gov.uk/id/local-authority-district/22UN,Life Opportunities,5860 - Manningtree Sports Centre,5311 - General Provisions - Vending,26/11/2013,2112423-1,81,2110110 - Area Vending Services,Vending Supplies
Tendring DC,http://statistics.data.gov.uk/id/local-authority-district/22UN,Life Opportunities,5860 - Manningtree Sports Centre,5311 - General Provisions - Vending,26/11/2013,2112423-2,78,2110110 - Area Vending Services,Vending Supplies
Tendring DC,http://statistics.data.gov.uk/id/local-authority-district/22UN,Life Opportunities,8540 - Leisure Centre Clacton,4000 - Furniture,19/11/2013,1056134-1,-1455.96,2100048 - Argos Business Solutions,FRIDGES CREDIT
Tendring DC,http://statistics.data.gov.uk/id/local-authority-district/22UN,Life Opportunities,8540 - Leisure Centre Clacton,4000 - Furniture,19/11/2013,2112312-1,82.34,2100048 - Argos Business Solutions,Bag Mitts
Tendring DC,http://statistics.data.gov.uk/id/local-authority-district/22UN,Life Opportunities,8540 - Leisure Centre Clacton,5160 - Advertising,19/11/2013,2112313-1,120.82,2100048 - Argos Business Solutions,Heart Rate Monitor/Pedometer
Tendring DC,http://statistics.data.gov.uk/id/local-authority-district/22UN,Life Opportunities,8540 - Leisure Centre Clacton,4000 - Furniture,19/11/2013,2112314-1,1463.42,2100048 - Argos Business Solutions,Fridges Wrong Order
Tendring DC,http://statistics.data.gov.uk/id/local-authority-district/22UN,Life Opportunities,8540 - Leisure Centre Clacton,4000 - Furniture,19/11/2013,2112315-1,111.44,2100048 - Argos Business Solutions,Fridge
Tendring DC,http://statistics.data.gov.uk/id/local-authority-district/22UN,Life Opportunities,5480 - HRA - Repair & Maintenance,2088 - Disabled Adaptations,05/11/2013,1055929-1,80,REDACTED PERSONAL DATA,REDACTED PERSONAL DATA
Tendring DC,http://statistics.data.gov.uk/id/local-authority-district/22UN,Life Opportunities,5480 - HRA - Repair & Maintenance,2088 - Disabled Adaptations,05/11/2013,1055929-2,295,REDACTED PERSONAL DATA,REDACTED PERSONAL DATA
Tendring DC,http://statistics.data.gov.uk/id/local-authority-district/22UN,Life Opportunities,5480 - HRA - Repair & Maintenance,2088 - Disabled Adaptations,05/11/2013,1055930-1,38,REDACTED PERSONAL DATA,REDACTED PERSONAL DATA
Tendring DC,http://statistics.data.gov.uk/id/local-authority-district/22UN,Life Opportunities,5480 - HRA - Repair & Maintenance,2088 - Disabled Adaptations,05/11/2013,1055930-2,20,REDACTED PERSONAL DATA,REDACTED PERSONAL DATA
Tendring DC,http://statistics.data.gov.uk/id/local-authority-district/22UN,Life Opportunities,5480 - HRA - Repair & Maintenance,2088 - Disabled Adaptations,19/11/2013,1056138-1,75,REDACTED PERSONAL DATA,REDACTED PERSONAL DATA
Tendring DC,http://statistics.data.gov.uk/id/local-authority-district/22UN,Life Opportunities,5480 - HRA - Repair & Maintenance,2088 - Disabled Adaptations,19/11/2013,1056138-2,270,REDACTED PERSONAL DATA,REDACTED PERSONAL DATA
Tendring DC,http://statistics.data.gov.uk/id/local-authority-district/22UN,Life Opportunities,6160 - Princes Theatre,4622 - Hired Services - Artistes and Production Companies,19/11/2013,1056237-1,4013.58,2107253 - Artistes International Management,king of pop
Tendring DC,http://statistics.data.gov.uk/id/local-authority-district/22UN,Life Opportunities,8540 - Leisure Centre Clacton,5300 - Resaleable Items,12/11/2013,1056078-1,213,2100088 - ASA Merchandising Ltd,swim awards
Tendring DC,http://statistics.data.gov.uk/id/local-authority-district/22UN,Life Opportunities,8510 - Dovercourt Swimming Pool & All Weather Facilities,5300 - Resaleable Items,19/11/2013,1056246-1,115.53,2100088 - ASA Merchandising Ltd,dovercourt pool - swim awards
Tendring DC,http://statistics.data.gov.uk/id/local-authority-district/22UN,Life Opportunities,8510 - Dovercourt Swimming Pool & All Weather Facilities,5300 - Resaleable Items,19/11/2013,1056247-1,25.65,2100088 - ASA Merchandising Ltd,dovercourt pool - swim awards
Tendring DC,http://statistics.data.gov.uk/id/local-authority-district/22UN,Life Opportunities,1242 - Corporate Director (Life Opportunities),1710 - Training - Central Department Budget,19/11/2013,1056288-1,750,2113479 - Association of Tenancy Relations Officers,Legal evictions training 07/11/13 PSH
Tendring DC,http://statistics.data.gov.uk/id/local-authority-district/22UN,Life Opportunities,8520 - Frinton & Walton Swimming Pool,4400 - Maintenance Under Service Agreements,19/11/2013,1056165-1,81.07,2112129 - Autobar Vending Services Ltd,fwsp - autobar
Tendring DC,http://statistics.data.gov.uk/id/local-authority-district/22UN,Life Opportunities,8520 - Frinton & Walton Swimming Pool,4400 - Maintenance Under Service Agreements,05/11/2013,7700702-1,81.07,2112129 - Autobar Vending Services Ltd,FWSP - MAINTENANCE AUTOBAR
Tendring DC,http://statistics.data.gov.uk/id/local-authority-district/22UN,Life Opportunities,8510 - Dovercourt Swimming Pool & All Weather Facilities,4300 - Printing & Stationery,12/11/2013,2112266-1,90,2100069 - Autoprint,Dovercourt Pool - Timetables
Tendring DC,http://statistics.data.gov.uk/id/local-authority-district/22UN,Life Opportunities,8510 - Dovercourt Swimming Pool & All Weather Facilities,4300 - Printing & Stationery,12/11/2013,2112266-2,5,2100069 - Autoprint,Dovercourt Pool - Timetables
Tendring DC,http://statistics.data.gov.uk/id/local-authority-district/22UN,Life Opportunities,6160 - Princes Theatre,4622 - Hired Services - Artistes and Production Companies,05/11/2013,1055843-1,5000,2108465 - Avalon Promotions Ltd,lee nelson/simon brodkin
Tendring DC,http://statistics.data.gov.uk/id/local-authority-district/22UN,Life Opportunities,1880 - Office Accommodation Expenses,4080 - Materials & Consumables,12/11/2013,2112152-1,41.6,2100099 - B & Q Trade Account,B&Q
Tendring DC,http://statistics.data.gov.uk/id/local-authority-district/22UN,Life Opportunities,1880 - Office Accommodation Expenses,4080 - Materials & Consumables,12/11/2013,2112153-1,24.55,2100099 - B & Q Trade Account,B&Q
Tendring DC,http://statistics.data.gov.uk/id/local-authority-district/22UN,Life Opportunities,8540 - Leisure Centre Clacton,5500 - Miscellaneous Expenses,19/11/2013,1056257-1,57.58,2106358 - Baker Ross Ltd,art materials
Tendring DC,http://statistics.data.gov.uk/id/local-authority-district/22UN,Life Opportunities,8540 - Leisure Centre Clacton,5500 - Miscellaneous Expenses,12/11/2013,2112145-1,31.91,2106358 - Baker Ross Ltd,Art materials
Tendring DC,http://statistics.data.gov.uk/id/local-authority-district/22UN,Life Opportunities,8540 - Leisure Centre Clacton,5500 - Miscellaneous Expenses,12/11/2013,2112145-2,36.48,2106358 - Baker Ross Ltd,Art materials
Tendring DC,http://statistics.data.gov.uk/id/local-authority-district/22UN,Life Opportunities,5140 - Homelessness,4683 - Other Homelessness Expenses,19/11/2013,2112363-1,700,REDACTED PERSONAL DATA,REDACTED PERSONAL DATA
Tendring DC,http://statistics.data.gov.uk/id/local-authority-district/22UN,Life Opportunities,1040 - Regeneration Service Unit,4300 - Printing & Stationery,12/11/2013,1056054-1,71.09,2100111 - Banner Business Supplies Ltd,stationery
Tendring DC,http://statistics.data.gov.uk/id/local-authority-district/22UN,Life Opportunities,1070 - Corporate Director (Public Experience) and Administration Service Unit,4300 - Printing & Stationery,12/11/2013,1056054-2,6.85,2100111 - Banner Business Supplies Ltd,stationery
Tendring DC,http://statistics.data.gov.uk/id/local-authority-district/22UN,Life Opportunities,7300 - Licencing,4300 - Printing & Stationery,12/11/2013,1056054-3,39.43,2100111 - Banner Business Supplies Ltd,stationery
Tendring DC,http://statistics.data.gov.uk/id/local-authority-district/22UN,Life Opportunities,5240 - HRA - Managing Tenancies,4312 - Tenancy Stationery,12/11/2013,1056057-1,59.8,2100111 - Banner Business Supplies Ltd,banner order 28/10/2013
Tendring DC,http://statistics.data.gov.uk/id/local-authority-district/22UN,Life Opportunities,6160 - Princes Theatre,4105 - Bar/Catering Expenses,12/11/2013,1056057-2,7.22,2100111 - Banner Business Supplies Ltd,banner order 28/10/2013
Tendring DC,http://statistics.data.gov.uk/id/local-authority-district/22UN,Life Opportunities,6160 - Princes Theatre,4105 - Bar/Catering Expenses,12/11/2013,1056057-3,8.58,2100111 - Banner Business Supplies Ltd,banner order 28/10/2013
Tendring DC,http://statistics.data.gov.uk/id/local-authority-district/22UN,Life Opportunities,"1580 - Benefits, Revenues and Customer Contact SU",4300 - Printing & Stationery,12/11/2013,1056059-1,28.47,2100111 - Banner Business Supplies Ltd,tinted card/rubbert bands
Tendring DC,http://statistics.data.gov.uk/id/local-authority-district/22UN,Life Opportunities,5240 - HRA - Managing Tenancies,5248 - Estate Management Expenses,12/11/2013,1056062-1,35.73,2100111 - Banner Business Supplies Ltd,stationery order 17/10/2013
Tendring DC,http://statistics.data.gov.uk/id/local-authority-district/22UN,Life Opportunities,5240 - HRA - Managing Tenancies,5248 - Estate Management Expenses,19/11/2013,1056133-1,-35.73,2100111 - Banner Business Supplies Ltd,CREDIT NOTE FOR DISPLAY CABINET
Tendring DC,http://statistics.data.gov.uk/id/local-authority-district/22UN,Life Opportunities,8540 - Leisure Centre Clacton,4300 - Printing & Stationery,19/11/2013,2112308-1,37.34,2100111 - Banner Business Supplies Ltd,Stationery
Tendring DC,http://statistics.data.gov.uk/id/local-authority-district/22UN,Life Opportunities,5240 - HRA - Managing Tenancies,4312 - Tenancy Stationery,19/11/2013,2112309-1,5.11,2100111 - Banner Business Supplies Ltd,Envelopes
Tendring DC,http://statistics.data.gov.uk/id/local-authority-district/22UN,Life Opportunities,5240 - HRA - Managing Tenancies,4312 - Tenancy Stationery,19/11/2013,2112310-1,118.28,2100111 - Banner Business Supplies Ltd,Envelopes/Diaries/Sticky Notes
Tendring DC,http://statistics.data.gov.uk/id/local-authority-district/22UN,Life Opportunities,5360 - HRA - Sheltered Units,4300 - Printing & Stationery,19/11/2013,2112310-2,13.3,2100111 - Banner Business Supplies Ltd,Envelopes/Diaries/Sticky Notes
Tendring DC,http://statistics.data.gov.uk/id/local-authority-district/22UN,Life Opportunities,1210 - Facilities Management Service Unit,4300 - Printing & Stationery,19/11/2013,2112310-3,1.41,2100111 - Banner Business Supplies Ltd,Envelopes/Diaries/Sticky Notes
Tendring DC,http://statistics.data.gov.uk/id/local-authority-district/22UN,Life Opportunities,8520 - Frinton & Walton Swimming Pool,4300 - Printing & Stationery,26/11/2013,2112376-1,95.46,2100111 - Banner Business Supplies Ltd,FWSP - Banner
Tendring DC,http://statistics.data.gov.uk/id/local-authority-district/22UN,Life Opportunities,"1580 - Benefits, Revenues and Customer Contact SU",4300 - Printing & Stationery,26/11/2013,2112378-1,38.85,2100111 - Banner Business Supplies Ltd,Loop Paper/Air Duster
Tendring DC,http://statistics.data.gov.uk/id/local-authority-district/22UN,Life Opportunities,5240 - HRA - Managing Tenancies,4312 - Tenancy Stationery,26/11/2013,2112379-1,38.45,2100111 - Banner Business Supplies Ltd,Loop Parer/Card/ Labels
Tendring DC,http://statistics.data.gov.uk/id/local-authority-district/22UN,Life Opportunities,"1580 - Benefits, Revenues and Customer Contact SU",4300 - Printing & Stationery,26/11/2013,2112379-2,2.06,2100111 - Banner Business Supplies Ltd,Loop Parer/Card/ Labels
Tendring DC,http://statistics.data.gov.uk/id/local-authority-district/22UN,Life Opportunities,1565 - Careline / CCTV Service Unit,4300 - Printing & Stationery,05/11/2013,7700703-1,8.58,2100111 - Banner Business Supplies Ltd,BANNER - FOLDERS
Tendring DC,http://statistics.data.gov.uk/id/local-authority-district/22UN,Life Opportunities,"1580 - Benefits, Revenues and Customer Contact SU",4300 - Printing & Stationery,05/11/2013,7700705-1,116.54,2100111 - Banner Business Supplies Ltd,STICKY NOTES/RUBBER BANDS/LABELS
Tendring DC,http://statistics.data.gov.uk/id/local-authority-district/22UN,Life Opportunities,5240 - HRA - Managing Tenancies,4312 - Tenancy Stationery,05/11/2013,7700706-1,80.82,2100111 - Banner Business Supplies Ltd,BANNER ORDER 21/10/13
Tendring DC,http://statistics.data.gov.uk/id/local-authority-district/22UN,Life Opportunities,1210 - Facilities Management Service Unit,4300 - Printing & Stationery,05/11/2013,7700706-2,4.46,2100111 - Banner Business Supplies Ltd,BANNER ORDER 21/10/13
Tendring DC,http://statistics.data.gov.uk/id/local-authority-district/22UN,Life Opportunities,6160 - Princes Theatre,4040 - Equipment & Tools,05/11/2013,7700706-3,4.82,2100111 - Banner Business Supplies Ltd,BANNER ORDER 21/10/13
Tendring DC,http://statistics.data.gov.uk/id/local-authority-district/22UN,Life Opportunities,5240 - HRA - Managing Tenancies,4312 - Tenancy Stationery,05/11/2013,7700707-1,12.48,2100111 - Banner Business Supplies Ltd,BANNER ORDER - 14/10/13
Tendring DC,http://statistics.data.gov.uk/id/local-authority-district/22UN,Life Opportunities,5820 - Harwich Sports Centre,4400 - Maintenance Under Service Agreements,19/11/2013,1056307-1,39,2105048 - Berendsen UK Ltd,roller towel rental
Tendring DC,http://statistics.data.gov.uk/id/local-authority-district/22UN,Life Opportunities,8540 - Leisure Centre Clacton,2300 - Energy Costs - Fuel Oil,05/11/2013,1055900-1,1599.36,2112681 - BIRLEM Ltd,2352 LT
Tendring DC,http://statistics.data.gov.uk/id/local-authority-district/22UN,Life Opportunities,8540 - Leisure Centre Clacton,2300 - Energy Costs - Fuel Oil,26/11/2013,2112425-1,1620.75,2112681 - BIRLEM Ltd,2500 LT
Tendring DC,http://statistics.data.gov.uk/id/local-authority-district/22UN,Life Opportunities,5480 - HRA - Repair & Maintenance,2071 - Electric Installation Testing,12/11/2013,1055994-1,101.63,REDACTED PERSONAL DATA,REDACTED PERSONAL DATA
Tendring DC,http://statistics.data.gov.uk/id/local-authority-district/22UN,Life Opportunities,5480 - HRA - Repair & Maintenance,2072 - Planned Partial Refurbishment To Electrical Instal,12/11/2013,1055994-2,39.44,REDACTED PERSONAL DATA,REDACTED PERSONAL DATA
Tendring DC,http://statistics.data.gov.uk/id/local-authority-district/22UN,Life Opportunities,5480 - HRA - Repair & Maintenance,2071 - Electric Installation Testing,12/11/2013,1055995-1,101.63,REDACTED PERSONAL DATA,REDACTED PERSONAL DATA
Tendring DC,http://statistics.data.gov.uk/id/local-authority-district/22UN,Life Opportunities,5480 - HRA - Repair & Maintenance,2072 - Planned Partial Refurbishment To Electrical Instal,12/11/2013,1055995-2,39.44,REDACTED PERSONAL DATA,REDACTED PERSONAL DATA
Tendring DC,http://statistics.data.gov.uk/id/local-authority-district/22UN,Life Opportunities,5480 - HRA - Repair & Maintenance,2071 - Electric Installation Testing,12/11/2013,1055996-1,101.63,REDACTED PERSONAL DATA,REDACTED PERSONAL DATA
Tendring DC,http://statistics.data.gov.uk/id/local-authority-district/22UN,Life Opportunities,5480 - HRA - Repair & Maintenance,2072 - Planned Partial Refurbishment To Electrical Instal,12/11/2013,1055996-2,283.04,REDACTED PERSONAL DATA,REDACTED PERSONAL DATA
Tendring DC,http://statistics.data.gov.uk/id/local-authority-district/22UN,Life Opportunities,5480 - HRA - Repair & Maintenance,2071 - Electric Installation Testing,12/11/2013,1055997-1,300,2100155 - Blue Flame (Colchester) Ltd,distrubtion of boards
Tendring DC,http://statistics.data.gov.uk/id/local-authority-district/22UN,Life Opportunities,5480 - HRA - Repair & Maintenance,2071 - Electric Installation Testing,12/11/2013,1055998-1,101.63,REDACTED PERSONAL DATA,REDACTED PERSONAL DATA
Tendring DC,http://statistics.data.gov.uk/id/local-authority-district/22UN,Life Opportunities,5480 - HRA - Repair & Maintenance,2072 - Planned Partial Refurbishment To Electrical Instal,12/11/2013,1055998-2,71.58,REDACTED PERSONAL DATA,REDACTED PERSONAL DATA
Tendring DC,http://statistics.data.gov.uk/id/local-authority-district/22UN,Life Opportunities,5480 - HRA - Repair & Maintenance,2071 - Electric Installation Testing,12/11/2013,1055999-1,101.63,REDACTED PERSONAL DATA,REDACTED PERSONAL DATA
Tendring DC,http://statistics.data.gov.uk/id/local-authority-district/22UN,Life Opportunities,5480 - HRA - Repair & Maintenance,2072 - Planned Partial Refurbishment To Electrical Instal,12/11/2013,1055999-2,64.23,REDACTED PERSONAL DATA,REDACTED PERSONAL DATA
Tendring DC,http://statistics.data.gov.uk/id/local-authority-district/22UN,Life Opportunities,5480 - HRA - Repair & Maintenance,2071 - Electric Installation Testing,12/11/2013,1056000-1,101.63,REDACTED PERSONAL DATA,REDACTED PERSONAL DATA
Tendring DC,http://statistics.data.gov.uk/id/local-authority-district/22UN,Life Opportunities,5480 - HRA - Repair & Maintenance,2072 - Planned Partial Refurbishment To Electrical Instal,12/11/2013,1056000-2,35.83,REDACTED PERSONAL DATA,REDACTED PERSONAL DATA
Tendring DC,http://statistics.data.gov.uk/id/local-authority-district/22UN,Life Opportunities,5480 - HRA - Repair & Maintenance,2071 - Electric Installation Testing,12/11/2013,1056001-1,101.63,REDACTED PERSONAL DATA,REDACTED PERSONAL DATA
Tendring DC,http://statistics.data.gov.uk/id/local-authority-district/22UN,Life Opportunities,5480 - HRA - Repair & Maintenance,2072 - Planned Partial Refurbishment To Electrical Instal,12/11/2013,1056001-2,6.82,REDACTED PERSONAL DATA,REDACTED PERSONAL DATA
Tendring DC,http://statistics.data.gov.uk/id/local-authority-district/22UN,Life Opportunities,5480 - HRA - Repair & Maintenance,2071 - Electric Installation Testing,12/11/2013,1056002-1,101.63,REDACTED PERSONAL DATA,REDACTED PERSONAL DATA
Tendring DC,http://statistics.data.gov.uk/id/local-authority-district/22UN,Life Opportunities,5480 - HRA - Repair & Maintenance,2072 - Planned Partial Refurbishment To Electrical Instal,12/11/2013,1056002-2,143.26,REDACTED PERSONAL DATA,REDACTED PERSONAL DATA
Tendring DC,http://statistics.data.gov.uk/id/local-authority-district/22UN,Life Opportunities,5480 - HRA - Repair & Maintenance,2071 - Electric Installation Testing,12/11/2013,1056003-1,101.63,REDACTED PERSONAL DATA,REDACTED PERSONAL DATA
Tendring DC,http://statistics.data.gov.uk/id/local-authority-district/22UN,Life Opportunities,5480 - HRA - Repair & Maintenance,2072 - Planned Partial Refurbishment To Electrical Instal,12/11/2013,1056003-2,143.62,REDACTED PERSONAL DATA,REDACTED PERSONAL DATA
Tendring DC,http://statistics.data.gov.uk/id/local-authority-district/22UN,Life Opportunities,5480 - HRA - Repair & Maintenance,2071 - Electric Installation Testing,12/11/2013,1056004-1,101.63,REDACTED PERSONAL DATA,REDACTED PERSONAL DATA
Tendring DC,http://statistics.data.gov.uk/id/local-authority-district/22UN,Life Opportunities,5480 - HRA - Repair & Maintenance,2072 - Planned Partial Refurbishment To Electrical Instal,12/11/2013,1056004-2,475.17,REDACTED PERSONAL DATA,REDACTED PERSONAL DATA
Tendring DC,http://statistics.data.gov.uk/id/local-authority-district/22UN,Life Opportunities,5480 - HRA - Repair & Maintenance,2071 - Electric Installation Testing,12/11/2013,1056005-1,101.63,REDACTED PERSONAL DATA,REDACTED PERSONAL DATA
Tendring DC,http://statistics.data.gov.uk/id/local-authority-district/22UN,Life Opportunities,5480 - HRA - Repair & Maintenance,2072 - Planned Partial Refurbishment To Electrical Instal,12/11/2013,1056005-2,138.46,REDACTED PERSONAL DATA,REDACTED PERSONAL DATA
Tendring DC,http://statistics.data.gov.uk/id/local-authority-district/22UN,Life Opportunities,5480 - HRA - Repair & Maintenance,2072 - Planned Partial Refurbishment To Electrical Instal,12/11/2013,1056006-1,68.48,REDACTED PERSONAL DATA,REDACTED PERSONAL DATA
Tendring DC,http://statistics.data.gov.uk/id/local-authority-district/22UN,Life Opportunities,5480 - HRA - Repair & Maintenance,2071 - Electric Installation Testing,12/11/2013,1056007-1,101.63,REDACTED PERSONAL DATA,REDACTED PERSONAL DATA
Tendring DC,http://statistics.data.gov.uk/id/local-authority-district/22UN,Life Opportunities,5480 - HRA - Repair & Maintenance,2072 - Planned Partial Refurbishment To Electrical Instal,12/11/2013,1056007-2,195.37,REDACTED PERSONAL DATA,REDACTED PERSONAL DATA
Tendring DC,http://statistics.data.gov.uk/id/local-authority-district/22UN,Life Opportunities,5480 - HRA - Repair & Maintenance,2071 - Electric Installation Testing,12/11/2013,1056008-1,101.63,REDACTED PERSONAL DATA,REDACTED PERSONAL DATA
Tendring DC,http://statistics.data.gov.uk/id/local-authority-district/22UN,Life Opportunities,5480 - HRA - Repair & Maintenance,2072 - Planned Partial Refurbishment To Electrical Instal,12/11/2013,1056008-2,39.44,REDACTED PERSONAL DATA,REDACTED PERSONAL DATA
Tendring DC,http://statistics.data.gov.uk/id/local-authority-district/22UN,Life Opportunities,5480 - HRA - Repair & Maintenance,2071 - Electric Installation Testing,12/11/2013,1056009-1,101.63,REDACTED PERSONAL DATA,REDACTED PERSONAL DATA
Tendring DC,http://statistics.data.gov.uk/id/local-authority-district/22UN,Life Opportunities,5480 - HRA - Repair & Maintenance,2072 - Planned Partial Refurbishment To Electrical Instal,12/11/2013,1056009-2,16.24,REDACTED PERSONAL DATA,REDACTED PERSONAL DATA
Tendring DC,http://statistics.data.gov.uk/id/local-authority-district/22UN,Life Opportunities,5480 - HRA - Repair & Maintenance,2071 - Electric Installation Testing,12/11/2013,1056010-1,101.63,REDACTED PERSONAL DATA,REDACTED PERSONAL DATA
Tendring DC,http://statistics.data.gov.uk/id/local-authority-district/22UN,Life Opportunities,5480 - HRA - Repair & Maintenance,2072 - Planned Partial Refurbishment To Electrical Instal,12/11/2013,1056010-2,78.89,REDACTED PERSONAL DATA,REDACTED PERSONAL DATA
Tendring DC,http://statistics.data.gov.uk/id/local-authority-district/22UN,Life Opportunities,5480 - HRA - Repair & Maintenance,2071 - Electric Installation Testing,12/11/2013,1056011-1,101.63,REDACTED PERSONAL DATA,REDACTED PERSONAL DATA
Tendring DC,http://statistics.data.gov.uk/id/local-authority-district/22UN,Life Opportunities,5480 - HRA - Repair & Maintenance,2072 - Planned Partial Refurbishment To Electrical Instal,12/11/2013,1056011-2,118.34,REDACTED PERSONAL DATA,REDACTED PERSONAL DATA
Tendring DC,http://statistics.data.gov.uk/id/local-authority-district/22UN,Life Opportunities,H805 - Major Refurbishment of Heating,C200 - Main Contractor,19/11/2013,1056343-1,35820.37,2100155 - Blue Flame (Colchester) Ltd,Heating refurbishment & upgrade contract-valuation 12
Tendring DC,http://statistics.data.gov.uk/id/local-authority-district/22UN,Life Opportunities,8540 - Leisure Centre Clacton,2700 - Cleaning Materials,19/11/2013,1056224-1,130,2102036 - Bonasystems Europe Ltd,bonaclean
Tendring DC,http://statistics.data.gov.uk/id/local-authority-district/22UN,Life Opportunities,8540 - Leisure Centre Clacton,2700 - Cleaning Materials,12/11/2013,2112143-1,1085,2102036 - Bonasystems Europe Ltd,Bonamain & Bonaclean
Tendring DC,http://statistics.data.gov.uk/id/local-authority-district/22UN,Life Opportunities,5240 - HRA - Managing Tenancies,5242 - Tenant Relations,12/11/2013,2112246-1,10,REDACTED PERSONAL DATA,REDACTED PERSONAL DATA
Tendring DC,http://statistics.data.gov.uk/id/local-authority-district/22UN,Life Opportunities,5480 - HRA - Repair & Maintenance,2008 - Responsive Maintenance - Floor Wall And Ceiling Fi,26/11/2013,7009757-1,45,2100117 - Brian Birt Carpets Ltd,BELLMANS COURT
Tendring DC,http://statistics.data.gov.uk/id/local-authority-district/22UN,Life Opportunities,6160 - Princes Theatre,4622 - Hired Services - Artistes and Production Companies,12/11/2013,2112296-1,5355.5,2100137 - Brian Shaw,Jim Davidson & Richard Digance
Tendring DC,http://statistics.data.gov.uk/id/local-authority-district/22UN,Life Opportunities,6160 - Princes Theatre,4622 - Hired Services - Artistes and Production Companies,26/11/2013,2112396-1,2750,2100137 - Brian Shaw,A Night With A Cannon Ball
Tendring DC,http://statistics.data.gov.uk/id/local-authority-district/22UN,Life Opportunities,H805 - Major Refurbishment of Heating,C200 - Main Contractor,05/11/2013,1055857-1,89.33,REDACTED PERSONAL DATA,REDACTED PERSONAL DATA
Tendring DC,http://statistics.data.gov.uk/id/local-authority-district/22UN,Life Opportunities,H805 - Major Refurbishment of Heating,C200 - Main Contractor,12/11/2013,2112281-1,89.33,REDACTED PERSONAL DATA,REDACTED PERSONAL DATA
Tendring DC,http://statistics.data.gov.uk/id/local-authority-district/22UN,Life Opportunities,1880 - Office Accommodation Expenses,2304 - Energy Costs - Electricity,26/11/2013,2112388-1,206.67,2100197 - British Gas Trading Ltd,British Gas Sept 13
Tendring DC,http://statistics.data.gov.uk/id/local-authority-district/22UN,Life Opportunities,1880 - Office Accommodation Expenses,2304 - Energy Costs - Electricity,26/11/2013,2112388-10,977.92,2100197 - British Gas Trading Ltd,British Gas Sept 13
Tendring DC,http://statistics.data.gov.uk/id/local-authority-district/22UN,Life Opportunities,1880 - Office Accommodation Expenses,2304 - Energy Costs - Electricity,26/11/2013,2112388-11,890.07,2100197 - British Gas Trading Ltd,British Gas Sept 13
Tendring DC,http://statistics.data.gov.uk/id/local-authority-district/22UN,Life Opportunities,1880 - Office Accommodation Expenses,2304 - Energy Costs - Electricity,26/11/2013,2112388-2,-94.8,2100197 - British Gas Trading Ltd,British Gas Sept 13
Tendring DC,http://statistics.data.gov.uk/id/local-authority-district/22UN,Life Opportunities,1880 - Office Accommodation Expenses,2304 - Energy Costs - Electricity,26/11/2013,2112388-3,63,2100197 - British Gas Trading Ltd,British Gas Sept 13
Tendring DC,http://statistics.data.gov.uk/id/local-authority-district/22UN,Life Opportunities,1880 - Office Accommodation Expenses,2304 - Energy Costs - Electricity,26/11/2013,2112388-4,109.66,2100197 - British Gas Trading Ltd,British Gas Sept 13
Tendring DC,http://statistics.data.gov.uk/id/local-authority-district/22UN,Life Opportunities,1880 - Office Accommodation Expenses,2304 - Energy Costs - Electricity,26/11/2013,2112388-5,763.56,2100197 - British Gas Trading Ltd,British Gas Sept 13
Tendring DC,http://statistics.data.gov.uk/id/local-authority-district/22UN,Life Opportunities,1860 - Depots General,2304 - Energy Costs - Electricity,26/11/2013,2112388-6,406.04,2100197 - British Gas Trading Ltd,British Gas Sept 13
Tendring DC,http://statistics.data.gov.uk/id/local-authority-district/22UN,Life Opportunities,1880 - Office Accommodation Expenses,2304 - Energy Costs - Electricity,26/11/2013,2112388-7,234.82,2100197 - British Gas Trading Ltd,British Gas Sept 13
Tendring DC,http://statistics.data.gov.uk/id/local-authority-district/22UN,Life Opportunities,1860 - Depots General,2304 - Energy Costs - Electricity,26/11/2013,2112388-8,430.82,2100197 - British Gas Trading Ltd,British Gas Sept 13
Tendring DC,http://statistics.data.gov.uk/id/local-authority-district/22UN,Life Opportunities,1880 - Office Accommodation Expenses,2304 - Energy Costs - Electricity,26/11/2013,2112388-9,161.33,2100197 - British Gas Trading Ltd,British Gas Sept 13
Tendring DC,http://statistics.data.gov.uk/id/local-authority-district/22UN,Life Opportunities,5440 - HRA - Communal Electricity,2304 - Energy Costs - Electricity,26/11/2013,2112389-1,635.43,2100197 - British Gas Trading Ltd,Oct Com Charges
Tendring DC,http://statistics.data.gov.uk/id/local-authority-district/22UN,Life Opportunities,5340 - HRA - Communal Central Heating,2304 - Energy Costs - Electricity,26/11/2013,2112389-2,401.49,2100197 - British Gas Trading Ltd,Oct Com Charges
Tendring DC,http://statistics.data.gov.uk/id/local-authority-district/22UN,Life Opportunities,5360 - HRA - Sheltered Units,2304 - Energy Costs - Electricity,26/11/2013,2112389-3,344.34,2100197 - British Gas Trading Ltd,Oct Com Charges
Tendring DC,http://statistics.data.gov.uk/id/local-authority-district/22UN,Life Opportunities,5440 - HRA - Communal Electricity,2304 - Energy Costs - Electricity,26/11/2013,2112389-4,9161.14,2100197 - British Gas Trading Ltd,Oct Com Charges
Tendring DC,http://statistics.data.gov.uk/id/local-authority-district/22UN,Life Opportunities,5440 - HRA - Communal Electricity,2304 - Energy Costs - Electricity,26/11/2013,2112389-5,-1511.97,2100197 - British Gas Trading Ltd,Oct Com Charges
Tendring DC,http://statistics.data.gov.uk/id/local-authority-district/22UN,Life Opportunities,5360 - HRA - Sheltered Units,2304 - Energy Costs - Electricity,26/11/2013,2112389-6,-19.43,2100197 - British Gas Trading Ltd,Oct Com Charges
Tendring DC,http://statistics.data.gov.uk/id/local-authority-district/22UN,Life Opportunities,5960 - Recreation Grounds,2304 - Energy Costs - Electricity,26/11/2013,2112390-1,-28.62,2100197 - British Gas Trading Ltd,Electricity Nov 13
Tendring DC,http://statistics.data.gov.uk/id/local-authority-district/22UN,Life Opportunities,5960 - Recreation Grounds,2304 - Energy Costs - Electricity,26/11/2013,2112390-2,117.22,2100197 - British Gas Trading Ltd,Electricity Nov 13
Tendring DC,http://statistics.data.gov.uk/id/local-authority-district/22UN,Life Opportunities,7600 - Tourist Information Centres,2304 - Energy Costs - Electricity,26/11/2013,2112390-3,12.06,2100197 - British Gas Trading Ltd,Electricity Nov 13
Tendring DC,http://statistics.data.gov.uk/id/local-authority-district/22UN,Life Opportunities,6080 - Shops & Kiosks,2304 - Energy Costs - Electricity,26/11/2013,2112390-4,15.53,2100197 - British Gas Trading Ltd,Electricity Nov 13
Tendring DC,http://statistics.data.gov.uk/id/local-authority-district/22UN,Life Opportunities,5820 - Harwich Sports Centre,2304 - Energy Costs - Electricity,26/11/2013,2112390-5,412.42,2100197 - British Gas Trading Ltd,Electricity Nov 13
Tendring DC,http://statistics.data.gov.uk/id/local-authority-district/22UN,Life Opportunities,5860 - Manningtree Sports Centre,2304 - Energy Costs - Electricity,26/11/2013,2112390-6,706.27,2100197 - British Gas Trading Ltd,Electricity Nov 13
Tendring DC,http://statistics.data.gov.uk/id/local-authority-district/22UN,Life Opportunities,1880 - Office Accommodation Expenses,2304 - Energy Costs - Electricity,26/11/2013,2112391-1,85.25,2100197 - British Gas Trading Ltd,Britishg Gas Oct 13
Tendring DC,http://statistics.data.gov.uk/id/local-authority-district/22UN,Life Opportunities,1880 - Office Accommodation Expenses,2304 - Energy Costs - Electricity,26/11/2013,2112391-10,1093.87,2100197 - British Gas Trading Ltd,Britishg Gas Oct 13
Tendring DC,http://statistics.data.gov.uk/id/local-authority-district/22UN,Life Opportunities,1880 - Office Accommodation Expenses,2304 - Energy Costs - Electricity,26/11/2013,2112391-11,165.31,2100197 - British Gas Trading Ltd,Britishg Gas Oct 13
Tendring DC,http://statistics.data.gov.uk/id/local-authority-district/22UN,Life Opportunities,1860 - Depots General,2304 - Energy Costs - Electricity,26/11/2013,2112391-2,65.74,2100197 - British Gas Trading Ltd,Britishg Gas Oct 13
Tendring DC,http://statistics.data.gov.uk/id/local-authority-district/22UN,Life Opportunities,1860 - Depots General,2304 - Energy Costs - Electricity,26/11/2013,2112391-3,1480.74,2100197 - British Gas Trading Ltd,Britishg Gas Oct 13
Tendring DC,http://statistics.data.gov.uk/id/local-authority-district/22UN,Life Opportunities,1860 - Depots General,2304 - Energy Costs - Electricity,26/11/2013,2112391-4,-878.1,2100197 - British Gas Trading Ltd,Britishg Gas Oct 13
Tendring DC,http://statistics.data.gov.uk/id/local-authority-district/22UN,Life Opportunities,1880 - Office Accommodation Expenses,2304 - Energy Costs - Electricity,26/11/2013,2112391-5,938,2100197 - British Gas Trading Ltd,Britishg Gas Oct 13
Tendring DC,http://statistics.data.gov.uk/id/local-authority-district/22UN,Life Opportunities,1880 - Office Accommodation Expenses,2304 - Energy Costs - Electricity,26/11/2013,2112391-6,138.9,2100197 - British Gas Trading Ltd,Britishg Gas Oct 13
Tendring DC,http://statistics.data.gov.uk/id/local-authority-district/22UN,Life Opportunities,1860 - Depots General,2304 - Energy Costs - Electricity,26/11/2013,2112391-7,486,2100197 - British Gas Trading Ltd,Britishg Gas Oct 13
Tendring DC,http://statistics.data.gov.uk/id/local-authority-district/22UN,Life Opportunities,1880 - Office Accommodation Expenses,2304 - Energy Costs - Electricity,26/11/2013,2112391-8,277.09,2100197 - British Gas Trading Ltd,Britishg Gas Oct 13
Tendring DC,http://statistics.data.gov.uk/id/local-authority-district/22UN,Life Opportunities,1880 - Office Accommodation Expenses,2304 - Energy Costs - Electricity,26/11/2013,2112391-9,1456.04,2100197 - British Gas Trading Ltd,Britishg Gas Oct 13
Tendring DC,http://statistics.data.gov.uk/id/local-authority-district/22UN,Life Opportunities,7000 - CCTV,4718 - Fixed Communication Lines,19/11/2013,1056296-1,180.91,2100168 - British Telecommunications plc,BT Bill - Barnes House Server Room
Tendring DC,http://statistics.data.gov.uk/id/local-authority-district/22UN,Life Opportunities,6740 - Careline,4710 - Telephones - Charges,26/11/2013,7009898-1,107.1,2100168 - British Telecommunications plc,BT BILL - FRINTON DISASTER RECOVERY
Tendring DC,http://statistics.data.gov.uk/id/local-authority-district/22UN,Life Opportunities,H880 - New Build Initiatives and Acquisitions,C200 - Main Contractor,19/11/2013,1056349-1,54710.66,2113591 - Brooks and Wood Ltd,HASTINGS PLACE NEW BUILD
Tendring DC,http://statistics.data.gov.uk/id/local-authority-district/22UN,Life Opportunities,5140 - Homelessness,4689 - Special Homelessness Projects Expenses,19/11/2013,1056194-1,11320,2102782 - Building Research Establishment Ltd,housing stock modelling 50%
Tendring DC,http://statistics.data.gov.uk/id/local-authority-district/22UN,Life Opportunities,5800 - Brightlingsea Sports Centre,4000 - Furniture,05/11/2013,1055882-1,94.53,2101624 - Bunzl,bunzl
Tendring DC,http://statistics.data.gov.uk/id/local-authority-district/22UN,Life Opportunities,8520 - Frinton & Walton Swimming Pool,2700 - Cleaning Materials,05/11/2013,1055883-1,50.55,2101624 - Bunzl,fwp - cleaning materials
Tendring DC,http://statistics.data.gov.uk/id/local-authority-district/22UN,Life Opportunities,5860 - Manningtree Sports Centre,2700 - Cleaning Materials,05/11/2013,1055884-1,320.99,2101624 - Bunzl,cleaning supplies
Tendring DC,http://statistics.data.gov.uk/id/local-authority-district/22UN,Life Opportunities,8540 - Leisure Centre Clacton,2700 - Cleaning Materials,05/11/2013,1055902-1,40.72,2101624 - Bunzl,Floor Pads
Tendring DC,http://statistics.data.gov.uk/id/local-authority-district/22UN,Life Opportunities,5360 - HRA - Sheltered Units,2700 - Cleaning Materials,05/11/2013,1055910-1,51.02,2101624 - Bunzl,KATE DANIELS BUNZL 1
Tendring DC,http://statistics.data.gov.uk/id/local-authority-district/22UN,Life Opportunities,5360 - HRA - Sheltered Units,2700 - Cleaning Materials,05/11/2013,1055912-1,55,2101624 - Bunzl,KATE DANIELS BUNZL 2
Tendring DC,http://statistics.data.gov.uk/id/local-authority-district/22UN,Life Opportunities,8540 - Leisure Centre Clacton,2700 - Cleaning Materials,19/11/2013,1056132-1,-40.72,2101624 - Bunzl,FLOOR PADS
Tendring DC,http://statistics.data.gov.uk/id/local-authority-district/22UN,Life Opportunities,8150 - Office Cleaning,4080 - Materials & Consumables,19/11/2013,1056171-1,183.38,2101624 - Bunzl,cleaning products
Tendring DC,http://statistics.data.gov.uk/id/local-authority-district/22UN,Life Opportunities,8150 - Office Cleaning,4080 - Materials & Consumables,19/11/2013,1056172-1,199.86,2101624 - Bunzl,cleaning products
Tendring DC,http://statistics.data.gov.uk/id/local-authority-district/22UN,Life Opportunities,8540 - Leisure Centre Clacton,2700 - Cleaning Materials,19/11/2013,1056186-1,286.58,2101624 - Bunzl,cleaning materials
Tendring DC,http://statistics.data.gov.uk/id/local-authority-district/22UN,Life Opportunities,8540 - Leisure Centre Clacton,2700 - Cleaning Materials,19/11/2013,1056221-1,70.52,2101624 - Bunzl,clean materials
Tendring DC,http://statistics.data.gov.uk/id/local-authority-district/22UN,Life Opportunities,8540 - Leisure Centre Clacton,2700 - Cleaning Materials,19/11/2013,1056222-1,10.72,2101624 - Bunzl,hoover bags
Tendring DC,http://statistics.data.gov.uk/id/local-authority-district/22UN,Life Opportunities,8540 - Leisure Centre Clacton,2700 - Cleaning Materials,19/11/2013,1056223-1,109.47,2101624 - Bunzl,clean materials
Tendring DC,http://statistics.data.gov.uk/id/local-authority-district/22UN,Life Opportunities,8540 - Leisure Centre Clacton,2700 - Cleaning Materials,12/11/2013,2112134-1,20.36,2101624 - Bunzl,Floor Pads
Tendring DC,http://statistics.data.gov.uk/id/local-authority-district/22UN,Life Opportunities,5360 - HRA - Sheltered Units,2700 - Cleaning Materials,12/11/2013,2112154-1,23.96,2101624 - Bunzl,Buckets & Mop Heads
Tendring DC,http://statistics.data.gov.uk/id/local-authority-district/22UN,Life Opportunities,8150 - Office Cleaning,4080 - Materials & Consumables,12/11/2013,2112192-1,553.6,REDACTED PERSONAL DATA,REDACTED PERSONAL DATA
Tendring DC,http://statistics.data.gov.uk/id/local-authority-district/22UN,Life Opportunities,8520 - Frinton & Walton Swimming Pool,2700 - Cleaning Materials,26/11/2013,7009758-1,144.77,2101624 - Bunzl,FWSP - BUNZL
Tendring DC,http://statistics.data.gov.uk/id/local-authority-district/22UN,Life Opportunities,6160 - Princes Theatre,2100 - Building Repairs,19/11/2013,1056239-1,85.58,2100280 - C H Lindsey & Son Ltd,repairs to theatre boiler
Tendring DC,http://statistics.data.gov.uk/id/local-authority-district/22UN,Life Opportunities,8540 - Leisure Centre Clacton,2100 - Building Repairs,26/11/2013,2112418-1,497,2100280 - C H Lindsey & Son Ltd,Repair Pipe Above Sauna
Tendring DC,http://statistics.data.gov.uk/id/local-authority-district/22UN,Life Opportunities,6160 - Princes Theatre,4105 - Bar/Catering Expenses,12/11/2013,2112299-1,35,2112687 - Cabana Soft Drinks (Essex) Ltd,Soft Drinks for Theatre
Tendring DC,http://statistics.data.gov.uk/id/local-authority-district/22UN,Life Opportunities,6160 - Princes Theatre,4105 - Bar/Catering Expenses,12/11/2013,2112300-1,140,2112687 - Cabana Soft Drinks (Essex) Ltd,Soft Drinks for Theatre
Tendring DC,http://statistics.data.gov.uk/id/local-authority-district/22UN,Life Opportunities,5240 - HRA - Managing Tenancies,5249 - Housing ASB Expenses,26/11/2013,7009745-1,713,2107321 - Campbell Associates,ACOUSTIC CALIBRATOR
Tendring DC,http://statistics.data.gov.uk/id/local-authority-district/22UN,Life Opportunities,8540 - Leisure Centre Clacton,4400 - Maintenance Under Service Agreements,12/11/2013,2112136-1,12.27,2100281 - Cannon Hygiene,Add Bin 17/10/13 - 31/12/13
Tendring DC,http://statistics.data.gov.uk/id/local-authority-district/22UN,Life Opportunities,8540 - Leisure Centre Clacton,4400 - Maintenance Under Service Agreements,26/11/2013,2112381-1,318.36,2100281 - Cannon Hygiene,Oct - Dec
Tendring DC,http://statistics.data.gov.uk/id/local-authority-district/22UN,Life Opportunities,1650 - Building Services Service Unit,4400 - Maintenance Under Service Agreements,19/11/2013,1056232-1,0.32,2100291 - Canon (UK) Ltd,1xcopy october 13
Tendring DC,http://statistics.data.gov.uk/id/local-authority-district/22UN,Life Opportunities,1650 - Building Services Service Unit,4400 - Maintenance Under Service Agreements,19/11/2013,1056233-1,48.6,2100291 - Canon (UK) Ltd,dec service
Tendring DC,http://statistics.data.gov.uk/id/local-authority-district/22UN,Life Opportunities,"1580 - Benefits, Revenues and Customer Contact SU",3312 - Car Allowances - Car Hire,12/11/2013,1056061-1,25,2104746 - CC Hire,car hire for court oct 13
Tendring DC,http://statistics.data.gov.uk/id/local-authority-district/22UN,Life Opportunities,"1580 - Benefits, Revenues and Customer Contact SU",3062 - Running Costs - Petrol,12/11/2013,1056061-2,5.83,2104746 - CC Hire,car hire for court oct 13
Tendring DC,http://statistics.data.gov.uk/id/local-authority-district/22UN,Life Opportunities,5260 - HRA - Rent Collection And Accounting,4462 - Bailiffs and Tracing Agent Fees re debt recovery,26/11/2013,7009754-1,1.87,2100244 - Charter Mercantile (uk) ltd,COMMISSION COSTS RE LAURA PERCIVAL
Tendring DC,http://statistics.data.gov.uk/id/local-authority-district/22UN,Life Opportunities,5480 - HRA - Repair & Maintenance,2017 - Mechanical Equipment /Extract Fans,05/11/2013,1055886-1,699,2100858 - Chelmer Electrical Ltd,annual service of hydroboils in 9 sheltered hsg units
Tendring DC,http://statistics.data.gov.uk/id/local-authority-district/22UN,Life Opportunities,5480 - HRA - Repair & Maintenance,2017 - Mechanical Equipment /Extract Fans,19/11/2013,1056291-1,758.5,2100858 - Chelmer Electrical Ltd,1-28 Groom House
Tendring DC,http://statistics.data.gov.uk/id/local-authority-district/22UN,Life Opportunities,8540 - Leisure Centre Clacton,4200 - Clothing & Uniforms,12/11/2013,1056079-1,56.25,2100205 - Chelmsford Safety Supplies Ltd,safety uniform
Tendring DC,http://statistics.data.gov.uk/id/local-authority-district/22UN,Life Opportunities,5220 - HRA - Policy & Management,5253 - HRA Health & Safety Expenses,19/11/2013,1056230-1,38.5,2100205 - Chelmsford Safety Supplies Ltd,claret boots
Tendring DC,http://statistics.data.gov.uk/id/local-authority-district/22UN,Life Opportunities,5220 - HRA - Policy & Management,5253 - HRA Health & Safety Expenses,12/11/2013,2112113-1,56.12,2100205 - Chelmsford Safety Supplies Ltd,Dr Marten size 8
Tendring DC,http://statistics.data.gov.uk/id/local-authority-district/22UN,Life Opportunities,6355 - Community Activity Network,4597 - Hired Services - Payments to Contractors,12/11/2013,1056076-1,780,2113428 - Chelsea FC Foundation,sportivate on the beach 2013
Tendring DC,http://statistics.data.gov.uk/id/local-authority-district/22UN,Life Opportunities,5360 - HRA - Sheltered Units,4400 - Maintenance Under Service Agreements,19/11/2013,1056216-1,912,2113346 - Chroma Vision Ltd,housing scheme audit
Tendring DC,http://statistics.data.gov.uk/id/local-authority-district/22UN,Life Opportunities,6160 - Princes Theatre,5308 - Ice Cream,05/11/2013,1055905-1,46.8,2108623 - CICC Ltd,ICE CREAM FOR THEATRE
Tendring DC,http://statistics.data.gov.uk/id/local-authority-district/22UN,Life Opportunities,6160 - Princes Theatre,5308 - Ice Cream,12/11/2013,1056111-1,196.71,2108623 - CICC Ltd,ict cream for theatre
Tendring DC,http://statistics.data.gov.uk/id/local-authority-district/22UN,Life Opportunities,6160 - Princes Theatre,5308 - Ice Cream,12/11/2013,1056112-1,46.8,2108623 - CICC Ltd,ice cream for theatre
Tendring DC,http://statistics.data.gov.uk/id/local-authority-district/22UN,Life Opportunities,6160 - Princes Theatre,5308 - Ice Cream,19/11/2013,1056131-1,-16.22,2108623 - CICC Ltd,ICE CREAMS FOR THEATRE
Tendring DC,http://statistics.data.gov.uk/id/local-authority-district/22UN,Life Opportunities,6160 - Princes Theatre,5308 - Ice Cream,19/11/2013,1056147-1,44.76,2108623 - CICC Ltd,ice cream for theatre
Tendring DC,http://statistics.data.gov.uk/id/local-authority-district/22UN,Life Opportunities,6160 - Princes Theatre,5308 - Ice Cream,19/11/2013,1056148-1,228.62,2108623 - CICC Ltd,ice cream for theatre
Tendring DC,http://statistics.data.gov.uk/id/local-authority-district/22UN,Life Opportunities,6160 - Princes Theatre,5308 - Ice Cream,19/11/2013,1056149-1,50.32,2108623 - CICC Ltd,ice cream for theatre
Tendring DC,http://statistics.data.gov.uk/id/local-authority-district/22UN,Life Opportunities,6160 - Princes Theatre,5308 - Ice Cream,19/11/2013,1056150-1,284.89,2108623 - CICC Ltd,ice cream for theatre
Tendring DC,http://statistics.data.gov.uk/id/local-authority-district/22UN,Life Opportunities,6160 - Princes Theatre,5308 - Ice Cream,19/11/2013,1056150-2,14.55,2108623 - CICC Ltd,ice cream for theatre
Tendring DC,http://statistics.data.gov.uk/id/local-authority-district/22UN,Life Opportunities,6160 - Princes Theatre,5308 - Ice Cream,12/11/2013,2112261-1,-39,2108623 - CICC Ltd,Ice Creams for Theatre Cr
Tendring DC,http://statistics.data.gov.uk/id/local-authority-district/22UN,Life Opportunities,8510 - Dovercourt Swimming Pool & All Weather Facilities,2100 - Building Repairs,19/11/2013,1052862-1,-6.39,2100267 - City Electrical Factors Ltd Anglia Division,DOVERCOURT POOL
Tendring DC,http://statistics.data.gov.uk/id/local-authority-district/22UN,Life Opportunities,1880 - Office Accommodation Expenses,2100 - Building Repairs,19/11/2013,1056294-1,945.02,2100267 - City Electrical Factors Ltd Anglia Division,Radiator x 5
Tendring DC,http://statistics.data.gov.uk/id/local-authority-district/22UN,Life Opportunities,5800 - Brightlingsea Sports Centre,4000 - Furniture,05/11/2013,1055885-1,50,2100218 - Clacton Electronics Ltd,clacton electronics ltd
Tendring DC,http://statistics.data.gov.uk/id/local-authority-district/22UN,Life Opportunities,5960 - Recreation Grounds,9272 - Pitch Bookings,19/11/2013,2112369-1,73.13,2111591 - Clacton Sports Club,Vista Changing Room Hire Sept/Oct 2013
Tendring DC,http://statistics.data.gov.uk/id/local-authority-district/22UN,Life Opportunities,"1580 - Benefits, Revenues and Customer Contact SU",4461 - Court Fees,03/11/2013,1056354-1,3146,2100269 - Co operative Bank plc,H M COURTS
Tendring DC,http://statistics.data.gov.uk/id/local-authority-district/22UN,Life Opportunities,5220 - HRA - Policy & Management,5930 - Business Planning Expenses,19/11/2013,7700733-1,5000,2112228 - Colchester Borough Council,BHG 2014/15
Tendring DC,http://statistics.data.gov.uk/id/local-authority-district/22UN,Life Opportunities,"1580 - Benefits, Revenues and Customer Contact SU",4462 - Bailiffs and Tracing Agent Fees re debt recovery,12/11/2013,1056052-1,5,2100381 - Collect Services Ltd,VAT on fees collected C/t
Tendring DC,http://statistics.data.gov.uk/id/local-authority-district/22UN,Life Opportunities,"1580 - Benefits, Revenues and Customer Contact SU",4462 - Bailiffs and Tracing Agent Fees re debt recovery,12/11/2013,1056052-2,-5,2100381 - Collect Services Ltd,VAT on fees collected C/t
Tendring DC,http://statistics.data.gov.uk/id/local-authority-district/22UN,Life Opportunities,"1580 - Benefits, Revenues and Customer Contact SU",4462 - Bailiffs and Tracing Agent Fees re debt recovery,12/11/2013,1056052-3,2816.56,2100381 - Collect Services Ltd,VAT on fees collected C/t
Tendring DC,http://statistics.data.gov.uk/id/local-authority-district/22UN,Life Opportunities,"1580 - Benefits, Revenues and Customer Contact SU",4462 - Bailiffs and Tracing Agent Fees re debt recovery,12/11/2013,1056052-4,-2816.56,2100381 - Collect Services Ltd,VAT on fees collected C/t
Tendring DC,http://statistics.data.gov.uk/id/local-authority-district/22UN,Life Opportunities,"1580 - Benefits, Revenues and Customer Contact SU",4462 - Bailiffs and Tracing Agent Fees re debt recovery,12/11/2013,1056053-1,388,2100381 - Collect Services Ltd,vat on fees nndr
Tendring DC,http://statistics.data.gov.uk/id/local-authority-district/22UN,Life Opportunities,"1580 - Benefits, Revenues and Customer Contact SU",4462 - Bailiffs and Tracing Agent Fees re debt recovery,12/11/2013,1056053-2,-388,2100381 - Collect Services Ltd,vat on fees nndr
Tendring DC,http://statistics.data.gov.uk/id/local-authority-district/22UN,Life Opportunities,"1580 - Benefits, Revenues and Customer Contact SU",4462 - Bailiffs and Tracing Agent Fees re debt recovery,19/11/2013,2112332-1,656,2100381 - Collect Services Ltd,VAT on fees Collected NNDR
Tendring DC,http://statistics.data.gov.uk/id/local-authority-district/22UN,Life Opportunities,"1580 - Benefits, Revenues and Customer Contact SU",4462 - Bailiffs and Tracing Agent Fees re debt recovery,19/11/2013,2112332-2,-656,2100381 - Collect Services Ltd,VAT on fees Collected NNDR
Tendring DC,http://statistics.data.gov.uk/id/local-authority-district/22UN,Life Opportunities,"1580 - Benefits, Revenues and Customer Contact SU",4462 - Bailiffs and Tracing Agent Fees re debt recovery,19/11/2013,2112333-1,5,2100381 - Collect Services Ltd,Vat on fees Collected CT
Tendring DC,http://statistics.data.gov.uk/id/local-authority-district/22UN,Life Opportunities,"1580 - Benefits, Revenues and Customer Contact SU",4462 - Bailiffs and Tracing Agent Fees re debt recovery,19/11/2013,2112333-2,-5,2100381 - Collect Services Ltd,Vat on fees Collected CT
Tendring DC,http://statistics.data.gov.uk/id/local-authority-district/22UN,Life Opportunities,"1580 - Benefits, Revenues and Customer Contact SU",4462 - Bailiffs and Tracing Agent Fees re debt recovery,19/11/2013,2112333-3,28.75,2100381 - Collect Services Ltd,Vat on fees Collected CT
Tendring DC,http://statistics.data.gov.uk/id/local-authority-district/22UN,Life Opportunities,"1580 - Benefits, Revenues and Customer Contact SU",4462 - Bailiffs and Tracing Agent Fees re debt recovery,19/11/2013,2112333-4,-28.75,2100381 - Collect Services Ltd,Vat on fees Collected CT
Tendring DC,http://statistics.data.gov.uk/id/local-authority-district/22UN,Life Opportunities,"1580 - Benefits, Revenues and Customer Contact SU",4462 - Bailiffs and Tracing Agent Fees re debt recovery,19/11/2013,2112333-5,2990.39,2100381 - Collect Services Ltd,Vat on fees Collected CT
Tendring DC,http://statistics.data.gov.uk/id/local-authority-district/22UN,Life Opportunities,"1580 - Benefits, Revenues and Customer Contact SU",4462 - Bailiffs and Tracing Agent Fees re debt recovery,19/11/2013,2112333-6,-2990.39,2100381 - Collect Services Ltd,Vat on fees Collected CT
Tendring DC,http://statistics.data.gov.uk/id/local-authority-district/22UN,Life Opportunities,"1580 - Benefits, Revenues and Customer Contact SU",4462 - Bailiffs and Tracing Agent Fees re debt recovery,26/11/2013,2112384-1,5,2100381 - Collect Services Ltd,Vat on Fees Collected CT
Tendring DC,http://statistics.data.gov.uk/id/local-authority-district/22UN,Life Opportunities,"1580 - Benefits, Revenues and Customer Contact SU",4462 - Bailiffs and Tracing Agent Fees re debt recovery,26/11/2013,2112384-2,-5,2100381 - Collect Services Ltd,Vat on Fees Collected CT
Tendring DC,http://statistics.data.gov.uk/id/local-authority-district/22UN,Life Opportunities,"1580 - Benefits, Revenues and Customer Contact SU",4462 - Bailiffs and Tracing Agent Fees re debt recovery,26/11/2013,2112384-3,13.31,2100381 - Collect Services Ltd,Vat on Fees Collected CT
Tendring DC,http://statistics.data.gov.uk/id/local-authority-district/22UN,Life Opportunities,"1580 - Benefits, Revenues and Customer Contact SU",4462 - Bailiffs and Tracing Agent Fees re debt recovery,26/11/2013,2112384-4,-13.31,2100381 - Collect Services Ltd,Vat on Fees Collected CT
Tendring DC,http://statistics.data.gov.uk/id/local-authority-district/22UN,Life Opportunities,"1580 - Benefits, Revenues and Customer Contact SU",4462 - Bailiffs and Tracing Agent Fees re debt recovery,26/11/2013,2112384-5,3337.89,2100381 - Collect Services Ltd,Vat on Fees Collected CT
Tendring DC,http://statistics.data.gov.uk/id/local-authority-district/22UN,Life Opportunities,"1580 - Benefits, Revenues and Customer Contact SU",4462 - Bailiffs and Tracing Agent Fees re debt recovery,26/11/2013,2112384-6,-3337.89,2100381 - Collect Services Ltd,Vat on Fees Collected CT
Tendring DC,http://statistics.data.gov.uk/id/local-authority-district/22UN,Life Opportunities,"1580 - Benefits, Revenues and Customer Contact SU",4462 - Bailiffs and Tracing Agent Fees re debt recovery,26/11/2013,2112385-1,757,2100381 - Collect Services Ltd,Vat on fees Collected NNDR
Tendring DC,http://statistics.data.gov.uk/id/local-authority-district/22UN,Life Opportunities,"1580 - Benefits, Revenues and Customer Contact SU",4462 - Bailiffs and Tracing Agent Fees re debt recovery,26/11/2013,2112385-2,-757,2100381 - Collect Services Ltd,Vat on fees Collected NNDR
Tendring DC,http://statistics.data.gov.uk/id/local-authority-district/22UN,Life Opportunities,9900 - General Fund Balance Sheet,B863 - Bailiff Payments Holding Account,12/11/2013,1056122-1,1894,REDACTED COMMERCIAL CONFIDENTIALITY,REDACTED COMMERCIAL CONFIDENTIALITY
Tendring DC,http://statistics.data.gov.uk/id/local-authority-district/22UN,Life Opportunities,9900 - General Fund Balance Sheet,B863 - Bailiff Payments Holding Account,19/11/2013,1056337-1,1888,REDACTED COMMERCIAL CONFIDENTIALITY,REDACTED COMMERCIAL CONFIDENTIALITY
Tendring DC,http://statistics.data.gov.uk/id/local-authority-district/22UN,Life Opportunities,9900 - General Fund Balance Sheet,B863 - Bailiff Payments Holding Account,26/11/2013,1056432-1,1554,REDACTED COMMERCIAL CONFIDENTIALITY,REDACTED COMMERCIAL CONFIDENTIALITY
Tendring DC,http://statistics.data.gov.uk/id/local-authority-district/22UN,Life Opportunities,9900 - General Fund Balance Sheet,B863 - Bailiff Payments Holding Account,05/11/2013,2112072-1,2536.5,REDACTED COMMERCIAL CONFIDENTIALITY,REDACTED COMMERCIAL CONFIDENTIALITY
Tendring DC,http://statistics.data.gov.uk/id/local-authority-district/22UN,Life Opportunities,"1580 - Benefits, Revenues and Customer Contact SU",4469 - Other Non - Legal Professional Services,01/11/2013,1056441-1,5,2105795 - Companies House,PRODUCTS + SERVICES
Tendring DC,http://statistics.data.gov.uk/id/local-authority-district/22UN,Life Opportunities,5800 - Brightlingsea Sports Centre,2100 - Building Repairs,19/11/2013,1056182-1,115.42,2113429 - CONCEPT2,concept 2
Tendring DC,http://statistics.data.gov.uk/id/local-authority-district/22UN,Life Opportunities,5860 - Manningtree Sports Centre,4040 - Equipment & Tools,26/11/2013,7009835-1,135,2112705 - Continental Sports Ltd,GYMNASTICS EQUIPMENT
Tendring DC,http://statistics.data.gov.uk/id/local-authority-district/22UN,Life Opportunities,1860 - Depots General,2100 - Building Repairs,26/11/2013,1056399-1,38,2100314 - Cooper & Brome (Plumbing & Heating) Ltd,NORTHBOURNE 5/11/13
Tendring DC,http://statistics.data.gov.uk/id/local-authority-district/22UN,Life Opportunities,5820 - Harwich Sports Centre,4597 - Hired Services - Payments to Contractors,26/11/2013,1056400-1,160,2100314 - Cooper & Brome (Plumbing & Heating) Ltd,BOILER SERVICE
Tendring DC,http://statistics.data.gov.uk/id/local-authority-district/22UN,Life Opportunities,H920 - Disabled Facilities Grants,C400 - Grant payments,05/11/2013,2112083-1,2289.25,REDACTED PERSONAL DATA,REDACTED PERSONAL DATA
Tendring DC,http://statistics.data.gov.uk/id/local-authority-district/22UN,Life Opportunities,H920 - Disabled Facilities Grants,C400 - Grant payments,05/11/2013,2112084-1,1950.1,REDACTED PERSONAL DATA,REDACTED PERSONAL DATA
Tendring DC,http://statistics.data.gov.uk/id/local-authority-district/22UN,Life Opportunities,H920 - Disabled Facilities Grants,C400 - Grant payments,05/11/2013,2112088-1,4671.55,REDACTED PERSONAL DATA,REDACTED PERSONAL DATA
Tendring DC,http://statistics.data.gov.uk/id/local-authority-district/22UN,Life Opportunities,5340 - HRA - Communal Central Heating,2308 - Energy Costs - Gas (Including LPG),26/11/2013,2112382-1,6197.73,2104620 - Corona Energy Retail 4 Limited,SHU Oct 13
Tendring DC,http://statistics.data.gov.uk/id/local-authority-district/22UN,Life Opportunities,5360 - HRA - Sheltered Units,2308 - Energy Costs - Gas (Including LPG),26/11/2013,2112382-2,32.73,2104620 - Corona Energy Retail 4 Limited,SHU Oct 13
Tendring DC,http://statistics.data.gov.uk/id/local-authority-district/22UN,Life Opportunities,1860 - Depots General,2308 - Energy Costs - Gas (Including LPG),26/11/2013,2112383-1,167.57,2104620 - Corona Energy Retail 4 Limited,Corona Gas - Oct 13
Tendring DC,http://statistics.data.gov.uk/id/local-authority-district/22UN,Life Opportunities,1880 - Office Accommodation Expenses,2308 - Energy Costs - Gas (Including LPG),26/11/2013,2112383-2,38.42,2104620 - Corona Energy Retail 4 Limited,Corona Gas - Oct 13
Tendring DC,http://statistics.data.gov.uk/id/local-authority-district/22UN,Life Opportunities,1880 - Office Accommodation Expenses,2308 - Energy Costs - Gas (Including LPG),26/11/2013,2112383-3,100.49,2104620 - Corona Energy Retail 4 Limited,Corona Gas - Oct 13
Tendring DC,http://statistics.data.gov.uk/id/local-authority-district/22UN,Life Opportunities,1880 - Office Accommodation Expenses,2308 - Energy Costs - Gas (Including LPG),26/11/2013,2112383-4,26.02,2104620 - Corona Energy Retail 4 Limited,Corona Gas - Oct 13
Tendring DC,http://statistics.data.gov.uk/id/local-authority-district/22UN,Life Opportunities,1880 - Office Accommodation Expenses,2308 - Energy Costs - Gas (Including LPG),26/11/2013,2112383-5,696.57,2104620 - Corona Energy Retail 4 Limited,Corona Gas - Oct 13
Tendring DC,http://statistics.data.gov.uk/id/local-authority-district/22UN,Life Opportunities,6160 - Princes Theatre,2308 - Energy Costs - Gas (Including LPG),26/11/2013,2112383-6,77.4,2104620 - Corona Energy Retail 4 Limited,Corona Gas - Oct 13
Tendring DC,http://statistics.data.gov.uk/id/local-authority-district/22UN,Life Opportunities,5140 - Homelessness,4683 - Other Homelessness Expenses,19/11/2013,2112362-1,490,REDACTED PERSONAL DATA,REDACTED PERSONAL DATA
Tendring DC,http://statistics.data.gov.uk/id/local-authority-district/22UN,Life Opportunities,8520 - Frinton & Walton Swimming Pool,2100 - Building Repairs,19/11/2013,1056163-1,844.8,2100183 - CR Services,fwsp - cr services
Tendring DC,http://statistics.data.gov.uk/id/local-authority-district/22UN,Life Opportunities,5360 - HRA - Sheltered Units,4710 - Telephones - Charges,05/11/2013,1055834-1,371.97,2106704 - Daisy Communications Ltd,daisy bill - september 2013
Tendring DC,http://statistics.data.gov.uk/id/local-authority-district/22UN,Life Opportunities,5360 - HRA - Sheltered Units,4710 - Telephones - Charges,26/11/2013,7009899-1,304.47,2106704 - Daisy Communications Ltd,DAISY BILL - OCTOBER 2013
Tendring DC,http://statistics.data.gov.uk/id/local-authority-district/22UN,Life Opportunities,6160 - Princes Theatre,4597 - Hired Services - Payments to Contractors,12/11/2013,1056102-1,3.28,2100397 - Danes of Colchester Ltd,dry cleaning for theatre
Tendring DC,http://statistics.data.gov.uk/id/local-authority-district/22UN,Life Opportunities,6160 - Princes Theatre,4597 - Hired Services - Payments to Contractors,12/11/2013,2112301-1,27.5,2100397 - Danes of Colchester Ltd,Dry Cleaning
Tendring DC,http://statistics.data.gov.uk/id/local-authority-district/22UN,Life Opportunities,5880 - Management Of Sport & Leisure Facilities,5166 - Marketing and Promotion,26/11/2013,2112420-1,288,2103510 - Direct Solutions,Membership Agreements
Tendring DC,http://statistics.data.gov.uk/id/local-authority-district/22UN,Life Opportunities,5880 - Management Of Sport & Leisure Facilities,5166 - Marketing and Promotion,26/11/2013,2112421-1,300,2103510 - Direct Solutions,Rebranding Design Logos
Tendring DC,http://statistics.data.gov.uk/id/local-authority-district/22UN,Life Opportunities,7560 - Tourism Publications,4668 - Production Expenses,12/11/2013,2112191-1,150,REDACTED PERSONAL DATA,REDACTED PERSONAL DATA
Tendring DC,http://statistics.data.gov.uk/id/local-authority-district/22UN,Life Opportunities,5480 - HRA - Repair & Maintenance,2067 - Other Minor Equipment  Servicing (Hoists Etc),26/11/2013,7009741-1,231.12,2100490 - DORMA UK Ltd - Service Division,DORMA AUTO SWING 1-35 GREENFIELDS
Tendring DC,http://statistics.data.gov.uk/id/local-authority-district/22UN,Life Opportunities,5480 - HRA - Repair & Maintenance,2067 - Other Minor Equipment  Servicing (Hoists Etc),26/11/2013,7009742-1,231.12,2100490 - DORMA UK Ltd - Service Division,DORMA AUTOSWING VYNTONER HOUSE
Tendring DC,http://statistics.data.gov.uk/id/local-authority-district/22UN,Life Opportunities,H920 - Disabled Facilities Grants,C400 - Grant payments,19/11/2013,2112348-1,450,REDACTED PERSONAL DATA,REDACTED PERSONAL DATA
Tendring DC,http://statistics.data.gov.uk/id/local-authority-district/22UN,Life Opportunities,5860 - Manningtree Sports Centre,4597 - Hired Services - Payments to Contractors,19/11/2013,1056305-1,125,2112824 - Dynamic Stability,pilates sessions
Tendring DC,http://statistics.data.gov.uk/id/local-authority-district/22UN,Life Opportunities,5820 - Harwich Sports Centre,4597 - Hired Services - Payments to Contractors,19/11/2013,1056309-1,125,2112824 - Dynamic Stability,pilates classes
Tendring DC,http://statistics.data.gov.uk/id/local-authority-district/22UN,Life Opportunities,5480 - HRA - Repair & Maintenance,2304 - Energy Costs - Electricity,19/11/2013,1056313-1,10.9,REDACTED PERSONAL DATA,REDACTED PERSONAL DATA
Tendring DC,http://statistics.data.gov.uk/id/local-authority-district/22UN,Life Opportunities,7560 - Tourism Publications,4668 - Production Expenses,05/11/2013,1055907-1,120,2100404 - Easy Tigernet,2839
Tendring DC,http://statistics.data.gov.uk/id/local-authority-district/22UN,Life Opportunities,8540 - Leisure Centre Clacton,2304 - Energy Costs - Electricity,19/11/2013,1056184-1,8313.17,2105146 - EDF Energy 1 Ltd,october
Tendring DC,http://statistics.data.gov.uk/id/local-authority-district/22UN,Life Opportunities,8540 - Leisure Centre Clacton,2304 - Energy Costs - Electricity,19/11/2013,1056184-2,7.24,2105146 - EDF Energy 1 Ltd,october
Tendring DC,http://statistics.data.gov.uk/id/local-authority-district/22UN,Life Opportunities,8540 - Leisure Centre Clacton,2304 - Energy Costs - Electricity,19/11/2013,1056200-1,6983.77,2105146 - EDF Energy 1 Ltd,september
Tendring DC,http://statistics.data.gov.uk/id/local-authority-district/22UN,Life Opportunities,8540 - Leisure Centre Clacton,2304 - Energy Costs - Electricity,19/11/2013,1056200-2,2.52,2105146 - EDF Energy 1 Ltd,september
Tendring DC,http://statistics.data.gov.uk/id/local-authority-district/22UN,Life Opportunities,8510 - Dovercourt Swimming Pool & All Weather Facilities,2304 - Energy Costs - Electricity,19/11/2013,1056315-1,3301.98,2105146 - EDF Energy 1 Ltd,dovercourt pool - oct elec
Tendring DC,http://statistics.data.gov.uk/id/local-authority-district/22UN,Life Opportunities,1880 - Office Accommodation Expenses,2304 - Energy Costs - Electricity,26/11/2013,7009877-1,4901.09,2105146 - EDF Energy 1 Ltd,EDF TOWN HALL - OCT 13
Tendring DC,http://statistics.data.gov.uk/id/local-authority-district/22UN,Life Opportunities,6160 - Princes Theatre,2304 - Energy Costs - Electricity,26/11/2013,7009877-2,544.57,2105146 - EDF Energy 1 Ltd,EDF TOWN HALL - OCT 13
Tendring DC,http://statistics.data.gov.uk/id/local-authority-district/22UN,Life Opportunities,6160 - Princes Theatre,4622 - Hired Services - Artistes and Production Companies,05/11/2013,1055906-1,3650,2111197 - Entertainers Management Ltd,BUDDY HOLLY
Tendring DC,http://statistics.data.gov.uk/id/local-authority-district/22UN,Life Opportunities,5360 - HRA - Sheltered Units,2304 - Energy Costs - Electricity,05/11/2013,1055909-1,47.48,REDACTED PERSONAL DATA,REDACTED PERSONAL DATA
Tendring DC,http://statistics.data.gov.uk/id/local-authority-district/22UN,Life Opportunities,5360 - HRA - Sheltered Units,2304 - Energy Costs - Electricity,05/11/2013,1055952-1,41.54,REDACTED PERSONAL DATA,REDACTED PERSONAL DATA
Tendring DC,http://statistics.data.gov.uk/id/local-authority-district/22UN,Life Opportunities,5360 - HRA - Sheltered Units,2304 - Energy Costs - Electricity,19/11/2013,1056231-1,51.44,REDACTED PERSONAL DATA,REDACTED PERSONAL DATA
Tendring DC,http://statistics.data.gov.uk/id/local-authority-district/22UN,Life Opportunities,5360 - HRA - Sheltered Units,2304 - Energy Costs - Electricity,12/11/2013,2112287-1,70.99,REDACTED PERSONAL DATA,REDACTED PERSONAL DATA
Tendring DC,http://statistics.data.gov.uk/id/local-authority-district/22UN,Life Opportunities,5360 - HRA - Sheltered Units,2304 - Energy Costs - Electricity,12/11/2013,2112288-1,10.27,REDACTED PERSONAL DATA,REDACTED PERSONAL DATA
Tendring DC,http://statistics.data.gov.uk/id/local-authority-district/22UN,Life Opportunities,5360 - HRA - Sheltered Units,2304 - Energy Costs - Electricity,12/11/2013,2112289-1,20.75,REDACTED PERSONAL DATA,REDACTED PERSONAL DATA
Tendring DC,http://statistics.data.gov.uk/id/local-authority-district/22UN,Life Opportunities,5360 - HRA - Sheltered Units,2304 - Energy Costs - Electricity,12/11/2013,2112289-2,-3.04,REDACTED PERSONAL DATA,REDACTED PERSONAL DATA
Tendring DC,http://statistics.data.gov.uk/id/local-authority-district/22UN,Life Opportunities,5360 - HRA - Sheltered Units,2304 - Energy Costs - Electricity,12/11/2013,2112290-1,46.28,REDACTED PERSONAL DATA,REDACTED PERSONAL DATA
Tendring DC,http://statistics.data.gov.uk/id/local-authority-district/22UN,Life Opportunities,5360 - HRA - Sheltered Units,2304 - Energy Costs - Electricity,12/11/2013,2112291-1,46.84,REDACTED PERSONAL DATA,REDACTED PERSONAL DATA
Tendring DC,http://statistics.data.gov.uk/id/local-authority-district/22UN,Life Opportunities,5360 - HRA - Sheltered Units,2304 - Energy Costs - Electricity,12/11/2013,2112292-1,73.06,REDACTED PERSONAL DATA,REDACTED PERSONAL DATA
Tendring DC,http://statistics.data.gov.uk/id/local-authority-district/22UN,Life Opportunities,5360 - HRA - Sheltered Units,2304 - Energy Costs - Electricity,12/11/2013,2112293-1,97.39,REDACTED PERSONAL DATA,REDACTED PERSONAL DATA
Tendring DC,http://statistics.data.gov.uk/id/local-authority-district/22UN,Life Opportunities,5360 - HRA - Sheltered Units,2304 - Energy Costs - Electricity,12/11/2013,2112293-2,10,REDACTED PERSONAL DATA,REDACTED PERSONAL DATA
Tendring DC,http://statistics.data.gov.uk/id/local-authority-district/22UN,Life Opportunities,5360 - HRA - Sheltered Units,2304 - Energy Costs - Electricity,12/11/2013,2112294-1,47.48,REDACTED PERSONAL DATA,REDACTED PERSONAL DATA
Tendring DC,http://statistics.data.gov.uk/id/local-authority-district/22UN,Life Opportunities,5480 - HRA - Repair & Maintenance,2304 - Energy Costs - Electricity,12/11/2013,2112295-1,56.09,REDACTED PERSONAL DATA,REDACTED PERSONAL DATA
Tendring DC,http://statistics.data.gov.uk/id/local-authority-district/22UN,Life Opportunities,5480 - HRA - Repair & Maintenance,2304 - Energy Costs - Electricity,26/11/2013,7009863-1,17,2107644 - Eon,22 VH VOID
Tendring DC,http://statistics.data.gov.uk/id/local-authority-district/22UN,Life Opportunities,5480 - HRA - Repair & Maintenance,2304 - Energy Costs - Electricity,26/11/2013,7009864-1,18.56,2107644 - Eon,7 KD VOID
Tendring DC,http://statistics.data.gov.uk/id/local-authority-district/22UN,Life Opportunities,1230 - Private Sector Housing Service Unit,5490 - TDC Contribution to Gypsy Traveller Housing Needs,19/11/2013,1056314-1,7181,2100498 - Essex County Council,2013/14 essex traveller unit
Tendring DC,http://statistics.data.gov.uk/id/local-authority-district/22UN,Life Opportunities,5820 - Harwich Sports Centre,4597 - Hired Services - Payments to Contractors,19/11/2013,1056308-1,148.5,2105226 - Essex Inflatables,pipa test - bouncy castle
Tendring DC,http://statistics.data.gov.uk/id/local-authority-district/22UN,Life Opportunities,5860 - Manningtree Sports Centre,4040 - Equipment & Tools,19/11/2013,2112316-1,148.5,2105226 - Essex Inflatables,Bouncy Castle Test
Tendring DC,http://statistics.data.gov.uk/id/local-authority-district/22UN,Life Opportunities,8540 - Leisure Centre Clacton,2100 - Building Repairs,19/11/2013,1056250-1,121.6,2111548 - Essex Lift Services Ltd,lift repair
Tendring DC,http://statistics.data.gov.uk/id/local-authority-district/22UN,Life Opportunities,8540 - Leisure Centre Clacton,2100 - Building Repairs,12/11/2013,2112137-1,344.4,2111548 - Essex Lift Services Ltd,SPA Lift Repair
Tendring DC,http://statistics.data.gov.uk/id/local-authority-district/22UN,Life Opportunities,5480 - HRA - Repair & Maintenance,2057 - Fire Alarms Servicing,12/11/2013,1056115-1,175,2108583 - Firesite,mead house
Tendring DC,http://statistics.data.gov.uk/id/local-authority-district/22UN,Life Opportunities,5480 - HRA - Repair & Maintenance,2058 - Fire Alarms Repairs,12/11/2013,1056116-1,100,2108583 - Firesite,crooked elms
Tendring DC,http://statistics.data.gov.uk/id/local-authority-district/22UN,Life Opportunities,5480 - HRA - Repair & Maintenance,2058 - Fire Alarms Repairs,19/11/2013,1056157-1,890,2108583 - Firesite,greenfields
Tendring DC,http://statistics.data.gov.uk/id/local-authority-district/22UN,Life Opportunities,5480 - HRA - Repair & Maintenance,2058 - Fire Alarms Repairs,19/11/2013,1056158-1,95,2108583 - Firesite,belmans court
Tendring DC,http://statistics.data.gov.uk/id/local-authority-district/22UN,Life Opportunities,5480 - HRA - Repair & Maintenance,2058 - Fire Alarms Repairs,19/11/2013,1056159-1,50,2108583 - Firesite,honeycroft
Tendring DC,http://statistics.data.gov.uk/id/local-authority-district/22UN,Life Opportunities,5480 - HRA - Repair & Maintenance,2058 - Fire Alarms Repairs,12/11/2013,2112302-1,50,2108583 - Firesite,Greenfields
Tendring DC,http://statistics.data.gov.uk/id/local-authority-district/22UN,Life Opportunities,5480 - HRA - Repair & Maintenance,2057 - Fire Alarms Servicing,26/11/2013,7009755-1,110,2108583 - Firesite,SERVICING FIRE ALARM VYNTONER HOUSE
Tendring DC,http://statistics.data.gov.uk/id/local-authority-district/22UN,Life Opportunities,5480 - HRA - Repair & Maintenance,2057 - Fire Alarms Servicing,19/11/2013,7700734-1,110,2108583 - Firesite,HONEYCROFT
Tendring DC,http://statistics.data.gov.uk/id/local-authority-district/22UN,Life Opportunities,7600 - Tourist Information Centres,9356 - Commission Sales,12/11/2013,2112258-1,2948,REDACTED PERSONAL DATA,REDACTED PERSONAL DATA
Tendring DC,http://statistics.data.gov.uk/id/local-authority-district/22UN,Life Opportunities,7600 - Tourist Information Centres,9356 - Commission Sales,12/11/2013,2112258-2,-294.8,REDACTED PERSONAL DATA,REDACTED PERSONAL DATA
Tendring DC,http://statistics.data.gov.uk/id/local-authority-district/22UN,Life Opportunities,1242 - Corporate Director (Life Opportunities),1710 - Training - Central Department Budget,19/11/2013,1056161-1,190,2107351 - Frinton Training Services Ltd,first aid training x2
Tendring DC,http://statistics.data.gov.uk/id/local-authority-district/22UN,Life Opportunities,5140 - Homelessness,4683 - Other Homelessness Expenses,05/11/2013,2112079-1,275,REDACTED PERSONAL DATA,REDACTED PERSONAL DATA
Tendring DC,http://statistics.data.gov.uk/id/local-authority-district/22UN,Life Opportunities,5140 - Homelessness,4683 - Other Homelessness Expenses,19/11/2013,2112358-1,429,REDACTED PERSONAL DATA,REDACTED PERSONAL DATA
Tendring DC,http://statistics.data.gov.uk/id/local-authority-district/22UN,Life Opportunities,5140 - Homelessness,4683 - Other Homelessness Expenses,19/11/2013,2112359-1,349,REDACTED PERSONAL DATA,REDACTED PERSONAL DATA
Tendring DC,http://statistics.data.gov.uk/id/local-authority-district/22UN,Life Opportunities,"1580 - Benefits, Revenues and Customer Contact SU",4635 - Cash Collection Contract,26/11/2013,1056430-1,5,2101233 - G4S Cash Services (UK) Limited,CASH DELIVERY CHARGE OCT
Tendring DC,http://statistics.data.gov.uk/id/local-authority-district/22UN,Life Opportunities,"1580 - Benefits, Revenues and Customer Contact SU",4635 - Cash Collection Contract,26/11/2013,1056431-1,470.49,2101233 - G4S Cash Services (UK) Limited,G4S DEC 13
Tendring DC,http://statistics.data.gov.uk/id/local-authority-district/22UN,Life Opportunities,8560 - Happy Valley Recreation Ground Pitch & Putt,4635 - Cash Collection Contract,26/11/2013,1056431-10,69.57,2101233 - G4S Cash Services (UK) Limited,G4S DEC 13
Tendring DC,http://statistics.data.gov.uk/id/local-authority-district/22UN,Life Opportunities,5820 - Harwich Sports Centre,4635 - Cash Collection Contract,26/11/2013,1056431-11,69.57,2101233 - G4S Cash Services (UK) Limited,G4S DEC 13
Tendring DC,http://statistics.data.gov.uk/id/local-authority-district/22UN,Life Opportunities,8025 - Car Parks - Off St,4635 - Cash Collection Contract,26/11/2013,1056431-12,47.8,2101233 - G4S Cash Services (UK) Limited,G4S DEC 13
Tendring DC,http://statistics.data.gov.uk/id/local-authority-district/22UN,Life Opportunities,7600 - Tourist Information Centres,4635 - Cash Collection Contract,26/11/2013,1056431-13,65.66,2101233 - G4S Cash Services (UK) Limited,G4S DEC 13
Tendring DC,http://statistics.data.gov.uk/id/local-authority-district/22UN,Life Opportunities,5260 - HRA - Rent Collection And Accounting,4635 - Cash Collection Contract,26/11/2013,1056431-2,119.64,2101233 - G4S Cash Services (UK) Limited,G4S DEC 13
Tendring DC,http://statistics.data.gov.uk/id/local-authority-district/22UN,Life Opportunities,5260 - HRA - Rent Collection And Accounting,4635 - Cash Collection Contract,26/11/2013,1056431-3,19.58,2101233 - G4S Cash Services (UK) Limited,G4S DEC 13
Tendring DC,http://statistics.data.gov.uk/id/local-authority-district/22UN,Life Opportunities,"1580 - Benefits, Revenues and Customer Contact SU",4635 - Cash Collection Contract,26/11/2013,1056431-4,29.11,2101233 - G4S Cash Services (UK) Limited,G4S DEC 13
Tendring DC,http://statistics.data.gov.uk/id/local-authority-district/22UN,Life Opportunities,8025 - Car Parks - Off St,4635 - Cash Collection Contract,26/11/2013,1056431-5,68.11,2101233 - G4S Cash Services (UK) Limited,G4S DEC 13
Tendring DC,http://statistics.data.gov.uk/id/local-authority-district/22UN,Life Opportunities,8540 - Leisure Centre Clacton,4635 - Cash Collection Contract,26/11/2013,1056431-6,208.7,2101233 - G4S Cash Services (UK) Limited,G4S DEC 13
Tendring DC,http://statistics.data.gov.uk/id/local-authority-district/22UN,Life Opportunities,8510 - Dovercourt Swimming Pool & All Weather Facilities,4635 - Cash Collection Contract,26/11/2013,1056431-7,139.13,2101233 - G4S Cash Services (UK) Limited,G4S DEC 13
Tendring DC,http://statistics.data.gov.uk/id/local-authority-district/22UN,Life Opportunities,5800 - Brightlingsea Sports Centre,4635 - Cash Collection Contract,26/11/2013,1056431-8,69.57,2101233 - G4S Cash Services (UK) Limited,G4S DEC 13
Tendring DC,http://statistics.data.gov.uk/id/local-authority-district/22UN,Life Opportunities,8520 - Frinton & Walton Swimming Pool,4635 - Cash Collection Contract,26/11/2013,1056431-9,139.13,2101233 - G4S Cash Services (UK) Limited,G4S DEC 13
Tendring DC,http://statistics.data.gov.uk/id/local-authority-district/22UN,Life Opportunities,H920 - Disabled Facilities Grants,C400 - Grant payments,26/11/2013,1056362-1,2126.72,REDACTED PERSONAL DATA,REDACTED PERSONAL DATA
Tendring DC,http://statistics.data.gov.uk/id/local-authority-district/22UN,Life Opportunities,H920 - Disabled Facilities Grants,C400 - Grant payments,26/11/2013,1056363-1,4143.44,REDACTED PERSONAL DATA,REDACTED PERSONAL DATA
Tendring DC,http://statistics.data.gov.uk/id/local-authority-district/22UN,Life Opportunities,H920 - Disabled Facilities Grants,C400 - Grant payments,26/11/2013,1056364-1,1346.21,REDACTED PERSONAL DATA,REDACTED PERSONAL DATA
Tendring DC,http://statistics.data.gov.uk/id/local-authority-district/22UN,Life Opportunities,H920 - Disabled Facilities Grants,C400 - Grant payments,26/11/2013,1056365-1,2024.24,REDACTED PERSONAL DATA,REDACTED PERSONAL DATA
Tendring DC,http://statistics.data.gov.uk/id/local-authority-district/22UN,Life Opportunities,H920 - Disabled Facilities Grants,C400 - Grant payments,19/11/2013,2112346-1,1716,REDACTED PERSONAL DATA,REDACTED PERSONAL DATA
Tendring DC,http://statistics.data.gov.uk/id/local-authority-district/22UN,Life Opportunities,8540 - Leisure Centre Clacton,2100 - Building Repairs,05/11/2013,1055901-1,258,2100546 - GCS Alarms,Replace emergency lights
Tendring DC,http://statistics.data.gov.uk/id/local-authority-district/22UN,Life Opportunities,1880 - Office Accommodation Expenses,4632 - Security,26/11/2013,7009847-1,39.75,2100546 - GCS Alarms,ALARM FOBS
Tendring DC,http://statistics.data.gov.uk/id/local-authority-district/22UN,Life Opportunities,5480 - HRA - Repair & Maintenance,2018 - Other Responsive Repairs,05/11/2013,1055870-1,89.2,REDACTED PERSONAL DATA,REDACTED PERSONAL DATA
Tendring DC,http://statistics.data.gov.uk/id/local-authority-district/22UN,Life Opportunities,5480 - HRA - Repair & Maintenance,2018 - Other Responsive Repairs,19/11/2013,1056300-1,106.5,REDACTED PERSONAL DATA,REDACTED PERSONAL DATA
Tendring DC,http://statistics.data.gov.uk/id/local-authority-district/22UN,Life Opportunities,5480 - HRA - Repair & Maintenance,2018 - Other Responsive Repairs,12/11/2013,2112188-1,26.5,REDACTED PERSONAL DATA,REDACTED PERSONAL DATA
Tendring DC,http://statistics.data.gov.uk/id/local-authority-district/22UN,Life Opportunities,H710 - Selected Improvements,C200 - Main Contractor,12/11/2013,1056113-1,180,2112854 - Generis Security Ltd,crooked elms
Tendring DC,http://statistics.data.gov.uk/id/local-authority-district/22UN,Life Opportunities,H860 - Disabled Adaptations,C200 - Main Contractor,12/11/2013,1056119-1,300,2112854 - Generis Security Ltd,greenfields
Tendring DC,http://statistics.data.gov.uk/id/local-authority-district/22UN,Life Opportunities,H860 - Disabled Adaptations,C200 - Main Contractor,12/11/2013,1056120-1,865,2112854 - Generis Security Ltd,greenfields
Tendring DC,http://statistics.data.gov.uk/id/local-authority-district/22UN,Life Opportunities,5240 - HRA - Managing Tenancies,5242 - Tenant Relations,12/11/2013,2112247-1,10,REDACTED PERSONAL DATA,REDACTED PERSONAL DATA
Tendring DC,http://statistics.data.gov.uk/id/local-authority-district/22UN,Life Opportunities,9920 - HRA Balance Sheet,B860 - Housing Rents - Cash,19/11/2013,2112339-1,94.64,REDACTED PERSONAL DATA,REDACTED PERSONAL DATA
Tendring DC,http://statistics.data.gov.uk/id/local-authority-district/22UN,Life Opportunities,8540 - Leisure Centre Clacton,2700 - Cleaning Materials,12/11/2013,1056077-1,72.1,2100509 - Granwax Products Ltd,low form swift
Tendring DC,http://statistics.data.gov.uk/id/local-authority-district/22UN,Life Opportunities,8540 - Leisure Centre Clacton,2700 - Cleaning Materials,19/11/2013,1056169-1,51.4,2100509 - Granwax Products Ltd,low foam swift
Tendring DC,http://statistics.data.gov.uk/id/local-authority-district/22UN,Life Opportunities,7560 - Tourism Publications,4668 - Production Expenses,19/11/2013,1056175-1,1500,2112587 - Green Square Communications Limited,additional printing costs
Tendring DC,http://statistics.data.gov.uk/id/local-authority-district/22UN,Life Opportunities,6160 - Princes Theatre,4105 - Bar/Catering Expenses,19/11/2013,2112321-1,581.95,2112641 - Greene King Brewing and Retailing Ltd,Drinks for Theatre Bar
Tendring DC,http://statistics.data.gov.uk/id/local-authority-district/22UN,Life Opportunities,6160 - Princes Theatre,4105 - Bar/Catering Expenses,19/11/2013,2112322-1,493.85,2112641 - Greene King Brewing and Retailing Ltd,Beverages for Theatre
Tendring DC,http://statistics.data.gov.uk/id/local-authority-district/22UN,Life Opportunities,6160 - Princes Theatre,4105 - Bar/Catering Expenses,05/11/2013,7700708-1,707.63,2112641 - Greene King Brewing and Retailing Ltd,BEVERAGES FOR THEATRE BAR
Tendring DC,http://statistics.data.gov.uk/id/local-authority-district/22UN,Life Opportunities,5480 - HRA - Repair & Maintenance,2017 - Mechanical Equipment /Extract Fans,12/11/2013,1056108-1,355,2106272 - Greenleaf Pest Control Services,kate daniels house
Tendring DC,http://statistics.data.gov.uk/id/local-authority-district/22UN,Life Opportunities,5480 - HRA - Repair & Maintenance,2017 - Mechanical Equipment /Extract Fans,12/11/2013,1056109-1,405,2106272 - Greenleaf Pest Control Services,greenfields
Tendring DC,http://statistics.data.gov.uk/id/local-authority-district/22UN,Life Opportunities,5480 - HRA - Repair & Maintenance,2017 - Mechanical Equipment /Extract Fans,19/11/2013,1056301-1,470,2106272 - Greenleaf Pest Control Services,groom house
Tendring DC,http://statistics.data.gov.uk/id/local-authority-district/22UN,Life Opportunities,1880 - Office Accommodation Expenses,2100 - Building Repairs,12/11/2013,2112115-1,95,2106272 - Greenleaf Pest Control Services,Flea Spray at Town Hall
Tendring DC,http://statistics.data.gov.uk/id/local-authority-district/22UN,Life Opportunities,5040 - Home Energy Conservation Act,5242 - Tenant Relations,05/11/2013,1055871-1,54,2100604 - Harwich Taxis,transport on 15/1/13
Tendring DC,http://statistics.data.gov.uk/id/local-authority-district/22UN,Life Opportunities,5240 - HRA - Managing Tenancies,5242 - Tenant Relations,05/11/2013,1055872-1,64,2100604 - Harwich Taxis,transport on 9/4/13
Tendring DC,http://statistics.data.gov.uk/id/local-authority-district/22UN,Life Opportunities,5040 - Home Energy Conservation Act,5242 - Tenant Relations,05/11/2013,1055873-1,55,2100604 - Harwich Taxis,harwich taxis 10/10/13 st austins lane
Tendring DC,http://statistics.data.gov.uk/id/local-authority-district/22UN,Life Opportunities,5240 - HRA - Managing Tenancies,5242 - Tenant Relations,26/11/2013,7009784-1,44,2100604 - Harwich Taxis,TRANSPORT ON 06/11/13
Tendring DC,http://statistics.data.gov.uk/id/local-authority-district/22UN,Life Opportunities,5240 - HRA - Managing Tenancies,5242 - Tenant Relations,26/11/2013,7009785-1,64,2100604 - Harwich Taxis,TRANSPORT ON 15.10.13
Tendring DC,http://statistics.data.gov.uk/id/local-authority-district/22UN,Life Opportunities,5140 - Homelessness,4683 - Other Homelessness Expenses,19/11/2013,2112361-1,550,REDACTED PERSONAL DATA,REDACTED PERSONAL DATA
Tendring DC,http://statistics.data.gov.uk/id/local-authority-district/22UN,Life Opportunities,5360 - HRA - Sheltered Units,5500 - Miscellaneous Expenses,26/11/2013,7009862-1,250,REDACTED PERSONAL DATA,REDACTED PERSONAL DATA
Tendring DC,http://statistics.data.gov.uk/id/local-authority-district/22UN,Life Opportunities,8540 - Leisure Centre Clacton,2100 - Building Repairs,19/11/2013,1056251-1,11,2100615 - Healey Tool Hire & Sales Limited,barrier tape
Tendring DC,http://statistics.data.gov.uk/id/local-authority-district/22UN,Life Opportunities,7600 - Tourist Information Centres,9356 - Commission Sales,12/11/2013,2112155-1,234,2103622 - Hedingham & District Omnibuses Ltd,Hedingham Oct 13
Tendring DC,http://statistics.data.gov.uk/id/local-authority-district/22UN,Life Opportunities,7600 - Tourist Information Centres,9356 - Commission Sales,12/11/2013,2112155-2,-34.32,2103622 - Hedingham & District Omnibuses Ltd,Hedingham Oct 13
Tendring DC,http://statistics.data.gov.uk/id/local-authority-district/22UN,Life Opportunities,H710 - Selected Improvements,C200 - Main Contractor,26/11/2013,7009797-1,1761.8,REDACTED PERSONAL DATA,REDACTED PERSONAL DATA
Tendring DC,http://statistics.data.gov.uk/id/local-authority-district/22UN,Life Opportunities,H920 - Disabled Facilities Grants,C401 - Loan,26/11/2013,1056376-1,40,REDACTED PERSONAL DATA,REDACTED PERSONAL DATA
Tendring DC,http://statistics.data.gov.uk/id/local-authority-district/22UN,Life Opportunities,5260 - HRA - Rent Collection And Accounting,4460 - Legal & Professional Expenses,26/11/2013,1056420-1,110,REDACTED COMMERCIAL CONFIDENTIALITY,REDACTED COMMERCIAL CONFIDENTIALITY
Tendring DC,http://statistics.data.gov.uk/id/local-authority-district/22UN,Life Opportunities,5260 - HRA - Rent Collection And Accounting,4460 - Legal & Professional Expenses,26/11/2013,1056421-1,110,REDACTED COMMERCIAL CONFIDENTIALITY,REDACTED COMMERCIAL CONFIDENTIALITY
Tendring DC,http://statistics.data.gov.uk/id/local-authority-district/22UN,Life Opportunities,5260 - HRA - Rent Collection And Accounting,4460 - Legal & Professional Expenses,26/11/2013,1056422-1,45,REDACTED COMMERCIAL CONFIDENTIALITY,REDACTED COMMERCIAL CONFIDENTIALITY
Tendring DC,http://statistics.data.gov.uk/id/local-authority-district/22UN,Life Opportunities,8540 - Leisure Centre Clacton,4469 - Other Non - Legal Professional Services,19/11/2013,2112372-1,110,REDACTED COMMERCIAL CONFIDENTIALITY,REDACTED COMMERCIAL CONFIDENTIALITY
Tendring DC,http://statistics.data.gov.uk/id/local-authority-district/22UN,Life Opportunities,5260 - HRA - Rent Collection And Accounting,4469 - Other Non - Legal Professional Services,19/11/2013,2112373-1,110,REDACTED COMMERCIAL CONFIDENTIALITY,REDACTED COMMERCIAL CONFIDENTIALITY
Tendring DC,http://statistics.data.gov.uk/id/local-authority-district/22UN,Life Opportunities,5860 - Manningtree Sports Centre,4597 - Hired Services - Payments to Contractors,05/11/2013,1055869-1,340,2112869 - Holly Connell,coaching classes
Tendring DC,http://statistics.data.gov.uk/id/local-authority-district/22UN,Life Opportunities,5820 - Harwich Sports Centre,4597 - Hired Services - Payments to Contractors,05/11/2013,1055898-1,49,2111080 - Homecraft Contracts Electrical Ltd,Light fitting install
Tendring DC,http://statistics.data.gov.uk/id/local-authority-district/22UN,Life Opportunities,8510 - Dovercourt Swimming Pool & All Weather Facilities,2100 - Building Repairs,19/11/2013,1056243-1,170,2111080 - Homecraft Contracts Electrical Ltd,dovercourt pool - elec
Tendring DC,http://statistics.data.gov.uk/id/local-authority-district/22UN,Life Opportunities,H920 - Disabled Facilities Grants,C400 - Grant payments,05/11/2013,1055975-1,808.98,REDACTED PERSONAL DATA,REDACTED PERSONAL DATA
Tendring DC,http://statistics.data.gov.uk/id/local-authority-district/22UN,Life Opportunities,8520 - Frinton & Walton Swimming Pool,2100 - Building Repairs,19/11/2013,1056164-1,55,2101848 - Homecraft Contracts Ltd,fwsp - homecraft
Tendring DC,http://statistics.data.gov.uk/id/local-authority-district/22UN,Life Opportunities,8510 - Dovercourt Swimming Pool & All Weather Facilities,2100 - Building Repairs,19/11/2013,1056244-1,44,2101848 - Homecraft Contracts Ltd,dovercourt pool - repairs
Tendring DC,http://statistics.data.gov.uk/id/local-authority-district/22UN,Life Opportunities,1650 - Building Services Service Unit,4300 - Printing & Stationery,12/11/2013,2112184-1,238.6,2100659 - Hussey Knights Ltd,Plotter Ink
Tendring DC,http://statistics.data.gov.uk/id/local-authority-district/22UN,Life Opportunities,5480 - HRA - Repair & Maintenance,2014 - Decoration Allowances,19/11/2013,1056293-1,212.39,2109778 - ICI Contract Direct,Decoration vouchers oct 2013
Tendring DC,http://statistics.data.gov.uk/id/local-authority-district/22UN,Life Opportunities,5880 - Management Of Sport & Leisure Facilities,4597 - Hired Services - Payments to Contractors,19/11/2013,1056160-1,1480,2108761 - Ingleton Wood,dovercourt pool extension 42236
Tendring DC,http://statistics.data.gov.uk/id/local-authority-district/22UN,Life Opportunities,5860 - Manningtree Sports Centre,4400 - Maintenance Under Service Agreements,05/11/2013,1055868-1,312.5,2113083 - Initial Facilities - Water Services,water contract
Tendring DC,http://statistics.data.gov.uk/id/local-authority-district/22UN,Life Opportunities,5820 - Harwich Sports Centre,4597 - Hired Services - Payments to Contractors,05/11/2013,1055891-1,225,2113083 - Initial Facilities - Water Services,LEGIONELLA RISK ASSESSMENT
Tendring DC,http://statistics.data.gov.uk/id/local-authority-district/22UN,Life Opportunities,5820 - Harwich Sports Centre,4400 - Maintenance Under Service Agreements,19/11/2013,1056306-1,65,2113083 - Initial Facilities - Water Services,watersafe contract
Tendring DC,http://statistics.data.gov.uk/id/local-authority-district/22UN,Life Opportunities,5860 - Manningtree Sports Centre,4400 - Maintenance Under Service Agreements,19/11/2013,1056350-1,87.5,2113083 - Initial Facilities - Water Services,WATER CONTRACT
Tendring DC,http://statistics.data.gov.uk/id/local-authority-district/22UN,Life Opportunities,1880 - Office Accommodation Expenses,4666 - Hygiene Services,26/11/2013,7009878-1,15,2104976 - Initial Washroom Solutions,INITIAL - SANITACT - ALL SITES
Tendring DC,http://statistics.data.gov.uk/id/local-authority-district/22UN,Life Opportunities,1860 - Depots General,4666 - Hygiene Services,26/11/2013,7009878-2,7.5,2104976 - Initial Washroom Solutions,INITIAL - SANITACT - ALL SITES
Tendring DC,http://statistics.data.gov.uk/id/local-authority-district/22UN,Life Opportunities,1880 - Office Accommodation Expenses,4666 - Hygiene Services,26/11/2013,7009878-3,15,2104976 - Initial Washroom Solutions,INITIAL - SANITACT - ALL SITES
Tendring DC,http://statistics.data.gov.uk/id/local-authority-district/22UN,Life Opportunities,1880 - Office Accommodation Expenses,4666 - Hygiene Services,26/11/2013,7009878-4,83.75,2104976 - Initial Washroom Solutions,INITIAL - SANITACT - ALL SITES
Tendring DC,http://statistics.data.gov.uk/id/local-authority-district/22UN,Life Opportunities,4820 - Public Conveniences,4080 - Materials & Consumables,26/11/2013,7009878-5,103.75,2104976 - Initial Washroom Solutions,INITIAL - SANITACT - ALL SITES
Tendring DC,http://statistics.data.gov.uk/id/local-authority-district/22UN,Life Opportunities,1880 - Office Accommodation Expenses,4666 - Hygiene Services,26/11/2013,7009878-6,7.5,2104976 - Initial Washroom Solutions,INITIAL - SANITACT - ALL SITES
Tendring DC,http://statistics.data.gov.uk/id/local-authority-district/22UN,Life Opportunities,7560 - Tourism Publications,4668 - Production Expenses,19/11/2013,1056229-1,211.2,2113459 - InnerWorkings Europe Ltd,dr posters airshow
Tendring DC,http://statistics.data.gov.uk/id/local-authority-district/22UN,Life Opportunities,8540 - Leisure Centre Clacton,4597 - Hired Services - Payments to Contractors,07/11/2013,2112370-1,353.5,2108322 - Inspiring Communities Ltd,Oct � Term Feb � Term Hol Prog
Tendring DC,http://statistics.data.gov.uk/id/local-authority-district/22UN,Life Opportunities,6740 - Careline,4448 - Confidential Waste,05/11/2013,1055835-1,61.1,2110936 - IPPlus (UK) Ltd,shredding collection sept 13
Tendring DC,http://statistics.data.gov.uk/id/local-authority-district/22UN,Life Opportunities,1880 - Office Accommodation Expenses,4448 - Confidential Waste,19/11/2013,1056206-1,141,2110936 - IPPlus (UK) Ltd,60 50lb confidential waste coll
Tendring DC,http://statistics.data.gov.uk/id/local-authority-district/22UN,Life Opportunities,1242 - Corporate Director (Life Opportunities),1710 - Training - Central Department Budget,12/11/2013,2112138-1,430,2100724 - IQL UK Ltd,NPLQ Status CLC/DSP/FWSP
Tendring DC,http://statistics.data.gov.uk/id/local-authority-district/22UN,Life Opportunities,1242 - Corporate Director (Life Opportunities),1710 - Training - Central Department Budget,12/11/2013,1056118-1,1009,2113438 - ITS Training (UK) Ltd,fraud prevention and doc vertification training 26/11/13
Tendring DC,http://statistics.data.gov.uk/id/local-authority-district/22UN,Life Opportunities,H920 - Disabled Facilities Grants,C400 - Grant payments,26/11/2013,1056373-1,900,REDACTED PERSONAL DATA,REDACTED PERSONAL DATA
Tendring DC,http://statistics.data.gov.uk/id/local-authority-district/22UN,Life Opportunities,8520 - Frinton & Walton Swimming Pool,5300 - Resaleable Items,05/11/2013,1055853-1,234.6,2100755 - J P Lennard Ltd,fwsp - resales
Tendring DC,http://statistics.data.gov.uk/id/local-authority-district/22UN,Life Opportunities,5800 - Brightlingsea Sports Centre,4000 - Furniture,05/11/2013,1055854-1,37,2100755 - J P Lennard Ltd,j p lennard
Tendring DC,http://statistics.data.gov.uk/id/local-authority-district/22UN,Life Opportunities,5800 - Brightlingsea Sports Centre,4000 - Furniture,05/11/2013,1055855-1,142.18,2100755 - J P Lennard Ltd,j p lennard
Tendring DC,http://statistics.data.gov.uk/id/local-authority-district/22UN,Life Opportunities,8540 - Leisure Centre Clacton,4000 - Furniture,12/11/2013,1056080-1,301.46,2100755 - J P Lennard Ltd,punch bags/medicine balls
Tendring DC,http://statistics.data.gov.uk/id/local-authority-district/22UN,Life Opportunities,8520 - Frinton & Walton Swimming Pool,4000 - Furniture,19/11/2013,1056162-1,131.7,2100755 - J P Lennard Ltd,fwsp - jplennard
Tendring DC,http://statistics.data.gov.uk/id/local-authority-district/22UN,Life Opportunities,8540 - Leisure Centre Clacton,2700 - Cleaning Materials,19/11/2013,1056188-1,108.6,2100755 - J P Lennard Ltd,overshoes
Tendring DC,http://statistics.data.gov.uk/id/local-authority-district/22UN,Life Opportunities,8540 - Leisure Centre Clacton,4080 - Materials & Consumables,12/11/2013,2112139-1,20.04,2100755 - J P Lennard Ltd,Pool water Sampler
Tendring DC,http://statistics.data.gov.uk/id/local-authority-district/22UN,Life Opportunities,8510 - Dovercourt Swimming Pool & All Weather Facilities,4000 - Furniture,12/11/2013,2112267-1,253.35,2100755 - J P Lennard Ltd,Dovercourt Pool - Equipment
Tendring DC,http://statistics.data.gov.uk/id/local-authority-district/22UN,Life Opportunities,8540 - Leisure Centre Clacton,4597 - Hired Services - Payments to Contractors,19/11/2013,1056190-1,172.5,REDACTED PERSONAL DATA,REDACTED PERSONAL DATA
Tendring DC,http://statistics.data.gov.uk/id/local-authority-district/22UN,Life Opportunities,8540 - Leisure Centre Clacton,4597 - Hired Services - Payments to Contractors,12/11/2013,2112144-1,187.5,REDACTED PERSONAL DATA,REDACTED PERSONAL DATA
Tendring DC,http://statistics.data.gov.uk/id/local-authority-district/22UN,Life Opportunities,6740 - Careline,9050 - Careline Income - General,05/11/2013,1055980-1,6,REDACTED PERSONAL DATA,REDACTED PERSONAL DATA
Tendring DC,http://statistics.data.gov.uk/id/local-authority-district/22UN,Life Opportunities,1240 - Housing Services Service Unit,3302 - Car Allowances - Officers,12/11/2013,2112239-1,42.6,REDACTED PERSONAL DATA,REDACTED PERSONAL DATA
Tendring DC,http://statistics.data.gov.uk/id/local-authority-district/22UN,Life Opportunities,1240 - Housing Services Service Unit,3302 - Car Allowances - Officers,19/11/2013,2112368-1,17.6,REDACTED PERSONAL DATA,REDACTED PERSONAL DATA
Tendring DC,http://statistics.data.gov.uk/id/local-authority-district/22UN,Life Opportunities,8520 - Frinton & Walton Swimming Pool,5311 - General Provisions - Vending,26/11/2013,2112427-1,144.1,2109088 - JC Vending Services,JC Vending
Tendring DC,http://statistics.data.gov.uk/id/local-authority-district/22UN,Life Opportunities,8540 - Leisure Centre Clacton,9275 - Lifestyles Plus - DD,19/11/2013,2112357-1,12.5,REDACTED PERSONAL DATA,REDACTED PERSONAL DATA
Tendring DC,http://statistics.data.gov.uk/id/local-authority-district/22UN,Life Opportunities,5240 - HRA - Managing Tenancies,5242 - Tenant Relations,12/11/2013,2112245-1,10,REDACTED PERSONAL DATA,REDACTED PERSONAL DATA
Tendring DC,http://statistics.data.gov.uk/id/local-authority-district/22UN,Life Opportunities,H920 - Disabled Facilities Grants,C401 - Loan,26/11/2013,1056375-1,659.8,REDACTED PERSONAL DATA,REDACTED PERSONAL DATA
Tendring DC,http://statistics.data.gov.uk/id/local-authority-district/22UN,Life Opportunities,H920 - Disabled Facilities Grants,C400 - Grant payments,05/11/2013,2112089-1,95.2,REDACTED PERSONAL DATA,REDACTED PERSONAL DATA
Tendring DC,http://statistics.data.gov.uk/id/local-authority-district/22UN,Life Opportunities,5480 - HRA - Repair & Maintenance,2064 - Domestic Appliance Repairs,12/11/2013,2112208-1,60,REDACTED PERSONAL DATA,REDACTED PERSONAL DATA
Tendring DC,http://statistics.data.gov.uk/id/local-authority-district/22UN,Life Opportunities,5480 - HRA - Repair & Maintenance,2064 - Domestic Appliance Repairs,12/11/2013,2112209-1,25,REDACTED PERSONAL DATA,REDACTED PERSONAL DATA
Tendring DC,http://statistics.data.gov.uk/id/local-authority-district/22UN,Life Opportunities,5480 - HRA - Repair & Maintenance,2064 - Domestic Appliance Repairs,12/11/2013,2112210-1,60,REDACTED PERSONAL DATA,REDACTED PERSONAL DATA
Tendring DC,http://statistics.data.gov.uk/id/local-authority-district/22UN,Life Opportunities,5480 - HRA - Repair & Maintenance,2064 - Domestic Appliance Repairs,12/11/2013,2112211-1,105,REDACTED PERSONAL DATA,REDACTED PERSONAL DATA
Tendring DC,http://statistics.data.gov.uk/id/local-authority-district/22UN,Life Opportunities,5480 - HRA - Repair & Maintenance,2064 - Domestic Appliance Repairs,12/11/2013,2112212-1,25,REDACTED PERSONAL DATA,REDACTED PERSONAL DATA
Tendring DC,http://statistics.data.gov.uk/id/local-authority-district/22UN,Life Opportunities,1880 - Office Accommodation Expenses,2110 - Playground Maintenance,26/11/2013,1056389-1,30,2111266 - JW Plumbing and Heating,PLUMBING WORKS
Tendring DC,http://statistics.data.gov.uk/id/local-authority-district/22UN,Life Opportunities,1860 - Depots General,2100 - Building Repairs,26/11/2013,1056389-2,60,2111266 - JW Plumbing and Heating,PLUMBING WORKS
Tendring DC,http://statistics.data.gov.uk/id/local-authority-district/22UN,Life Opportunities,H860 - Disabled Adaptations,C200 - Main Contractor,05/11/2013,2112091-1,1494,REDACTED PERSONAL DATA,REDACTED PERSONAL DATA
Tendring DC,http://statistics.data.gov.uk/id/local-authority-district/22UN,Life Opportunities,H860 - Disabled Adaptations,C200 - Main Contractor,05/11/2013,2112091-2,1491,REDACTED PERSONAL DATA,REDACTED PERSONAL DATA
Tendring DC,http://statistics.data.gov.uk/id/local-authority-district/22UN,Life Opportunities,7460 - Economic Promotion,5164 - Project Expenses,26/11/2013,7009787-1,90.5,2103413 - K H Catering Equipment Hire,HIRE OF TABLES
Tendring DC,http://statistics.data.gov.uk/id/local-authority-district/22UN,Life Opportunities,8540 - Leisure Centre Clacton,4000 - Furniture,12/11/2013,1056081-1,151.2,2100719 - Kaiser & Kraft Ltd,reception chair
Tendring DC,http://statistics.data.gov.uk/id/local-authority-district/22UN,Life Opportunities,5140 - Homelessness,4683 - Other Homelessness Expenses,19/11/2013,2112364-1,430,REDACTED PERSONAL DATA,REDACTED PERSONAL DATA
Tendring DC,http://statistics.data.gov.uk/id/local-authority-district/22UN,Life Opportunities,5880 - Management Of Sport & Leisure Facilities,5166 - Marketing and Promotion,19/11/2013,1056240-1,567,2100850 - KidAround Ltd,kidaround ne fpa dec13 to feb 14
Tendring DC,http://statistics.data.gov.uk/id/local-authority-district/22UN,Life Opportunities,5820 - Harwich Sports Centre,5300 - Resaleable Items,12/11/2013,1056074-1,170.95,2100870 - Kingswood Leisure Services Ltd,sales stock
Tendring DC,http://statistics.data.gov.uk/id/local-authority-district/22UN,Life Opportunities,5820 - Harwich Sports Centre,4040 - Equipment & Tools,12/11/2013,1056075-1,66.55,2100870 - Kingswood Leisure Services Ltd,hire footballs
Tendring DC,http://statistics.data.gov.uk/id/local-authority-district/22UN,Life Opportunities,5360 - HRA - Sheltered Units,4601 - Hired services - Cleaning,05/11/2013,1055908-1,238,2100851 - KO-SHEEN Contract Cleaning Ltd,CLEANING
Tendring DC,http://statistics.data.gov.uk/id/local-authority-district/22UN,Life Opportunities,5360 - HRA - Sheltered Units,4601 - Hired services - Cleaning,19/11/2013,1056177-1,588.88,2100851 - KO-SHEEN Contract Cleaning Ltd,cleaning @ belmans court oct 13
Tendring DC,http://statistics.data.gov.uk/id/local-authority-district/22UN,Life Opportunities,5360 - HRA - Sheltered Units,4601 - Hired services - Cleaning,19/11/2013,1056178-1,136,2100851 - KO-SHEEN Contract Cleaning Ltd,"cover cleaning 21/10-25/10/13 groom house, honeycroft and spendells"
Tendring DC,http://statistics.data.gov.uk/id/local-authority-district/22UN,Life Opportunities,5360 - HRA - Sheltered Units,4601 - Hired services - Cleaning,26/11/2013,7009740-1,187,2100851 - KO-SHEEN Contract Cleaning Ltd,CLEANING 28.10.13-01.11.13
Tendring DC,http://statistics.data.gov.uk/id/local-authority-district/22UN,Life Opportunities,5860 - Manningtree Sports Centre,4601 - Hired services - Cleaning,26/11/2013,7009836-1,63.75,2100851 - KO-SHEEN Contract Cleaning Ltd,CLEANING OCTOBER
Tendring DC,http://statistics.data.gov.uk/id/local-authority-district/22UN,Life Opportunities,5860 - Manningtree Sports Centre,4601 - Hired services - Cleaning,26/11/2013,7009837-1,63.75,2100851 - KO-SHEEN Contract Cleaning Ltd,OCTOBER CLEANING
Tendring DC,http://statistics.data.gov.uk/id/local-authority-district/22UN,Life Opportunities,5860 - Manningtree Sports Centre,4601 - Hired services - Cleaning,26/11/2013,7009838-1,51,2100851 - KO-SHEEN Contract Cleaning Ltd,OCTOBER CLEANING
Tendring DC,http://statistics.data.gov.uk/id/local-authority-district/22UN,Life Opportunities,5860 - Manningtree Sports Centre,4601 - Hired services - Cleaning,26/11/2013,7009839-1,63.75,2100851 - KO-SHEEN Contract Cleaning Ltd,OCTOBER CLEANING
Tendring DC,http://statistics.data.gov.uk/id/local-authority-district/22UN,Life Opportunities,7520 - Tourism Publicity Marketing Promotion,5160 - Advertising,19/11/2013,1056210-1,395,2113439 - Landor Travel Publications Ltd,oct/nov 13 issue
Tendring DC,http://statistics.data.gov.uk/id/local-authority-district/22UN,Life Opportunities,H860 - Disabled Adaptations,C200 - Main Contractor,19/11/2013,1056179-1,1958,2112386 - Lee Bilsby Ltd,178 keysafes installed
Tendring DC,http://statistics.data.gov.uk/id/local-authority-district/22UN,Life Opportunities,H825 - Refurbishment of Door Entry Systems,C200 - Main Contractor,19/11/2013,1056180-1,990,2112386 - Lee Bilsby Ltd,brickwood repairs
Tendring DC,http://statistics.data.gov.uk/id/local-authority-district/22UN,Life Opportunities,"1580 - Benefits, Revenues and Customer Contact SU",1350 - Agency Staff,26/11/2013,7009786-1,12902.58,2108077 - Liberata Financial Services Ltd,CAPACITY GRID O/PAYMENT 7.6.13   30.9.13
Tendring DC,http://statistics.data.gov.uk/id/local-authority-district/22UN,Life Opportunities,5240 - HRA - Managing Tenancies,5242 - Tenant Relations,12/11/2013,2112256-1,10,REDACTED PERSONAL DATA,REDACTED PERSONAL DATA
Tendring DC,http://statistics.data.gov.uk/id/local-authority-district/22UN,Life Opportunities,6740 - Careline,3300 - Public Transport - Officers,19/11/2013,2112366-1,55,REDACTED PERSONAL DATA,REDACTED PERSONAL DATA
Tendring DC,http://statistics.data.gov.uk/id/local-authority-district/22UN,Life Opportunities,5820 - Harwich Sports Centre,4597 - Hired Services - Payments to Contractors,05/11/2013,1055897-1,89,2111940 - M Frost & Associates Ltd,display energy certificate
Tendring DC,http://statistics.data.gov.uk/id/local-authority-district/22UN,Life Opportunities,6160 - Princes Theatre,4105 - Bar/Catering Expenses,05/11/2013,1055840-1,64.98,2105052 - Maddisons,coffee for theatre
Tendring DC,http://statistics.data.gov.uk/id/local-authority-district/22UN,Life Opportunities,5240 - HRA - Managing Tenancies,5242 - Tenant Relations,12/11/2013,2112187-1,156,REDACTED PERSONAL DATA,REDACTED PERSONAL DATA
Tendring DC,http://statistics.data.gov.uk/id/local-authority-district/22UN,Life Opportunities,5140 - Homelessness,4680 - Bed & Breakfast Accommodation,12/11/2013,2112213-1,280,REDACTED PERSONAL DATA,REDACTED PERSONAL DATA
Tendring DC,http://statistics.data.gov.uk/id/local-authority-district/22UN,Life Opportunities,5140 - Homelessness,9032 - Homelessness Accommodation Charges,12/11/2013,2112213-2,-16.45,REDACTED PERSONAL DATA,REDACTED PERSONAL DATA
Tendring DC,http://statistics.data.gov.uk/id/local-authority-district/22UN,Life Opportunities,5140 - Homelessness,4680 - Bed & Breakfast Accommodation,12/11/2013,2112219-1,140,REDACTED PERSONAL DATA,REDACTED PERSONAL DATA
Tendring DC,http://statistics.data.gov.uk/id/local-authority-district/22UN,Life Opportunities,5140 - Homelessness,9032 - Homelessness Accommodation Charges,12/11/2013,2112219-2,-16.45,REDACTED PERSONAL DATA,REDACTED PERSONAL DATA
Tendring DC,http://statistics.data.gov.uk/id/local-authority-district/22UN,Life Opportunities,5140 - Homelessness,4680 - Bed & Breakfast Accommodation,12/11/2013,2112220-1,140,REDACTED PERSONAL DATA,REDACTED PERSONAL DATA
Tendring DC,http://statistics.data.gov.uk/id/local-authority-district/22UN,Life Opportunities,5140 - Homelessness,9032 - Homelessness Accommodation Charges,12/11/2013,2112220-2,-16.45,REDACTED PERSONAL DATA,REDACTED PERSONAL DATA
Tendring DC,http://statistics.data.gov.uk/id/local-authority-district/22UN,Life Opportunities,5140 - Homelessness,4680 - Bed & Breakfast Accommodation,12/11/2013,2112221-1,20,REDACTED PERSONAL DATA,REDACTED PERSONAL DATA
Tendring DC,http://statistics.data.gov.uk/id/local-authority-district/22UN,Life Opportunities,5140 - Homelessness,4680 - Bed & Breakfast Accommodation,12/11/2013,2112222-1,140,REDACTED PERSONAL DATA,REDACTED PERSONAL DATA
Tendring DC,http://statistics.data.gov.uk/id/local-authority-district/22UN,Life Opportunities,5140 - Homelessness,9032 - Homelessness Accommodation Charges,12/11/2013,2112222-2,-16.45,REDACTED PERSONAL DATA,REDACTED PERSONAL DATA
Tendring DC,http://statistics.data.gov.uk/id/local-authority-district/22UN,Life Opportunities,5140 - Homelessness,4680 - Bed & Breakfast Accommodation,12/11/2013,2112223-1,280,REDACTED PERSONAL DATA,REDACTED PERSONAL DATA
Tendring DC,http://statistics.data.gov.uk/id/local-authority-district/22UN,Life Opportunities,5140 - Homelessness,9032 - Homelessness Accommodation Charges,12/11/2013,2112223-2,-16.45,REDACTED PERSONAL DATA,REDACTED PERSONAL DATA
Tendring DC,http://statistics.data.gov.uk/id/local-authority-district/22UN,Life Opportunities,5140 - Homelessness,4680 - Bed & Breakfast Accommodation,12/11/2013,2112224-1,240,REDACTED PERSONAL DATA,REDACTED PERSONAL DATA
Tendring DC,http://statistics.data.gov.uk/id/local-authority-district/22UN,Life Opportunities,5140 - Homelessness,9032 - Homelessness Accommodation Charges,12/11/2013,2112224-2,-9.4,REDACTED PERSONAL DATA,REDACTED PERSONAL DATA
Tendring DC,http://statistics.data.gov.uk/id/local-authority-district/22UN,Life Opportunities,5140 - Homelessness,4680 - Bed & Breakfast Accommodation,12/11/2013,2112225-1,140,REDACTED PERSONAL DATA,REDACTED PERSONAL DATA
Tendring DC,http://statistics.data.gov.uk/id/local-authority-district/22UN,Life Opportunities,5140 - Homelessness,9032 - Homelessness Accommodation Charges,12/11/2013,2112225-2,-16.45,REDACTED PERSONAL DATA,REDACTED PERSONAL DATA
Tendring DC,http://statistics.data.gov.uk/id/local-authority-district/22UN,Life Opportunities,5140 - Homelessness,4680 - Bed & Breakfast Accommodation,12/11/2013,2112226-1,140,REDACTED PERSONAL DATA,REDACTED PERSONAL DATA
Tendring DC,http://statistics.data.gov.uk/id/local-authority-district/22UN,Life Opportunities,5140 - Homelessness,9032 - Homelessness Accommodation Charges,12/11/2013,2112226-2,-16.45,REDACTED PERSONAL DATA,REDACTED PERSONAL DATA
Tendring DC,http://statistics.data.gov.uk/id/local-authority-district/22UN,Life Opportunities,5140 - Homelessness,4680 - Bed & Breakfast Accommodation,12/11/2013,2112227-1,280,REDACTED PERSONAL DATA,REDACTED PERSONAL DATA
Tendring DC,http://statistics.data.gov.uk/id/local-authority-district/22UN,Life Opportunities,5140 - Homelessness,9032 - Homelessness Accommodation Charges,12/11/2013,2112227-2,-16.45,REDACTED PERSONAL DATA,REDACTED PERSONAL DATA
Tendring DC,http://statistics.data.gov.uk/id/local-authority-district/22UN,Life Opportunities,5140 - Homelessness,4680 - Bed & Breakfast Accommodation,12/11/2013,2112228-1,140,REDACTED PERSONAL DATA,REDACTED PERSONAL DATA
Tendring DC,http://statistics.data.gov.uk/id/local-authority-district/22UN,Life Opportunities,5140 - Homelessness,9032 - Homelessness Accommodation Charges,12/11/2013,2112228-2,-16.45,REDACTED PERSONAL DATA,REDACTED PERSONAL DATA
Tendring DC,http://statistics.data.gov.uk/id/local-authority-district/22UN,Life Opportunities,5140 - Homelessness,4680 - Bed & Breakfast Accommodation,12/11/2013,2112229-1,140,REDACTED PERSONAL DATA,REDACTED PERSONAL DATA
Tendring DC,http://statistics.data.gov.uk/id/local-authority-district/22UN,Life Opportunities,5140 - Homelessness,9032 - Homelessness Accommodation Charges,12/11/2013,2112229-2,-16.45,REDACTED PERSONAL DATA,REDACTED PERSONAL DATA
Tendring DC,http://statistics.data.gov.uk/id/local-authority-district/22UN,Life Opportunities,5140 - Homelessness,4680 - Bed & Breakfast Accommodation,12/11/2013,2112230-1,140,REDACTED PERSONAL DATA,REDACTED PERSONAL DATA
Tendring DC,http://statistics.data.gov.uk/id/local-authority-district/22UN,Life Opportunities,5140 - Homelessness,9032 - Homelessness Accommodation Charges,12/11/2013,2112230-2,-16.45,REDACTED PERSONAL DATA,REDACTED PERSONAL DATA
Tendring DC,http://statistics.data.gov.uk/id/local-authority-district/22UN,Life Opportunities,5140 - Homelessness,4680 - Bed & Breakfast Accommodation,05/11/2013,7700691-1,420,REDACTED PERSONAL DATA,REDACTED PERSONAL DATA
Tendring DC,http://statistics.data.gov.uk/id/local-authority-district/22UN,Life Opportunities,5140 - Homelessness,9032 - Homelessness Accommodation Charges,05/11/2013,7700691-2,-16.45,REDACTED PERSONAL DATA,REDACTED PERSONAL DATA
Tendring DC,http://statistics.data.gov.uk/id/local-authority-district/22UN,Life Opportunities,5140 - Homelessness,4680 - Bed & Breakfast Accommodation,05/11/2013,7700692-1,140,REDACTED PERSONAL DATA,REDACTED PERSONAL DATA
Tendring DC,http://statistics.data.gov.uk/id/local-authority-district/22UN,Life Opportunities,5140 - Homelessness,9032 - Homelessness Accommodation Charges,05/11/2013,7700692-2,-16.45,REDACTED PERSONAL DATA,REDACTED PERSONAL DATA
Tendring DC,http://statistics.data.gov.uk/id/local-authority-district/22UN,Life Opportunities,5140 - Homelessness,4680 - Bed & Breakfast Accommodation,05/11/2013,7700693-1,140,REDACTED PERSONAL DATA,REDACTED PERSONAL DATA
Tendring DC,http://statistics.data.gov.uk/id/local-authority-district/22UN,Life Opportunities,5140 - Homelessness,9032 - Homelessness Accommodation Charges,05/11/2013,7700693-2,-16.45,REDACTED PERSONAL DATA,REDACTED PERSONAL DATA
Tendring DC,http://statistics.data.gov.uk/id/local-authority-district/22UN,Life Opportunities,5140 - Homelessness,4680 - Bed & Breakfast Accommodation,05/11/2013,7700694-1,280,REDACTED PERSONAL DATA,REDACTED PERSONAL DATA
Tendring DC,http://statistics.data.gov.uk/id/local-authority-district/22UN,Life Opportunities,5140 - Homelessness,9032 - Homelessness Accommodation Charges,05/11/2013,7700694-2,-16.45,REDACTED PERSONAL DATA,REDACTED PERSONAL DATA
Tendring DC,http://statistics.data.gov.uk/id/local-authority-district/22UN,Life Opportunities,5140 - Homelessness,4680 - Bed & Breakfast Accommodation,05/11/2013,7700695-1,140,REDACTED PERSONAL DATA,REDACTED PERSONAL DATA
Tendring DC,http://statistics.data.gov.uk/id/local-authority-district/22UN,Life Opportunities,5140 - Homelessness,9032 - Homelessness Accommodation Charges,05/11/2013,7700695-2,-16.45,REDACTED PERSONAL DATA,REDACTED PERSONAL DATA
Tendring DC,http://statistics.data.gov.uk/id/local-authority-district/22UN,Life Opportunities,5140 - Homelessness,4680 - Bed & Breakfast Accommodation,05/11/2013,7700696-1,140,REDACTED PERSONAL DATA,REDACTED PERSONAL DATA
Tendring DC,http://statistics.data.gov.uk/id/local-authority-district/22UN,Life Opportunities,5140 - Homelessness,9032 - Homelessness Accommodation Charges,05/11/2013,7700696-2,-16.45,REDACTED PERSONAL DATA,REDACTED PERSONAL DATA
Tendring DC,http://statistics.data.gov.uk/id/local-authority-district/22UN,Life Opportunities,5140 - Homelessness,4680 - Bed & Breakfast Accommodation,05/11/2013,7700697-1,240,REDACTED PERSONAL DATA,REDACTED PERSONAL DATA
Tendring DC,http://statistics.data.gov.uk/id/local-authority-district/22UN,Life Opportunities,5140 - Homelessness,9032 - Homelessness Accommodation Charges,05/11/2013,7700697-2,-14.1,REDACTED PERSONAL DATA,REDACTED PERSONAL DATA
Tendring DC,http://statistics.data.gov.uk/id/local-authority-district/22UN,Life Opportunities,5140 - Homelessness,4680 - Bed & Breakfast Accommodation,26/11/2013,7700773-1,140,REDACTED PERSONAL DATA,REDACTED PERSONAL DATA
Tendring DC,http://statistics.data.gov.uk/id/local-authority-district/22UN,Life Opportunities,5140 - Homelessness,9032 - Homelessness Accommodation Charges,26/11/2013,7700773-2,-16.45,REDACTED PERSONAL DATA,REDACTED PERSONAL DATA
Tendring DC,http://statistics.data.gov.uk/id/local-authority-district/22UN,Life Opportunities,5140 - Homelessness,4680 - Bed & Breakfast Accommodation,26/11/2013,7700774-1,40,REDACTED PERSONAL DATA,REDACTED PERSONAL DATA
Tendring DC,http://statistics.data.gov.uk/id/local-authority-district/22UN,Life Opportunities,5140 - Homelessness,9032 - Homelessness Accommodation Charges,26/11/2013,7700774-2,-2.35,REDACTED PERSONAL DATA,REDACTED PERSONAL DATA
Tendring DC,http://statistics.data.gov.uk/id/local-authority-district/22UN,Life Opportunities,H825 - Refurbishment of Door Entry Systems,C200 - Main Contractor,05/11/2013,1055927-1,1626,REDACTED PERSONAL DATA,REDACTED PERSONAL DATA
Tendring DC,http://statistics.data.gov.uk/id/local-authority-district/22UN,Life Opportunities,H825 - Refurbishment of Door Entry Systems,C200 - Main Contractor,05/11/2013,1055927-2,858,REDACTED PERSONAL DATA,REDACTED PERSONAL DATA
Tendring DC,http://statistics.data.gov.uk/id/local-authority-district/22UN,Life Opportunities,H920 - Disabled Facilities Grants,C400 - Grant payments,26/11/2013,1056377-1,2200,REDACTED PERSONAL DATA,REDACTED PERSONAL DATA
Tendring DC,http://statistics.data.gov.uk/id/local-authority-district/22UN,Life Opportunities,H920 - Disabled Facilities Grants,C400 - Grant payments,19/11/2013,2112347-1,4500,REDACTED PERSONAL DATA,REDACTED PERSONAL DATA
Tendring DC,http://statistics.data.gov.uk/id/local-authority-district/22UN,Life Opportunities,1090 - Chief Executive and Support Service Unit,4355 - Books & Periodicals,12/11/2013,1056063-1,37.25,2112734 - Matt's Carousel,MATT'S CAROUSEL - newspapers oct
Tendring DC,http://statistics.data.gov.uk/id/local-authority-district/22UN,Life Opportunities,1100 - Corporate Director (Corporate Services) and Admin Service Unit,4355 - Books & Periodicals,12/11/2013,1056063-2,50.85,2112734 - Matt's Carousel,MATT'S CAROUSEL - newspapers oct
Tendring DC,http://statistics.data.gov.uk/id/local-authority-district/22UN,Life Opportunities,1040 - Regeneration Service Unit,4355 - Books & Periodicals,12/11/2013,1056063-3,21.15,2112734 - Matt's Carousel,MATT'S CAROUSEL - newspapers oct
Tendring DC,http://statistics.data.gov.uk/id/local-authority-district/22UN,Life Opportunities,"1580 - Benefits, Revenues and Customer Contact SU",4355 - Books & Periodicals,12/11/2013,1056063-4,21.15,2112734 - Matt's Carousel,MATT'S CAROUSEL - newspapers oct
Tendring DC,http://statistics.data.gov.uk/id/local-authority-district/22UN,Life Opportunities,7040 - Civic Ceremonial Expenses,4355 - Books & Periodicals,12/11/2013,1056063-5,4,2112734 - Matt's Carousel,MATT'S CAROUSEL - newspapers oct
Tendring DC,http://statistics.data.gov.uk/id/local-authority-district/22UN,Life Opportunities,1090 - Chief Executive and Support Service Unit,4355 - Books & Periodicals,12/11/2013,1056063-6,33,2112734 - Matt's Carousel,MATT'S CAROUSEL - newspapers oct
Tendring DC,http://statistics.data.gov.uk/id/local-authority-district/22UN,Life Opportunities,6160 - Princes Theatre,4040 - Equipment & Tools,19/11/2013,1056153-1,40,2101791 - Medlock Electrical,"12"" 8w fire exit lamps"
Tendring DC,http://statistics.data.gov.uk/id/local-authority-district/22UN,Life Opportunities,1880 - Office Accommodation Expenses,4080 - Materials & Consumables,19/11/2013,1056207-1,58.4,2101791 - Medlock Electrical,pin lamp bulbs
Tendring DC,http://statistics.data.gov.uk/id/local-authority-district/22UN,Life Opportunities,8510 - Dovercourt Swimming Pool & All Weather Facilities,2100 - Building Repairs,12/11/2013,2112271-1,35,2101791 - Medlock Electrical,Dovercourt Pool - Lighting
Tendring DC,http://statistics.data.gov.uk/id/local-authority-district/22UN,Life Opportunities,6160 - Princes Theatre,5160 - Advertising,19/11/2013,1056235-1,199,2102946 - Mellow 1557 Ltd,king of pop free tickets
Tendring DC,http://statistics.data.gov.uk/id/local-authority-district/22UN,Life Opportunities,5880 - Management Of Sport & Leisure Facilities,5166 - Marketing and Promotion,19/11/2013,1056249-1,592.5,2102946 - Mellow 1557 Ltd,radio ad sept
Tendring DC,http://statistics.data.gov.uk/id/local-authority-district/22UN,Life Opportunities,H920 - Disabled Facilities Grants,C400 - Grant payments,19/11/2013,2112349-1,450,REDACTED PERSONAL DATA,REDACTED PERSONAL DATA
Tendring DC,http://statistics.data.gov.uk/id/local-authority-district/22UN,Life Opportunities,9920 - HRA Balance Sheet,B860 - Housing Rents - Cash,26/11/2013,1056423-1,85.81,REDACTED PERSONAL DATA,REDACTED PERSONAL DATA
Tendring DC,http://statistics.data.gov.uk/id/local-authority-district/22UN,Life Opportunities,9920 - HRA Balance Sheet,B860 - Housing Rents - Cash,26/11/2013,1056379-1,56.46,REDACTED PERSONAL DATA,REDACTED PERSONAL DATA
Tendring DC,http://statistics.data.gov.uk/id/local-authority-district/22UN,Life Opportunities,6740 - Careline,9050 - Careline Income - General,05/11/2013,1055982-1,7.8,REDACTED PERSONAL DATA,REDACTED PERSONAL DATA
Tendring DC,http://statistics.data.gov.uk/id/local-authority-district/22UN,Life Opportunities,C021 - Mercury Abatement Equipment and Cremators replacement,C200 - Main Contractor,12/11/2013,2112280-1,840,2111984 - MLM Consulting Engineers Ltd,Weeley Crem M&E Val 1
Tendring DC,http://statistics.data.gov.uk/id/local-authority-district/22UN,Life Opportunities,8540 - Leisure Centre Clacton,4400 - Maintenance Under Service Agreements,19/11/2013,1056170-1,64.4,2104791 - Mobile Mini Uk Ltd,25/9/13 to 22/10/13
Tendring DC,http://statistics.data.gov.uk/id/local-authority-district/22UN,Life Opportunities,8540 - Leisure Centre Clacton,4400 - Maintenance Under Service Agreements,12/11/2013,2112135-1,64.4,2104791 - Mobile Mini Uk Ltd,23/10/13 - 19/11/13
Tendring DC,http://statistics.data.gov.uk/id/local-authority-district/22UN,Life Opportunities,8510 - Dovercourt Swimming Pool & All Weather Facilities,4200 - Clothing & Uniforms,12/11/2013,2112270-1,108,2109450 - Monster Merchandise Ltd,Dovercourt Pool - Uniforms
Tendring DC,http://statistics.data.gov.uk/id/local-authority-district/22UN,Life Opportunities,5480 - HRA - Repair & Maintenance,2073 - Smoke Alarm Service/Testing,26/11/2013,1056427-1,870.96,2111370 - Morrison Facilities Services,GAS SERVICE & REPAIR-SOUTH AREA 13/14
Tendring DC,http://statistics.data.gov.uk/id/local-authority-district/22UN,Life Opportunities,5480 - HRA - Repair & Maintenance,2075 - Gas Service Contract Servicing/Testing (Domestic I,26/11/2013,1056427-2,2523,2111370 - Morrison Facilities Services,GAS SERVICE & REPAIR-SOUTH AREA 13/14
Tendring DC,http://statistics.data.gov.uk/id/local-authority-district/22UN,Life Opportunities,5480 - HRA - Repair & Maintenance,2076 - Gas Service Contract Other Refurbishment/Repairs (,26/11/2013,1056427-3,3882.22,2111370 - Morrison Facilities Services,GAS SERVICE & REPAIR-SOUTH AREA 13/14
Tendring DC,http://statistics.data.gov.uk/id/local-authority-district/22UN,Life Opportunities,5480 - HRA - Repair & Maintenance,2073 - Smoke Alarm Service/Testing,26/11/2013,1056428-1,595.92,2111370 - Morrison Facilities Services,GAS SERVICE & REPAIR-SOUTH AREA 13/14
Tendring DC,http://statistics.data.gov.uk/id/local-authority-district/22UN,Life Opportunities,5480 - HRA - Repair & Maintenance,2075 - Gas Service Contract Servicing/Testing (Domestic I,26/11/2013,1056428-2,1720.04,2111370 - Morrison Facilities Services,GAS SERVICE & REPAIR-SOUTH AREA 13/14
Tendring DC,http://statistics.data.gov.uk/id/local-authority-district/22UN,Life Opportunities,5480 - HRA - Repair & Maintenance,2076 - Gas Service Contract Other Refurbishment/Repairs (,26/11/2013,1056428-3,4643.38,2111370 - Morrison Facilities Services,GAS SERVICE & REPAIR-SOUTH AREA 13/14
Tendring DC,http://statistics.data.gov.uk/id/local-authority-district/22UN,Life Opportunities,C612 - Clacton and Holland Coastal Protection Works Phase 1,C200 - Main Contractor,05/11/2013,2112053-1,19878.25,2109593 - Mott MacDonald,
Tendring DC,http://statistics.data.gov.uk/id/local-authority-district/22UN,Life Opportunities,9920 - HRA Balance Sheet,B860 - Housing Rents - Cash,19/11/2013,2112336-1,76.44,REDACTED PERSONAL DATA,REDACTED PERSONAL DATA
Tendring DC,http://statistics.data.gov.uk/id/local-authority-district/22UN,Life Opportunities,9920 - HRA Balance Sheet,B860 - Housing Rents - Cash,19/11/2013,2112340-1,5,REDACTED PERSONAL DATA,REDACTED PERSONAL DATA
Tendring DC,http://statistics.data.gov.uk/id/local-authority-district/22UN,Life Opportunities,5240 - HRA - Managing Tenancies,5242 - Tenant Relations,12/11/2013,2112253-1,10,REDACTED PERSONAL DATA,REDACTED PERSONAL DATA
Tendring DC,http://statistics.data.gov.uk/id/local-authority-district/22UN,Life Opportunities,6740 - Careline,9050 - Careline Income - General,05/11/2013,1055978-1,12.77,REDACTED PERSONAL DATA,REDACTED PERSONAL DATA
Tendring DC,http://statistics.data.gov.uk/id/local-authority-district/22UN,Life Opportunities,6740 - Careline,9050 - Careline Income - General,05/11/2013,1055981-1,9,REDACTED PERSONAL DATA,REDACTED PERSONAL DATA
Tendring DC,http://statistics.data.gov.uk/id/local-authority-district/22UN,Life Opportunities,8540 - Leisure Centre Clacton,9200 - Course Income,05/11/2013,1055991-1,25,REDACTED PERSONAL DATA,REDACTED PERSONAL DATA
Tendring DC,http://statistics.data.gov.uk/id/local-authority-district/22UN,Life Opportunities,7300 - Licencing,9087 - Licence Fees,05/11/2013,1055984-1,116.5,REDACTED PERSONAL DATA,REDACTED PERSONAL DATA
Tendring DC,http://statistics.data.gov.uk/id/local-authority-district/22UN,Life Opportunities,4360 - Development Control - Chargeable Account,9004 - Planning Fees,05/11/2013,1055983-1,195,REDACTED PERSONAL DATA,REDACTED PERSONAL DATA
Tendring DC,http://statistics.data.gov.uk/id/local-authority-district/22UN,Life Opportunities,9920 - HRA Balance Sheet,B860 - Housing Rents - Cash,19/11/2013,2112341-1,150.62,REDACTED PERSONAL DATA,REDACTED PERSONAL DATA
Tendring DC,http://statistics.data.gov.uk/id/local-authority-district/22UN,Life Opportunities,9920 - HRA Balance Sheet,B860 - Housing Rents - Cash,19/11/2013,2112338-1,556.32,REDACTED PERSONAL DATA,REDACTED PERSONAL DATA
Tendring DC,http://statistics.data.gov.uk/id/local-authority-district/22UN,Life Opportunities,9920 - HRA Balance Sheet,B860 - Housing Rents - Cash,19/11/2013,2112343-1,204.06,REDACTED PERSONAL DATA,REDACTED PERSONAL DATA
Tendring DC,http://statistics.data.gov.uk/id/local-authority-district/22UN,Life Opportunities,9920 - HRA Balance Sheet,B860 - Housing Rents - Cash,19/11/2013,2112335-1,144.34,REDACTED PERSONAL DATA,REDACTED PERSONAL DATA
Tendring DC,http://statistics.data.gov.uk/id/local-authority-district/22UN,Life Opportunities,5220 - HRA - Policy & Management,5930 - Business Planning Expenses,19/11/2013,1056321-1,7480,REDACTED PERSONAL DATA,REDACTED PERSONAL DATA
Tendring DC,http://statistics.data.gov.uk/id/local-authority-district/22UN,Life Opportunities,5240 - HRA - Managing Tenancies,5242 - Tenant Relations,12/11/2013,2112243-1,10,REDACTED PERSONAL DATA,REDACTED PERSONAL DATA
Tendring DC,http://statistics.data.gov.uk/id/local-authority-district/22UN,Life Opportunities,5240 - HRA - Managing Tenancies,5242 - Tenant Relations,12/11/2013,2112249-1,10,REDACTED PERSONAL DATA,REDACTED PERSONAL DATA
Tendring DC,http://statistics.data.gov.uk/id/local-authority-district/22UN,Life Opportunities,5240 - HRA - Managing Tenancies,5242 - Tenant Relations,12/11/2013,2112254-1,10,REDACTED PERSONAL DATA,REDACTED PERSONAL DATA
Tendring DC,http://statistics.data.gov.uk/id/local-authority-district/22UN,Life Opportunities,6740 - Careline,9050 - Careline Income - General,05/11/2013,1055987-1,5.81,REDACTED PERSONAL DATA,REDACTED PERSONAL DATA
Tendring DC,http://statistics.data.gov.uk/id/local-authority-district/22UN,Life Opportunities,9920 - HRA Balance Sheet,B860 - Housing Rents - Cash,19/11/2013,2112337-1,82.32,REDACTED PERSONAL DATA,REDACTED PERSONAL DATA
Tendring DC,http://statistics.data.gov.uk/id/local-authority-district/22UN,Life Opportunities,H920 - Disabled Facilities Grants,C400 - Grant payments,26/11/2013,1056378-1,600,REDACTED PERSONAL DATA,REDACTED PERSONAL DATA
Tendring DC,http://statistics.data.gov.uk/id/local-authority-district/22UN,Life Opportunities,6740 - Careline,9050 - Careline Income - General,05/11/2013,1055979-1,12.77,REDACTED PERSONAL DATA,REDACTED PERSONAL DATA
Tendring DC,http://statistics.data.gov.uk/id/local-authority-district/22UN,Life Opportunities,9920 - HRA Balance Sheet,B860 - Housing Rents - Cash,26/11/2013,1056424-1,100,REDACTED PERSONAL DATA,REDACTED PERSONAL DATA
Tendring DC,http://statistics.data.gov.uk/id/local-authority-district/22UN,Life Opportunities,9920 - HRA Balance Sheet,B860 - Housing Rents - Cash,19/11/2013,2112342-1,280.15,REDACTED PERSONAL DATA,REDACTED PERSONAL DATA
Tendring DC,http://statistics.data.gov.uk/id/local-authority-district/22UN,Life Opportunities,9920 - HRA Balance Sheet,B860 - Housing Rents - Cash,19/11/2013,2112334-1,670.76,REDACTED PERSONAL DATA,REDACTED PERSONAL DATA
Tendring DC,http://statistics.data.gov.uk/id/local-authority-district/22UN,Life Opportunities,5820 - Harwich Sports Centre,4597 - Hired Services - Payments to Contractors,19/11/2013,1056310-1,40,2112299 - My Time Fitness Ltd,fitness classes
Tendring DC,http://statistics.data.gov.uk/id/local-authority-district/22UN,Life Opportunities,1240 - Housing Services Service Unit,3302 - Car Allowances - Officers,05/11/2013,1055976-1,60,REDACTED PERSONAL DATA,REDACTED PERSONAL DATA
Tendring DC,http://statistics.data.gov.uk/id/local-authority-district/22UN,Life Opportunities,7600 - Tourist Information Centres,9356 - Commission Sales,12/11/2013,1056058-1,1046.6,2110032 - National Express Ltd,national express oct 13
Tendring DC,http://statistics.data.gov.uk/id/local-authority-district/22UN,Life Opportunities,7600 - Tourist Information Centres,9356 - Commission Sales,12/11/2013,1056058-2,-89.21,2110032 - National Express Ltd,national express oct 13
Tendring DC,http://statistics.data.gov.uk/id/local-authority-district/22UN,Life Opportunities,6160 - Princes Theatre,5160 - Advertising,12/11/2013,1056103-1,107.94,2100989 - Newsquest (London) Ltd,jim davidson 2013
Tendring DC,http://statistics.data.gov.uk/id/local-authority-district/22UN,Life Opportunities,6160 - Princes Theatre,5160 - Advertising,12/11/2013,1056104-1,150,2100989 - Newsquest (London) Ltd,evening gazette 16/10/13
Tendring DC,http://statistics.data.gov.uk/id/local-authority-district/22UN,Life Opportunities,6160 - Princes Theatre,5160 - Advertising,12/11/2013,1056105-1,80.1,2100989 - Newsquest (London) Ltd,wrestling oct 13
Tendring DC,http://statistics.data.gov.uk/id/local-authority-district/22UN,Life Opportunities,6160 - Princes Theatre,5160 - Advertising,12/11/2013,1056106-1,195,2100989 - Newsquest (London) Ltd,evening gazette 23/10
Tendring DC,http://statistics.data.gov.uk/id/local-authority-district/22UN,Life Opportunities,6160 - Princes Theatre,5160 - Advertising,12/11/2013,1056107-1,187.32,2100989 - Newsquest (London) Ltd,clacton and frinton gazette 24/10
Tendring DC,http://statistics.data.gov.uk/id/local-authority-district/22UN,Life Opportunities,6160 - Princes Theatre,5160 - Advertising,19/11/2013,1056143-1,229.74,2100989 - Newsquest (London) Ltd,clacton/frinton gaz 31/10 and 1/11
Tendring DC,http://statistics.data.gov.uk/id/local-authority-district/22UN,Life Opportunities,6160 - Princes Theatre,5160 - Advertising,19/11/2013,1056144-1,214,2100989 - Newsquest (London) Ltd,barbara dickson 31/10
Tendring DC,http://statistics.data.gov.uk/id/local-authority-district/22UN,Life Opportunities,6160 - Princes Theatre,5160 - Advertising,19/11/2013,1056145-1,306.33,2100989 - Newsquest (London) Ltd,lee nelson 31/10 and 1/11
Tendring DC,http://statistics.data.gov.uk/id/local-authority-district/22UN,Life Opportunities,6160 - Princes Theatre,5160 - Advertising,19/11/2013,1056146-1,178.5,2100989 - Newsquest (London) Ltd,clacton/frinton gaz 24/10
Tendring DC,http://statistics.data.gov.uk/id/local-authority-district/22UN,Life Opportunities,6160 - Princes Theatre,5160 - Advertising,19/11/2013,1056283-1,143.92,2100989 - Newsquest (London) Ltd,Clacton/Frinton Gaz 07/11
Tendring DC,http://statistics.data.gov.uk/id/local-authority-district/22UN,Life Opportunities,6160 - Princes Theatre,5160 - Advertising,19/11/2013,1056284-1,151.8,2100989 - Newsquest (London) Ltd,Clacton/Frinton Gaz 07/08/2011 ladder
Tendring DC,http://statistics.data.gov.uk/id/local-authority-district/22UN,Life Opportunities,6160 - Princes Theatre,5160 - Advertising,19/11/2013,1056285-1,164.5,2100989 - Newsquest (London) Ltd,Polkadot Pantomimes 07/11
Tendring DC,http://statistics.data.gov.uk/id/local-authority-district/22UN,Life Opportunities,6160 - Princes Theatre,5160 - Advertising,19/11/2013,1056286-1,143.92,2100989 - Newsquest (London) Ltd,Stars of the opera
Tendring DC,http://statistics.data.gov.uk/id/local-authority-district/22UN,Life Opportunities,6160 - Princes Theatre,5160 - Advertising,26/11/2013,7009788-1,80.1,2100989 - Newsquest (London) Ltd,REMEMBER WHEN AT CHRISTMAS
Tendring DC,http://statistics.data.gov.uk/id/local-authority-district/22UN,Life Opportunities,6160 - Princes Theatre,5160 - Advertising,26/11/2013,7009789-1,101.2,2100989 - Newsquest (London) Ltd,GAZETTE & EVENING GAZETTE 13/14/11
Tendring DC,http://statistics.data.gov.uk/id/local-authority-district/22UN,Life Opportunities,6160 - Princes Theatre,4622 - Hired Services - Artistes and Production Companies,19/11/2013,1056238-1,2322.23,2113469 - Nick Brooke Ltd,aliens love underpants
Tendring DC,http://statistics.data.gov.uk/id/local-authority-district/22UN,Life Opportunities,H875 - Compulsary Purchase and Refurbishment,C200 - Main Contractor,12/11/2013,2112190-1,1500,REDACTED PERSONAL DATA,REDACTED PERSONAL DATA
Tendring DC,http://statistics.data.gov.uk/id/local-authority-district/22UN,Life Opportunities,H875 - Compulsary Purchase and Refurbishment,C200 - Main Contractor,12/11/2013,2112190-2,40,REDACTED PERSONAL DATA,REDACTED PERSONAL DATA
Tendring DC,http://statistics.data.gov.uk/id/local-authority-district/22UN,Life Opportunities,5140 - Homelessness,4683 - Other Homelessness Expenses,12/11/2013,2112186-1,50,REDACTED PERSONAL DATA,REDACTED PERSONAL DATA
Tendring DC,http://statistics.data.gov.uk/id/local-authority-district/22UN,Life Opportunities,5360 - HRA - Sheltered Units,2304 - Energy Costs - Electricity,05/11/2013,1055889-1,10.44,2103812 - Npower Limited,20 CE-6R 19/05/12-19/8/2013
Tendring DC,http://statistics.data.gov.uk/id/local-authority-district/22UN,Life Opportunities,5360 - HRA - Sheltered Units,2702 - Window Cleaning,26/11/2013,7009885-1,200,2102096 - Nu-Life Cleaning,JULY-SEPT - LITTER PICKING AT 10 SHELTERED SCHEMES
Tendring DC,http://statistics.data.gov.uk/id/local-authority-district/22UN,Life Opportunities,5360 - HRA - Sheltered Units,2702 - Window Cleaning,26/11/2013,7009886-1,1350,2102096 - Nu-Life Cleaning,JULY-SEPT 2013 WINDOW CLEANING TO 10 SHELTERED SCHEMES
Tendring DC,http://statistics.data.gov.uk/id/local-authority-district/22UN,Life Opportunities,5140 - Homelessness,4683 - Other Homelessness Expenses,05/11/2013,2112076-1,272,REDACTED PERSONAL DATA,REDACTED PERSONAL DATA
Tendring DC,http://statistics.data.gov.uk/id/local-authority-district/22UN,Life Opportunities,5140 - Homelessness,4683 - Other Homelessness Expenses,05/11/2013,2112077-1,320,REDACTED PERSONAL DATA,REDACTED PERSONAL DATA
Tendring DC,http://statistics.data.gov.uk/id/local-authority-district/22UN,Life Opportunities,5140 - Homelessness,4683 - Other Homelessness Expenses,05/11/2013,2112078-1,280,REDACTED PERSONAL DATA,REDACTED PERSONAL DATA
Tendring DC,http://statistics.data.gov.uk/id/local-authority-district/22UN,Life Opportunities,6160 - Princes Theatre,5306 - Confectionary,05/11/2013,1055842-1,202.98,2101083 - Osgood Smith,confectionary for theatre
Tendring DC,http://statistics.data.gov.uk/id/local-authority-district/22UN,Life Opportunities,8520 - Frinton & Walton Swimming Pool,5311 - General Provisions - Vending,05/11/2013,1055847-1,169.7,2101083 - Osgood Smith,fwsp - osgood smith
Tendring DC,http://statistics.data.gov.uk/id/local-authority-district/22UN,Life Opportunities,5820 - Harwich Sports Centre,5311 - General Provisions - Vending,05/11/2013,1055848-1,50.5,2101083 - Osgood Smith,canteen goods
Tendring DC,http://statistics.data.gov.uk/id/local-authority-district/22UN,Life Opportunities,6160 - Princes Theatre,5306 - Confectionary,05/11/2013,1055849-1,139.62,2101083 - Osgood Smith,confectionary for theatre bar
Tendring DC,http://statistics.data.gov.uk/id/local-authority-district/22UN,Life Opportunities,6160 - Princes Theatre,5306 - Confectionary,05/11/2013,1055849-2,8.02,2101083 - Osgood Smith,confectionary for theatre bar
Tendring DC,http://statistics.data.gov.uk/id/local-authority-district/22UN,Life Opportunities,8520 - Frinton & Walton Swimming Pool,5311 - General Provisions - Vending,05/11/2013,1055892-1,190.54,2101083 - Osgood Smith,oSGOOD SMITH - FWSP
Tendring DC,http://statistics.data.gov.uk/id/local-authority-district/22UN,Life Opportunities,8520 - Frinton & Walton Swimming Pool,5311 - General Provisions - Vending,05/11/2013,1055893-1,63.4,2101083 - Osgood Smith,OSGOOD SMITH - FWSP
Tendring DC,http://statistics.data.gov.uk/id/local-authority-district/22UN,Life Opportunities,5820 - Harwich Sports Centre,5311 - General Provisions - Vending,12/11/2013,1056072-1,30.12,2101083 - Osgood Smith,canteen goods
Tendring DC,http://statistics.data.gov.uk/id/local-authority-district/22UN,Life Opportunities,5800 - Brightlingsea Sports Centre,5316 - General Provisions,19/11/2013,1056181-1,181.44,2101083 - Osgood Smith,osgood smith
Tendring DC,http://statistics.data.gov.uk/id/local-authority-district/22UN,Life Opportunities,5820 - Harwich Sports Centre,5311 - General Provisions - Vending,19/11/2013,1056195-1,62.94,2101083 - Osgood Smith,canteen goods
Tendring DC,http://statistics.data.gov.uk/id/local-authority-district/22UN,Life Opportunities,5860 - Manningtree Sports Centre,5311 - General Provisions - Vending,19/11/2013,1056303-1,69.62,2101083 - Osgood Smith,vending supplies
Tendring DC,http://statistics.data.gov.uk/id/local-authority-district/22UN,Life Opportunities,6160 - Princes Theatre,5306 - Confectionary,12/11/2013,2112156-1,198.8,2101083 - Osgood Smith,Confectionery
Tendring DC,http://statistics.data.gov.uk/id/local-authority-district/22UN,Life Opportunities,8510 - Dovercourt Swimming Pool & All Weather Facilities,5311 - General Provisions - Vending,12/11/2013,2112268-1,20.2,2101083 - Osgood Smith,Dovercourt Pool - Sweets
Tendring DC,http://statistics.data.gov.uk/id/local-authority-district/22UN,Life Opportunities,8510 - Dovercourt Swimming Pool & All Weather Facilities,5311 - General Provisions - Vending,12/11/2013,2112269-1,218.57,2101083 - Osgood Smith,Dovercourt Pool - Sweets
Tendring DC,http://statistics.data.gov.uk/id/local-authority-district/22UN,Life Opportunities,5860 - Manningtree Sports Centre,5311 - General Provisions - Vending,12/11/2013,2112273-1,7.81,2101083 - Osgood Smith,Vending Supplies
Tendring DC,http://statistics.data.gov.uk/id/local-authority-district/22UN,Life Opportunities,5860 - Manningtree Sports Centre,5311 - General Provisions - Vending,12/11/2013,2112274-1,117.82,2101083 - Osgood Smith,Vending Supplies
Tendring DC,http://statistics.data.gov.uk/id/local-authority-district/22UN,Life Opportunities,5860 - Manningtree Sports Centre,5311 - General Provisions - Vending,12/11/2013,2112274-2,-5,2101083 - Osgood Smith,Vending Supplies
Tendring DC,http://statistics.data.gov.uk/id/local-authority-district/22UN,Life Opportunities,5860 - Manningtree Sports Centre,5311 - General Provisions - Vending,12/11/2013,2112275-1,129.72,2101083 - Osgood Smith,Vending Supplies
Tendring DC,http://statistics.data.gov.uk/id/local-authority-district/22UN,Life Opportunities,5860 - Manningtree Sports Centre,5311 - General Provisions - Vending,12/11/2013,2112275-2,-5,2101083 - Osgood Smith,Vending Supplies
Tendring DC,http://statistics.data.gov.uk/id/local-authority-district/22UN,Life Opportunities,8520 - Frinton & Walton Swimming Pool,5311 - General Provisions - Vending,26/11/2013,2112422-1,141.57,2101083 - Osgood Smith,FWSP Osgood Smith
Tendring DC,http://statistics.data.gov.uk/id/local-authority-district/22UN,Life Opportunities,6160 - Princes Theatre,5306 - Confectionary,26/11/2013,7009790-1,175.17,2101083 - Osgood Smith,CONFECTIONARY FOR THEATRE
Tendring DC,http://statistics.data.gov.uk/id/local-authority-district/22UN,Life Opportunities,6160 - Princes Theatre,5306 - Confectionary,26/11/2013,7009790-2,8.02,2101083 - Osgood Smith,CONFECTIONARY FOR THEATRE
Tendring DC,http://statistics.data.gov.uk/id/local-authority-district/22UN,Life Opportunities,5860 - Manningtree Sports Centre,5311 - General Provisions - Vending,26/11/2013,7009834-1,110.26,2101083 - Osgood Smith,VENDING SUPPLIES
Tendring DC,http://statistics.data.gov.uk/id/local-authority-district/22UN,Life Opportunities,5820 - Harwich Sports Centre,5311 - General Provisions - Vending,26/11/2013,7009854-1,41.6,2101083 - Osgood Smith,CANTEEN GOODS
Tendring DC,http://statistics.data.gov.uk/id/local-authority-district/22UN,Life Opportunities,8520 - Frinton & Walton Swimming Pool,5311 - General Provisions - Vending,26/11/2013,7009855-1,217.51,2101083 - Osgood Smith,FWSP - OSGOOD SMITH
Tendring DC,http://statistics.data.gov.uk/id/local-authority-district/22UN,Life Opportunities,8520 - Frinton & Walton Swimming Pool,5311 - General Provisions - Vending,26/11/2013,7009856-1,42.2,2101083 - Osgood Smith,FWSP - OSGOOD SMITH
Tendring DC,http://statistics.data.gov.uk/id/local-authority-district/22UN,Life Opportunities,8520 - Frinton & Walton Swimming Pool,5311 - General Provisions - Vending,26/11/2013,7009859-1,103.89,2101083 - Osgood Smith,FWSP - OSGOOD SMITH
Tendring DC,http://statistics.data.gov.uk/id/local-authority-district/22UN,Life Opportunities,8520 - Frinton & Walton Swimming Pool,5311 - General Provisions - Vending,26/11/2013,7009859-2,23.4,2101083 - Osgood Smith,FWSP - OSGOOD SMITH
Tendring DC,http://statistics.data.gov.uk/id/local-authority-district/22UN,Life Opportunities,8520 - Frinton & Walton Swimming Pool,5311 - General Provisions - Vending,26/11/2013,7009906-1,-7.02,2101083 - Osgood Smith,FWSP - OSGOOD SMITH
Tendring DC,http://statistics.data.gov.uk/id/local-authority-district/22UN,Life Opportunities,9900 - General Fund Balance Sheet,B382 - Rechargeable Works - Other,05/11/2013,1055874-1,172,2101034 - Oxborrow Engineering,replace palisade poles on beacon hill fort gate
Tendring DC,http://statistics.data.gov.uk/id/local-authority-district/22UN,Life Opportunities,5240 - HRA - Managing Tenancies,5242 - Tenant Relations,12/11/2013,2112255-1,10,REDACTED PERSONAL DATA,REDACTED PERSONAL DATA
Tendring DC,http://statistics.data.gov.uk/id/local-authority-district/22UN,Life Opportunities,H715 - Measures To Combat Condensation,C200 - Main Contractor,19/11/2013,1056135-1,946,REDACTED PERSONAL DATA,REDACTED PERSONAL DATA
Tendring DC,http://statistics.data.gov.uk/id/local-authority-district/22UN,Life Opportunities,H715 - Measures To Combat Condensation,C200 - Main Contractor,19/11/2013,1056135-2,448,REDACTED PERSONAL DATA,REDACTED PERSONAL DATA
Tendring DC,http://statistics.data.gov.uk/id/local-authority-district/22UN,Life Opportunities,H715 - Measures To Combat Condensation,C200 - Main Contractor,19/11/2013,1056136-1,790,REDACTED PERSONAL DATA,REDACTED PERSONAL DATA
Tendring DC,http://statistics.data.gov.uk/id/local-authority-district/22UN,Life Opportunities,H715 - Measures To Combat Condensation,C200 - Main Contractor,19/11/2013,1056136-2,386,REDACTED PERSONAL DATA,REDACTED PERSONAL DATA
Tendring DC,http://statistics.data.gov.uk/id/local-authority-district/22UN,Life Opportunities,5480 - HRA - Repair & Maintenance,2017 - Mechanical Equipment /Extract Fans,19/11/2013,1056137-1,50,REDACTED PERSONAL DATA,REDACTED PERSONAL DATA
Tendring DC,http://statistics.data.gov.uk/id/local-authority-district/22UN,Life Opportunities,5480 - HRA - Repair & Maintenance,2017 - Mechanical Equipment /Extract Fans,19/11/2013,1056137-2,98,REDACTED PERSONAL DATA,REDACTED PERSONAL DATA
Tendring DC,http://statistics.data.gov.uk/id/local-authority-district/22UN,Life Opportunities,H920 - Disabled Facilities Grants,C400 - Grant payments,05/11/2013,1055989-1,1800,REDACTED PERSONAL DATA,REDACTED PERSONAL DATA
Tendring DC,http://statistics.data.gov.uk/id/local-authority-district/22UN,Life Opportunities,5880 - Management Of Sport & Leisure Facilities,5166 - Marketing and Promotion,19/11/2013,1056191-1,175,2101097 - Peter Lockyer Advertising Ltd,artwork for cfg
Tendring DC,http://statistics.data.gov.uk/id/local-authority-district/22UN,Life Opportunities,5860 - Manningtree Sports Centre,4597 - Hired Services - Payments to Contractors,26/11/2013,7009840-1,60,2112933 - Phoenix Archery Club,ARCHERY SESSIONS
Tendring DC,http://statistics.data.gov.uk/id/local-authority-district/22UN,Life Opportunities,5860 - Manningtree Sports Centre,4597 - Hired Services - Payments to Contractors,26/11/2013,7009841-1,240,2112933 - Phoenix Archery Club,ARCHERY SESSIONS
Tendring DC,http://statistics.data.gov.uk/id/local-authority-district/22UN,Life Opportunities,8540 - Leisure Centre Clacton,4000 - Furniture,19/11/2013,1056185-1,45.9,2101068 - Physical Company,supaflex bands
Tendring DC,http://statistics.data.gov.uk/id/local-authority-district/22UN,Life Opportunities,5420 - HRA - Communal Cleaning,2706 - Communal Areas Cleaning Expenses,05/11/2013,1055878-1,3521.58,2107884 - Pinnacle Essex,monthly cleaning services october 2013
Tendring DC,http://statistics.data.gov.uk/id/local-authority-district/22UN,Life Opportunities,5420 - HRA - Communal Cleaning,2706 - Communal Areas Cleaning Expenses,26/11/2013,1056401-1,3521.58,2107884 - Pinnacle Essex,MONTHLY CLEANING FEE NOV 2013
Tendring DC,http://statistics.data.gov.uk/id/local-authority-district/22UN,Life Opportunities,5420 - HRA - Communal Cleaning,2706 - Communal Areas Cleaning Expenses,26/11/2013,1056401-2,0,2107884 - Pinnacle Essex,MONTHLY CLEANING FEE NOV 2013
Tendring DC,http://statistics.data.gov.uk/id/local-authority-district/22UN,Life Opportunities,7520 - Tourism Publicity Marketing Promotion,5160 - Advertising,19/11/2013,1056151-1,90,2102483 - Plum Publishing Ltd,issue 322
Tendring DC,http://statistics.data.gov.uk/id/local-authority-district/22UN,Life Opportunities,5480 - HRA - Repair & Maintenance,2090 - Fencing,05/11/2013,1055844-1,1504,REDACTED PERSONAL DATA,REDACTED PERSONAL DATA
Tendring DC,http://statistics.data.gov.uk/id/local-authority-district/22UN,Life Opportunities,5480 - HRA - Repair & Maintenance,2090 - Fencing,05/11/2013,1055845-1,304.2,REDACTED PERSONAL DATA,REDACTED PERSONAL DATA
Tendring DC,http://statistics.data.gov.uk/id/local-authority-district/22UN,Life Opportunities,5480 - HRA - Repair & Maintenance,2090 - Fencing,05/11/2013,1055846-1,504,REDACTED PERSONAL DATA,REDACTED PERSONAL DATA
Tendring DC,http://statistics.data.gov.uk/id/local-authority-district/22UN,Life Opportunities,5480 - HRA - Repair & Maintenance,2001 - Responsive Maintenance - Concrete And Other Extern,12/11/2013,2112112-1,870.55,REDACTED PERSONAL DATA,REDACTED PERSONAL DATA
Tendring DC,http://statistics.data.gov.uk/id/local-authority-district/22UN,Life Opportunities,5480 - HRA - Repair & Maintenance,2090 - Fencing,12/11/2013,2112262-1,411.86,REDACTED PERSONAL DATA,REDACTED PERSONAL DATA
Tendring DC,http://statistics.data.gov.uk/id/local-authority-district/22UN,Life Opportunities,H710 - Selected Improvements,C200 - Main Contractor,12/11/2013,2112285-1,10895,REDACTED PERSONAL DATA,REDACTED PERSONAL DATA
Tendring DC,http://statistics.data.gov.uk/id/local-authority-district/22UN,Life Opportunities,5480 - HRA - Repair & Maintenance,2090 - Fencing,12/11/2013,2112286-1,236,REDACTED PERSONAL DATA,REDACTED PERSONAL DATA
Tendring DC,http://statistics.data.gov.uk/id/local-authority-district/22UN,Life Opportunities,5480 - HRA - Repair & Maintenance,2090 - Fencing,26/11/2013,7009792-1,147,REDACTED PERSONAL DATA,REDACTED PERSONAL DATA
Tendring DC,http://statistics.data.gov.uk/id/local-authority-district/22UN,Life Opportunities,H710 - Selected Improvements,C200 - Main Contractor,26/11/2013,7009793-1,3188,2107848 - PMC Landscapes,LANGHAM DRIVE
Tendring DC,http://statistics.data.gov.uk/id/local-authority-district/22UN,Life Opportunities,H710 - Selected Improvements,C200 - Main Contractor,26/11/2013,7009794-1,3695,2107848 - PMC Landscapes,LANGHAM DRIVE
Tendring DC,http://statistics.data.gov.uk/id/local-authority-district/22UN,Life Opportunities,H710 - Selected Improvements,C200 - Main Contractor,26/11/2013,7009795-1,2495,2107848 - PMC Landscapes,LANGHAM DRIVE
Tendring DC,http://statistics.data.gov.uk/id/local-authority-district/22UN,Life Opportunities,6160 - Princes Theatre,4622 - Hired Services - Artistes and Production Companies,26/11/2013,7009798-1,13891.94,2111649 - Polka Dot Pantomimes,PETER PAN 3RD PAYMENT
Tendring DC,http://statistics.data.gov.uk/id/local-authority-district/22UN,Life Opportunities,H920 - Disabled Facilities Grants,C400 - Grant payments,26/11/2013,1056374-1,4530.2,REDACTED PERSONAL DATA,REDACTED PERSONAL DATA
Tendring DC,http://statistics.data.gov.uk/id/local-authority-district/22UN,Life Opportunities,H920 - Disabled Facilities Grants,C400 - Grant payments,12/11/2013,2112260-1,4168.75,REDACTED PERSONAL DATA,REDACTED PERSONAL DATA
Tendring DC,http://statistics.data.gov.uk/id/local-authority-district/22UN,Life Opportunities,H920 - Disabled Facilities Grants,C400 - Grant payments,19/11/2013,2112345-1,576.32,REDACTED PERSONAL DATA,REDACTED PERSONAL DATA
Tendring DC,http://statistics.data.gov.uk/id/local-authority-district/22UN,Life Opportunities,6160 - Princes Theatre,4622 - Hired Services - Artistes and Production Companies,19/11/2013,1056152-1,5363.44,2112058 - Prestige Productions Ltd,essence of ireland
Tendring DC,http://statistics.data.gov.uk/id/local-authority-district/22UN,Life Opportunities,5880 - Management Of Sport & Leisure Facilities,4597 - Hired Services - Payments to Contractors,19/11/2013,1056141-1,3962,2101181 - Pro Mac Surfacing,CLC CAR PARK REPAIRS
Tendring DC,http://statistics.data.gov.uk/id/local-authority-district/22UN,Life Opportunities,5480 - HRA - Repair & Maintenance,2020 - Fixed Plant repairs,12/11/2013,1056114-1,375,2107707 - Professional Cleaning Services (Essex) Ltd,kate daniels house
Tendring DC,http://statistics.data.gov.uk/id/local-authority-district/22UN,Life Opportunities,5480 - HRA - Repair & Maintenance,2012 - Responsive Maintenance - Clearance And Cleaning,19/11/2013,1056292-1,50,REDACTED PERSONAL DATA,REDACTED PERSONAL DATA
Tendring DC,http://statistics.data.gov.uk/id/local-authority-district/22UN,Life Opportunities,5860 - Manningtree Sports Centre,4040 - Equipment & Tools,05/11/2013,1055867-1,1650,2101172 - Pulse Fitness plc,fitness equipment
Tendring DC,http://statistics.data.gov.uk/id/local-authority-district/22UN,Life Opportunities,1880 - Office Accommodation Expenses,2100 - Building Repairs,19/11/2013,1056173-1,9.9,2113149 - Quality Office Supplies Ltd,key
Tendring DC,http://statistics.data.gov.uk/id/local-authority-district/22UN,Life Opportunities,1880 - Office Accommodation Expenses,4000 - Furniture,19/11/2013,1056174-1,175,2113149 - Quality Office Supplies Ltd,chair for weeley
Tendring DC,http://statistics.data.gov.uk/id/local-authority-district/22UN,Life Opportunities,1880 - Office Accommodation Expenses,4000 - Furniture,19/11/2013,1056201-1,249.5,2113149 - Quality Office Supplies Ltd,free standing screens th reception
Tendring DC,http://statistics.data.gov.uk/id/local-authority-district/22UN,Life Opportunities,1880 - Office Accommodation Expenses,4000 - Furniture,19/11/2013,1056202-1,9.9,2113149 - Quality Office Supplies Ltd,key for no 208
Tendring DC,http://statistics.data.gov.uk/id/local-authority-district/22UN,Life Opportunities,1880 - Office Accommodation Expenses,4000 - Furniture,19/11/2013,1056203-1,678.9,2113149 - Quality Office Supplies Ltd,reception furniture townHall
Tendring DC,http://statistics.data.gov.uk/id/local-authority-district/22UN,Life Opportunities,1880 - Office Accommodation Expenses,4000 - Furniture,19/11/2013,1056204-1,241.95,2113149 - Quality Office Supplies Ltd,conference desk table @ northbourne
Tendring DC,http://statistics.data.gov.uk/id/local-authority-district/22UN,Life Opportunities,5220 - HRA - Policy & Management,4312 - Tenancy Stationery,19/11/2013,1056209-1,616,2113149 - Quality Office Supplies Ltd,2 x desks and pedestals
Tendring DC,http://statistics.data.gov.uk/id/local-authority-district/22UN,Life Opportunities,1880 - Office Accommodation Expenses,4000 - Furniture,26/11/2013,7009853-1,175,2113149 - Quality Office Supplies Ltd,CHAIR FOR WEELEY
Tendring DC,http://statistics.data.gov.uk/id/local-authority-district/22UN,Life Opportunities,H710 - Selected Improvements,C200 - Main Contractor,26/11/2013,7009744-1,253.95,2107172 - R I Cantrell Engineering Ltd,CROOKED ELMS BOILER ROOM OVERHEATING
Tendring DC,http://statistics.data.gov.uk/id/local-authority-district/22UN,Life Opportunities,6740 - Careline,4350 - Photocopier Hire,05/11/2013,1055828-1,241.61,2101090 - Ricoh UK Ltd,ricoh-photocopier hire
Tendring DC,http://statistics.data.gov.uk/id/local-authority-district/22UN,Life Opportunities,8520 - Frinton & Walton Swimming Pool,4400 - Maintenance Under Service Agreements,05/11/2013,1055894-1,120.48,2101090 - Ricoh UK Ltd,FWSP - RICOH
Tendring DC,http://statistics.data.gov.uk/id/local-authority-district/22UN,Life Opportunities,8540 - Leisure Centre Clacton,4000 - Furniture,19/11/2013,1056256-1,62.46,2101127 - RLSS UK Enterprises Ltd,dermi wipes
Tendring DC,http://statistics.data.gov.uk/id/local-authority-district/22UN,Life Opportunities,8540 - Leisure Centre Clacton,4000 - Furniture,26/11/2013,2112419-1,62.46,2101127 - RLSS UK Enterprises Ltd,Dermi Wires
Tendring DC,http://statistics.data.gov.uk/id/local-authority-district/22UN,Life Opportunities,5480 - HRA - Repair & Maintenance,2088 - Disabled Adaptations,05/11/2013,1055932-1,15.57,REDACTED PERSONAL DATA,REDACTED PERSONAL DATA
Tendring DC,http://statistics.data.gov.uk/id/local-authority-district/22UN,Life Opportunities,H706 - Kitchen & Bathroom Replacement,C200 - Main Contractor,05/11/2013,1055933-1,3519.37,REDACTED PERSONAL DATA,REDACTED PERSONAL DATA
Tendring DC,http://statistics.data.gov.uk/id/local-authority-district/22UN,Life Opportunities,5480 - HRA - Repair & Maintenance,2088 - Disabled Adaptations,05/11/2013,1055934-1,365.84,REDACTED PERSONAL DATA,REDACTED PERSONAL DATA
Tendring DC,http://statistics.data.gov.uk/id/local-authority-district/22UN,Life Opportunities,H706 - Kitchen & Bathroom Replacement,C200 - Main Contractor,05/11/2013,1055935-1,9569.66,REDACTED PERSONAL DATA,REDACTED PERSONAL DATA
Tendring DC,http://statistics.data.gov.uk/id/local-authority-district/22UN,Life Opportunities,5400 - HRA - Estate Sweeping,2079 - External Decoration,12/11/2013,1056125-1,43419.04,2101187 - Roalco Limited,
Tendring DC,http://statistics.data.gov.uk/id/local-authority-district/22UN,Life Opportunities,5400 - HRA - Estate Sweeping,2080 - Pre Painting Repairs,12/11/2013,1056125-2,18512.01,2101187 - Roalco Limited,
Tendring DC,http://statistics.data.gov.uk/id/local-authority-district/22UN,Life Opportunities,H860 - Disabled Adaptations,C200 - Main Contractor,19/11/2013,1056139-1,503.1,2101187 - Roalco Limited,GROOM HOUSE
Tendring DC,http://statistics.data.gov.uk/id/local-authority-district/22UN,Life Opportunities,5480 - HRA - Repair & Maintenance,2088 - Disabled Adaptations,19/11/2013,1056140-1,31.14,REDACTED PERSONAL DATA,REDACTED PERSONAL DATA
Tendring DC,http://statistics.data.gov.uk/id/local-authority-district/22UN,Life Opportunities,5480 - HRA - Repair & Maintenance,2000 - Responsive Maintenance - Miscellaneous,19/11/2013,1056344-1,305141.22,2101187 - Roalco Limited,ROALCO
Tendring DC,http://statistics.data.gov.uk/id/local-authority-district/22UN,Life Opportunities,H710 - Selected Improvements,C200 - Main Contractor,26/11/2013,1056391-1,2912.25,REDACTED PERSONAL DATA,REDACTED PERSONAL DATA
Tendring DC,http://statistics.data.gov.uk/id/local-authority-district/22UN,Life Opportunities,H710 - Selected Improvements,C200 - Main Contractor,26/11/2013,1056392-1,2658.9,REDACTED PERSONAL DATA,REDACTED PERSONAL DATA
Tendring DC,http://statistics.data.gov.uk/id/local-authority-district/22UN,Life Opportunities,H706 - Kitchen & Bathroom Replacement,C200 - Main Contractor,26/11/2013,1056393-1,3351.63,REDACTED PERSONAL DATA,REDACTED PERSONAL DATA
Tendring DC,http://statistics.data.gov.uk/id/local-authority-district/22UN,Life Opportunities,5480 - HRA - Repair & Maintenance,2088 - Disabled Adaptations,12/11/2013,2112194-1,157.2,REDACTED PERSONAL DATA,REDACTED PERSONAL DATA
Tendring DC,http://statistics.data.gov.uk/id/local-authority-district/22UN,Life Opportunities,5480 - HRA - Repair & Maintenance,2088 - Disabled Adaptations,12/11/2013,2112195-1,301.86,REDACTED PERSONAL DATA,REDACTED PERSONAL DATA
Tendring DC,http://statistics.data.gov.uk/id/local-authority-district/22UN,Life Opportunities,1840 - Central Telephone Service,4710 - Telephones - Charges,19/11/2013,1056208-1,358.22,2101158 - Rocom Group Limited,tdc headsets and leads
Tendring DC,http://statistics.data.gov.uk/id/local-authority-district/22UN,Life Opportunities,5820 - Harwich Sports Centre,2100 - Building Repairs,19/11/2013,1056166-1,350,2104019 - Roger Hyde Ltd,replaster sqcrt wall patch
Tendring DC,http://statistics.data.gov.uk/id/local-authority-district/22UN,Life Opportunities,9900 - General Fund Balance Sheet,B332 - Other Public Corporations Debtors/Prepayments,12/11/2013,1056124-1,6286.12,REDACTED PERSONAL DATA,REDACTED PERSONAL DATA
Tendring DC,http://statistics.data.gov.uk/id/local-authority-district/22UN,Life Opportunities,H800 - Structural Repairs,C200 - Main Contractor,26/11/2013,1056396-1,56.38,REDACTED PERSONAL DATA,REDACTED PERSONAL DATA
Tendring DC,http://statistics.data.gov.uk/id/local-authority-district/22UN,Life Opportunities,5240 - HRA - Managing Tenancies,5242 - Tenant Relations,12/11/2013,2112244-1,10,REDACTED PERSONAL DATA,REDACTED PERSONAL DATA
Tendring DC,http://statistics.data.gov.uk/id/local-authority-district/22UN,Life Opportunities,5240 - HRA - Managing Tenancies,5242 - Tenant Relations,12/11/2013,2112250-1,10,REDACTED PERSONAL DATA,REDACTED PERSONAL DATA
Tendring DC,http://statistics.data.gov.uk/id/local-authority-district/22UN,Life Opportunities,5240 - HRA - Managing Tenancies,5242 - Tenant Relations,12/11/2013,2112248-1,10,REDACTED PERSONAL DATA,REDACTED PERSONAL DATA
Tendring DC,http://statistics.data.gov.uk/id/local-authority-district/22UN,Life Opportunities,"1580 - Benefits, Revenues and Customer Contact SU",4700 - Postage,05/11/2013,1055837-1,1397.94,2101139 - Royal Mail,outgoing post oct 13
Tendring DC,http://statistics.data.gov.uk/id/local-authority-district/22UN,Life Opportunities,5240 - HRA - Managing Tenancies,5242 - Tenant Relations,12/11/2013,1056071-1,70,2101139 - Royal Mail,633665007
